﻿Directorate,Service,Division,Responsible Unit,Expense Type,Payment Date,Trans No,Net Amount,Supplier Name
Children's Services,Children's Social Care,Children Looked After,S23 Fam Pl P&V-F/Care,Childrens Act Section 23 - Placement Fee,01/03/2017,3812882,-913.32,Children First Fostering Agency LTD
Children's Services,Children's Social Care,Children Looked After,S23 Fam Pl P&V-F/Care,Childrens Act Section 23 - Placement Fee,01/03/2017,3812965,-913.32,Children First Fostering Agency LTD
Children's Services,Children's Social Care,Children Looked After,S23 Fam Pl P&V-F/Care,Childrens Act Section 23 - Placement Fee,01/03/2017,3814184,-913.32,Children First Fostering Agency LTD
Children's Services,Children's Social Care,Children Looked After,S23 Fam Pl P&V-F/Care,Childrens Act Section 23 - Placement Fee,01/03/2017,3818359,"1,260.00",Children First Fostering Agency LTD
Children's Services,Children's Social Care,Family Support Services,IPST S17 NRPF,Childrens Act Section 17 - Other Placements Bed & Breakfast,01/03/2017,3820433,"4,705.65",Colchester & Tendring Womens Refuge
Children's Services,Children's Social Care,Commissioning and Social Work,Advice and Assessment Team,Computing - Purchase of Software,01/03/2017,3823794,760.34,Agilisys Professional Services
Children's Services,Children's Social Care,Services for young people,LAPS 5 - 8,Computing - Purchase of Software,01/03/2017,3823835,543.10,Agilisys Professional Services
Children's Services,Children's Social Care,Commissioning and Social Work,F S & P M & A,Services - Professional Fees - Consultants Fees,01/03/2017,3823838,868.96,Agilisys Professional Services
Children's Services,Children's Social Care,Support Service and Management Costs,Welfare Catering,Kitchen Supplies - Food and Beverages,01/03/2017,3823879,"1,055.78",Thomas Ridley & Son Ltd
Children's Services,Children's Social Care,Children Looked After,S23 Fam Pl P&V-F/Care,Childrens Act Section 23 - Placement Fee,01/03/2017,3823931,"3,410.00",Fostering People Too
Children's Services,Children's Social Care,Support Service and Management Costs,Schools Catering,Kitchen Supplies - Food and Beverages,01/03/2017,3824084,739.37,Thomas Ridley & Son Ltd
Children's Services,Children's Social Care,Support Service and Management Costs,Schools Catering,Kitchen Supplies - Food and Beverages,01/03/2017,3824615,693.00,Thomas Ridley & Son Ltd
Children's Services,Children's Social Care,Support Service and Management Costs,Schools Catering,Kitchen Supplies - Food and Beverages,01/03/2017,3824642,679.48,Thomas Ridley & Son Ltd
Children's Services,Children's Social Care,Support Service and Management Costs,Schools Catering,Kitchen Supplies - Food and Beverages,01/03/2017,3824655,743.03,Thomas Ridley & Son Ltd
Children's Services,Children's Social Care,Support Service and Management Costs,Schools Catering,Kitchen Supplies - Food and Beverages,01/03/2017,3824661,593.70,Thomas Ridley & Son Ltd
Children's Services,Children's Social Care,Support Service and Management Costs,Schools Catering,Kitchen Supplies - Food and Beverages,01/03/2017,3824665,523.31,Thomas Ridley & Son Ltd
Children's Services,Children's Social Care,Support Service and Management Costs,Schools Catering,Kitchen Supplies - Food and Beverages,01/03/2017,3824668,"1,556.55",Thomas Ridley & Son Ltd
Children's Services,Children's Social Care,Support Service and Management Costs,Schools Catering,Kitchen Supplies - Food and Beverages,01/03/2017,3824672,"1,302.03",Thomas Ridley & Son Ltd
Children's Services,Children's Social Care,Support Service and Management Costs,Schools Catering,Kitchen Supplies - Food and Beverages,01/03/2017,3824696,610.12,Thomas Ridley & Son Ltd
Children's Services,Children's Social Care,Support Service and Management Costs,Schools Catering,Kitchen Supplies - Food and Beverages,01/03/2017,3824714,589.39,Thomas Ridley & Son Ltd
Children's Services,Children's Social Care,Support Service and Management Costs,Schools Catering,Kitchen Supplies - Food and Beverages,01/03/2017,3824717,"1,017.50",Thomas Ridley & Son Ltd
Children's Services,Children's Social Care,Support Service and Management Costs,Schools Catering,Kitchen Supplies - Food and Beverages,01/03/2017,3824735,959.08,Thomas Ridley & Son Ltd
Children's Services,Children's Social Care,Commissioning and Social Work,Advice and Assessment Team,Services - Professional Fees - Consultants Fees,01/03/2017,3824808,543.10,Agilisys Professional Services
Children's Services,Children's Social Care,Children Looked After,S23 Fam Pl P&V-F/Care,Childrens Act Section 23 - Placement Fee,01/03/2017,3824845,"2,800.00",Futures for Children Ltd
Children's Services,Children's Social Care,Children Looked After,S23 Fam Pl P&V-F/Care,Childrens Act Section 23 - Placement Fee,01/03/2017,3824861,"2,800.00",Time For Children
Children's Services,Children's Social Care,Children Looked After,S23 Fam Pl P&V-F/Care,Childrens Act Section 23 - Placement Fee,01/03/2017,3824862,"2,800.00",Time For Children
Children's Services,Children's Social Care,Children Looked After,S23 Fam Pl P&V-F/Care,Childrens Act Section 23 - Placement Fee,01/03/2017,3824886,"2,800.00",Futures for Children Ltd
Children's Services,Children's Social Care,Support Service and Management Costs,Schools Catering,Kitchen Supplies - Food and Beverages,01/03/2017,3824888,-505.80,Thomas Ridley & Son Ltd
Children's Services,Children's Social Care,Children Looked After,S23 Fam Pl P&V-F/Care,Childrens Act Section 23 - Placement Fee,01/03/2017,3824892,"2,800.00",Time For Children
Children's Services,Children's Social Care,Children Looked After,S23 Fam Pl P&V-F/Care,Childrens Act Section 23 - Placement Fee,01/03/2017,3824901,"2,800.00",Futures for Children Ltd
Children's Services,Children's Social Care,Support Service and Management Costs,Schools Catering,Kitchen Supplies - Food and Beverages,01/03/2017,3824903,713.55,Thomas Ridley & Son Ltd
Children's Services,Children's Social Care,Children Looked After,S23 Fam Pl P&V-F/Care,Childrens Act Section 23 - Placement Fee,01/03/2017,3824905,"2,800.00",Time For Children
Children's Services,Children's Social Care,Children Looked After,S23 Fam Pl P&V-F/Care,Childrens Act Section 23 - Placement Fee,01/03/2017,3824908,"2,980.04",Futures for Children Ltd
Children's Services,Children's Social Care,Support Service and Management Costs,Schools Catering,Kitchen Supplies - Food and Beverages,01/03/2017,3824926,721.56,Thomas Ridley & Son Ltd
Children's Services,Children's Social Care,Support Service and Management Costs,Schools Catering,Kitchen Supplies - Food and Beverages,01/03/2017,3824932,687.38,Thomas Ridley & Son Ltd
Children's Services,Children's Social Care,Support Service and Management Costs,Schools Catering,Kitchen Supplies - Food and Beverages,01/03/2017,3824938,534.13,Thomas Ridley & Son Ltd
Children's Services,Children's Social Care,Support Service and Management Costs,Schools Catering,Kitchen Supplies - Food and Beverages,01/03/2017,3824942,647.08,Thomas Ridley & Son Ltd
Children's Services,Children's Social Care,Support Service and Management Costs,Schools Catering,Kitchen Supplies - Food and Beverages,01/03/2017,3824944,700.44,Thomas Ridley & Son Ltd
Children's Services,Children's Social Care,Support Service and Management Costs,Schools Catering,Kitchen Supplies - Food and Beverages,01/03/2017,3824946,996.05,Thomas Ridley & Son Ltd
Children's Services,Children's Social Care,Support Service and Management Costs,Schools Catering,Kitchen Supplies - Food and Beverages,01/03/2017,3824950,545.22,Thomas Ridley & Son Ltd
Children's Services,Children's Social Care,Support Service and Management Costs,Schools Catering,Kitchen Supplies - Food and Beverages,01/03/2017,3824956,524.53,Thomas Ridley & Son Ltd
Children's Services,Children's Social Care,Support Service and Management Costs,Schools Catering,Kitchen Supplies - Food and Beverages,01/03/2017,3824965,520.99,Thomas Ridley & Son Ltd
Children's Services,Children's Social Care,Support Service and Management Costs,Schools Catering,Kitchen Supplies - Food and Beverages,01/03/2017,3824977,"1,124.29",Thomas Ridley & Son Ltd
Children's Services,Education Services,Other Strategic Functions,Schools Library,Comms - Courier,01/03/2017,3826963,531.00,Ram Transport LTD
Children's Services,Children's Social Care,Children Looked After,S23-Other-Semi-Ind. Unit,Childrens Act Section 23 - Placement Fee,01/03/2017,3826984,"3,752.67",Heartwood Outreach Services Ltd
Children's Services,Children's Social Care,Children Looked After,Virtual School PPG,Agency Staff - Associations,01/03/2017,3827078,916.00,Academics ltd
Children's Services,Children's Social Care,Children Looked After,S23 Fam Pl P&V-F/Care,Childrens Act Section 23 - Placement Fee,01/03/2017,3827291,"3,832.53",Family Fostering
Children's Services,Children's Social Care,Children Looked After,S23-Other-Semi-Ind. Unit,Childrens Act Section 23 - Placement Fee,01/03/2017,3827385,"3,752.67",Heartwood Outreach Services Ltd
Children's Services,Children's Social Care,Children Looked After,S23-Other-Semi-Ind. Unit,Childrens Act Section 23 - Placement Fee,01/03/2017,3827386,"3,752.67",Heartwood Outreach Services Ltd
Children's Services,Children's Social Care,Children Looked After,S23-Other-Semi-Ind. Unit,Childrens Act Section 23 - Placement Fee,01/03/2017,3827387,"3,752.67",Heartwood Outreach Services Ltd
Children's Services,Children's Social Care,Children Looked After,Virtual School PPG,Agency Staff - Associations,01/03/2017,3827466,"1,145.00",Academics ltd
Children's Services,Children's Social Care,Children Looked After,Virtual School PPG,Agency Staff - Associations,01/03/2017,3827467,687.00,Academics ltd
Children's Services,Children's Social Care,Children Looked After,Virtual School PPG,Agency Staff - Associations,01/03/2017,3827468,916.00,Academics ltd
Children's Services,Education Services,Other Strategic Functions,Special Education Needs DSG,Third Party Payments - Payments to Schools,01/03/2017,3827748,"2,521.26",Integrated Service Programme
Children's Services,Children's Social Care,Children Looked After,S23 Fam Pl P&V-F/Care,Childrens Act Section 23 - Placement Fee,01/03/2017,3827748,"2,521.26",Integrated Service Programme
Children's Services,Children's Social Care,Children Looked After,S23 Fam Pl P&V-F/Care,Childrens Act Section 23 - Placement Fee,01/03/2017,3827749,"4,932.48",Integrated Service Programme
Children's Services,Children's Social Care,Children Looked After,S23 Fam Pl P&V-F/Care,Childrens Act Section 23 - Placement Fee,01/03/2017,3827750,"5,192.04",Integrated Service Programme
Children's Services,Children's Social Care,Children Looked After,S23-Resi-P&V/OLA-Child Home,Childrens Act Section 23 - Placement Fee,01/03/2017,3827764,"14,840.00",Hillcrest Care Ltd
Children's Services,Children's Social Care,Children Looked After,S23 Fam Pl P&V-F/Care,Childrens Act Section 23 - Placement Fee,01/03/2017,3827811,"3,258.45",Sunbeam Fostering Agency Ltd
Children's Services,Children's Social Care,Children Looked After,S23 Family Placements P&V,Childrens Act Section 23 - Placement Fee,01/03/2017,3827812,"3,064.66",Sunbeam Fostering Agency Ltd
Children's Services,Children's Social Care,Children Looked After,S23 Fam Pl P&V-F/Care,Childrens Act Section 23 - Placement Fee,01/03/2017,3827813,"3,122.14",Sunbeam Fostering Agency Ltd
Children's Services,Children's Social Care,Children Looked After,S23 Fam Pl P&V-F/Care,Childrens Act Section 23 - Placement Fee,01/03/2017,3827814,"3,122.14",Sunbeam Fostering Agency Ltd
Children's Services,Children's Social Care,Children Looked After,S23 Fam Pl P&V-F/Care,Childrens Act Section 23 - Placement Fee,01/03/2017,3827815,"1,391.00",Welcome Foster Care
Children's Services,Children's Social Care,Children Looked After,S23 Fam Pl P&V-F/Care,Childrens Act Section 23 - Placement Fee,01/03/2017,3827816,"4,160.08",Welcome Foster Care
Children's Services,Children's Social Care,Children Looked After,S23 Fam Pl P&V-F/Care,Childrens Act Section 23 - Placement Fee,01/03/2017,3827817,"3,279.92",Welcome Foster Care
Children's Services,Children's Social Care,Children Looked After,S23 Fam Pl P&V-F/Care,Childrens Act Section 23 - Placement Fee,01/03/2017,3827818,"3,279.92",Welcome Foster Care
Children's Services,Children's Social Care,Children Looked After,S23 Fam Pl P&V-F/Care,Childrens Act Section 23 - Placement Fee,01/03/2017,3827819,"2,996.00",Welcome Foster Care
Children's Services,Children's Social Care,Children Looked After,S23 Fam Pl P&V-F/Care,Childrens Act Section 23 - Placement Fee,01/03/2017,3827820,"2,756.04",Welcome Foster Care
Children's Services,Children's Social Care,Children Looked After,Virtual School PPG,Agency Staff - Associations,01/03/2017,3827846,"1,645.00",Academics ltd
Children's Services,Children's Social Care,Children Looked After,S23-Other-Semi-Ind. Unit,Childrens Act Section 23 - Placement Fee,01/03/2017,3827881,"6,492.90",KPMS LTD
Children's Services,Children's Social Care,Family Support Services,IPST S17 NRPF,Childrens Act Section 17 - Other Placements Bed & Breakfast,01/03/2017,3827886,"1,085.00",UK Room (London) Ltd
Children's Services,Children's Social Care,Children Looked After,S23 Fam Pl P&V-F/Care,Childrens Act Section 23 - Placement Fee,01/03/2017,3827892,"5,101.67",National Fostering Agency
Children's Services,Children's Social Care,Children Looked After,S23 Fam Pl P&V-F/Care,Childrens Act Section 23 - Placement Fee,01/03/2017,3827893,"3,255.00",National Fostering Agency
Children's Services,Children's Social Care,Children Looked After,S23 Fam Pl P&V-F/Care,Childrens Act Section 23 - Placement Fee,01/03/2017,3827922,"3,122.14",Sunbeam Fostering Agency Ltd
Children's Services,Children's Social Care,Children Looked After,S23 Fam Pl P&V-F/Care,Childrens Act Section 23 - Placement Fee,01/03/2017,3827923,"2,756.04",Welcome Foster Care
Children's Services,Children's Social Care,Children Looked After,S23 Fam Pl P&V-F/Care,Childrens Act Section 23 - Placement Fee,01/03/2017,3827924,"2,996.00",Welcome Foster Care
Children's Services,Children's Social Care,Service Strategy,89 CA Sec 17 Chld in Need POPS,Social Care - Day Care,01/03/2017,3827930,"1,085.00",UK Room (London) Ltd
Children's Services,Children's Social Care,Children Looked After,S23 Fam Pl P&V-F/Care,Childrens Act Section 23 - Placement Fee,01/03/2017,3827934,"4,883.76",Diverse Care (UK) Limited
Children's Services,Children's Social Care,Children Looked After,S23 Fam Pl P&V-F/Care,Childrens Act Section 23 - Placement Fee,01/03/2017,3827935,"4,883.76",Diverse Care (UK) Limited
Children's Services,Children's Social Care,Children Looked After,S23 Fam Pl P&V-F/Care,Childrens Act Section 23 - Placement Fee,01/03/2017,3827939,"3,122.14",Sunbeam Fostering Agency Ltd
Children's Services,Cultural and Related Services,Recreation & Sport,"Poplar Baths		",Payments to Private Contractors - Other Contractors,01/03/2017,3829813,"123,645.89",Folera Ltd
Children's Services,Children's Social Care,Children Looked After,S23 Family Placements P&V,Childrens Act Section 23 - Placement Fee,01/03/2017,3829878,"2,914.24",CAPSTONE VISION FOSTER CARE LTD
Children's Services,Children's Social Care,Children Looked After,Staying Put,Childrens Act Section 23 - Placement Fee,01/03/2017,3829879,"1,607.76",CAPSTONE VISION FOSTER CARE LTD
Children's Services,Children's Social Care,Children Looked After,S23-Resi-P&V/OLA-Child Home,Childrens Act Section 23 - Commissioned Services,01/03/2017,3829890,"1,215.75",Wrixon Care Services
Children's Services,Children's Social Care,Children Looked After,S23-Resi-P&V/OLA-Child Home,Childrens Act Section 23 - Commissioned Services,01/03/2017,3829891,"1,146.75",Wrixon Care Services
Children's Services,Children's Social Care,Family Support Services,CNN Pool: Joint Family Support,Social Care - Homecare,01/03/2017,3830012,696.30,QALB Centre Short Break Services
Children's Services,Children's Social Care,Children Looked After,S23 Fam Pl P&V-F/Care,Childrens Act Section 23 - Placement Fee,01/03/2017,3830463,"3,172.12",Five Rivers Childcare Limited
Children's Services,Children's Social Care,Children Looked After,S23 Fam Pl P&V-F/Care,Childrens Act Section 23 - Placement Fee,01/03/2017,3830464,"2,726.52",Five Rivers Childcare Limited
Children's Services,Children's Social Care,Children Looked After,S23 Fam Pl P&V-F/Care,Childrens Act Section 23 - Placement Fee,01/03/2017,3830465,"5,800.00",Five Rivers Childcare Limited
Children's Services,Children's Social Care,Children Looked After,S23 Fam Pl P&V-F/Care,Childrens Act Section 23 - Placement Fee,01/03/2017,3830466,"5,800.00",Five Rivers Childcare Limited
Children's Services,Children's Social Care,Family Support Services,IPST S17 NRPF,Childrens Act Section 17 - Other Placements Bed & Breakfast,01/03/2017,3830495,"4,800.00",Finefair Management
Children's Services,Education Services,Other Strategic Functions,Special Education Needs DSG,Third Party Payments - Payments to Schools,01/03/2017,3830576,"4,606.56",St Elizabeth's Centre
Children's Services,Children's Social Care,Children Looked After,S23-Resi-P&V/OLA-Boarding Sch,Childrens Act Section 23 - Placement Fee,01/03/2017,3830576,"4,606.56",St Elizabeth's Centre
Children's Services,Education Services,Other Strategic Functions,Special Education Needs DSG,Third Party Payments - Payments to Schools,01/03/2017,3830608,"5,321.54",St Elizabeth's Centre
Children's Services,Children's Social Care,Children Looked After,S23-Resi-P&V/OLA-Boarding Sch,Childrens Act Section 23 - Placement Fee,01/03/2017,3830608,"5,321.54",St Elizabeth's Centre
Children's Services,Children's Social Care,Children Looked After,S23-Other-Semi-Ind. Unit,Childrens Act Section 23 - Placement Fee,01/03/2017,3830799,"4,032.00",Holibrook house Ltd
Children's Services,Children's Social Care,Children Looked After,S23 Fam Pl P&V-F/Care,Childrens Act Section 23 - Placement Fee,01/03/2017,3830837,"3,286.00",Greater London Fostering LTD
Children's Services,Children's Social Care,Children Looked After,S23 Fam Pl P&V-F/Care,Childrens Act Section 23 - Placement Fee,01/03/2017,3830838,"3,286.00",Greater London Fostering LTD
Children's Services,Children's Social Care,Children Looked After,Staying Put,Childrens Act Section 23 - Placement Fee,01/03/2017,3830839,"1,580.04",Children First Fostering Agency LTD
Children's Services,Children's Social Care,Children Looked After,S23 Fam Pl P&V-F/Care,Childrens Act Section 23 - Placement Fee,01/03/2017,3830840,"2,866.64",Children First Fostering Agency LTD
Children's Services,Children's Social Care,Children Looked After,S23 Fam Pl P&V-F/Care,Childrens Act Section 23 - Placement Fee,01/03/2017,3830841,"3,120.04",Children First Fostering Agency LTD
Children's Services,Children's Social Care,Children Looked After,S23 Fam Pl P&V-F/Care,Childrens Act Section 23 - Placement Fee,01/03/2017,3830842,"2,841.44",Children First Fostering Agency LTD
Children's Services,Children's Social Care,Children Looked After,S23-Other-Semi-Ind. Unit,Childrens Act Section 23 - Placement Fee,01/03/2017,3831018,"1,727.15",Pangea Support Services
Children's Services,Children's Social Care,Children Looked After,S23-Other-Semi-Ind. Unit,Childrens Act Section 23 - Placement Fee,01/03/2017,3831019,"2,177.14",Pangea Support Services
Children's Services,Children's Social Care,Children Looked After,Leaving Care-UASC,Leaving Care Financial Assistance - Supp Accom/Hous Rents,01/03/2017,3831020,"1,450.04",Pangea Support Services
Children's Services,Children's Social Care,Children Looked After,S23-Other-Semi-Ind. Unit,Childrens Act Section 23 - Placement Fee,01/03/2017,3831021,"1,849.38",Pangea Support Services
Children's Services,Children's Social Care,Children Looked After,S23-Other-Semi-Ind. Unit,Childrens Act Section 23 - Placement Fee,01/03/2017,3831022,"1,727.15",Pangea Support Services
Children's Services,Children's Social Care,Children Looked After,S23-Other-Semi-Ind. Unit,Childrens Act Section 23 - Placement Fee,01/03/2017,3831024,"1,727.15",Pangea Support Services
Children's Services,Children's Social Care,Children Looked After,S23-Other-Semi-Ind. Unit,Childrens Act Section 23 - Placement Fee,01/03/2017,3831025,"1,727.15",Pangea Support Services
Children's Services,Children's Social Care,Children Looked After,S23-Other-Semi-Ind. Unit,Childrens Act Section 23 - Placement Fee,01/03/2017,3831026,"1,727.15",Pangea Support Services
Children's Services,Children's Social Care,Children Looked After,Leaving Care-UASC,Leaving Care Financial Assistance - Supp Accom/Hous Rents,01/03/2017,3831027,"1,315.64",Pangea Support Services
Children's Services,Children's Social Care,Children Looked After,Leaving Care-UASC,Leaving Care Financial Assistance - Supp Accom/Hous Rents,01/03/2017,3831028,"1,315.64",Pangea Support Services
Children's Services,Children's Social Care,Children Looked After,Leaving Care-UASC,Leaving Care Financial Assistance - Supp Accom/Hous Rents,01/03/2017,3831029,"1,315.64",Pangea Support Services
Children's Services,Children's Social Care,Children Looked After,Leaving Care-UASC,Leaving Care Financial Assistance - Supp Accom/Hous Rents,01/03/2017,3831030,"1,058.78",Pangea Support Services
Children's Services,Children's Social Care,Children Looked After,Leaving Care-UASC,Leaving Care Financial Assistance - Supp Accom/Hous Rents,01/03/2017,3831031,"1,315.64",Pangea Support Services
Children's Services,Children's Social Care,Children Looked After,Leaving Care-UASC,Leaving Care Financial Assistance - Supp Accom/Hous Rents,01/03/2017,3831032,"1,315.64",Pangea Support Services
Children's Services,Children's Social Care,Children Looked After,S23-Other-Semi-Ind. Unit,Childrens Act Section 23 - Placement Fee,01/03/2017,3831034,880.00,Pangea Support Services
Children's Services,Children's Social Care,Children Looked After,S23-Other-Semi-Ind. Unit,Childrens Act Section 23 - Placement Fee,01/03/2017,3831035,"1,727.15",Pangea Support Services
Children's Services,Children's Social Care,Children Looked After,Leaving Care-UASC,Leaving Care Financial Assistance - Supp Accom/Hous Rents,01/03/2017,3831036,"1,058.78",Pangea Support Services
Children's Services,Children's Social Care,Children Looked After,S23-Other-Semi-Ind. Unit,Childrens Act Section 23 - Placement Fee,01/03/2017,3831037,"1,727.15",Pangea Support Services
Children's Services,Children's Social Care,Children Looked After,S23-Other-Semi-Ind. Unit,Childrens Act Section 23 - Placement Fee,01/03/2017,3831038,"1,727.15",Pangea Support Services
Children's Services,Children's Social Care,Children Looked After,S23-Other-Semi-Ind. Unit,Childrens Act Section 23 - Placement Fee,01/03/2017,3831039,"1,727.15",Pangea Support Services
Children's Services,Children's Social Care,Children Looked After,S23-Other-Semi-Ind. Unit,Childrens Act Section 23 - Placement Fee,01/03/2017,3831040,"1,727.15",Pangea Support Services
Children's Services,Children's Social Care,Children Looked After,S23-Other-Semi-Ind. Unit,Childrens Act Section 23 - Placement Fee,01/03/2017,3831041,"2,482.54",Pangea Support Services
Children's Services,Children's Social Care,Children Looked After,S23 Fam Pl P&V-F/Care,Childrens Act Section 23 - Placement Fee,01/03/2017,3831062,"2,881.20",Children First Fostering Agency LTD
Children's Services,Children's Social Care,Children Looked After,S23 Fam Pl P&V-F/Care,Childrens Act Section 23 - Placement Fee,01/03/2017,3831063,"2,841.44",Children First Fostering Agency LTD
Children's Services,Children's Social Care,Children Looked After,Leaving Care-UASC,Leaving Care Financial Assistance - Supp Accom/Hous Rents,01/03/2017,3831110,"1,058.78",Pangea Support Services
Children's Services,Children's Social Care,Children Looked After,S23 Fam Pl P&V-F/Care,Childrens Act Section 23 - Placement Fee,01/03/2017,3831117,"3,052.57",Foster Care Associates Limited
Children's Services,Children's Social Care,Children Looked After,S23 Fam Pl P&V-F/Care,Childrens Act Section 23 - Placement Fee,01/03/2017,3831151,"3,052.57",Foster Care Associates Limited
Children's Services,Children's Social Care,Family Support Services,CNN Pool: Joint Family Support,Social Care - Homecare,01/03/2017,3831197,"1,077.14",QALB Centre Short Break Services
Children's Services,Children's Social Care,Children Looked After,S23 Fam Pl P&V-F/Care,Childrens Act Section 23 - Placement Fee,01/03/2017,3831704,"3,255.00",National Fostering Agency
Children's Services,Children's Social Care,Children Looked After,S23 Family Placements P&V,Childrens Act Section 23 - Placement Fee,01/03/2017,3831705,"3,350.79",National Fostering Agency
Children's Services,Children's Social Care,Children Looked After,S23 Fam Pl P&V-F/Care,Childrens Act Section 23 - Placement Fee,01/03/2017,3831718,"4,328.84",BANYA
Children's Services,Education Services,Secondary Schools,PFI Hldg Account-Mulberry Scho,Payments to Private Contractors - Other Contractors,01/03/2017,3833499,"191,741.11",D4E Mulberry LTD
Children's Services,Education Services,Secondary Schools,PFI Hldg Account-Mulberry Scho,Payments to Private Contractors - Other Contractors,01/03/2017,3833500,"7,832.48",D4E Mulberry LTD
Children's Services,Children's Social Care,Service Strategy,89 CA Sec 17 Chld in Need BGW,Meeting Expenses,01/03/2017,3833544,"1,638.00",Shuttleworth (UK) Ltd
Children's Services,Children's Social Care,Children Looked After,S23-Resi-P&V/OLA-Child Home,Childrens Act Section 23 - Placement Fee,01/03/2017,3834479,"3,285.71",Atlantic Lodge
Children's Services,Children's Social Care,Children Looked After,S23-Other-Semi-Ind. Unit,Childrens Act Section 23 - Placement Fee,01/03/2017,3835238,577.75,Wrixon Care Services
Children's Services,Cultural and Related Services,Open Spaces,Victoria Park,Events & Exhibition Supplies,01/03/2017,3835245,"1,775.00",A1 Loo Hire
Children's Services,Cultural and Related Services,Open Spaces,Stepney Green,Services - Professional Fees - Security Fees,01/03/2017,3835482,"6,969.76",A P Security (North) LTD
Children's Services,Cultural and Related Services,Recreation & Sport,Mayors Cup,Recreational Activities,01/03/2017,3837800,750.00,ST KATHERINES SPORTS & SOCIAL ASSOCIATION
Children's Services,Children's Social Care,Children Looked After,Leaving Care-UASC,Leaving Care Financial Assistance - Supp Accom/Hous Rents,01/03/2017,3838102,"1,455.66",Newhaven 16 Plus
Children's Services,Children's Social Care,Service Strategy,89 CA Sec 17 Chld in Need BGW,Childrens Act Section 17 - Other Placements Bed & Breakfast,01/03/2017,3838337,"2,015.00",Finefair Management
Children's Services,Education Services,Other Strategic Functions,SEN External Travel,Non Staff Transport Costs - Reimbursement,01/03/2017,3838356,"14,595.00",Mile End Car Hire Limited
Children's Services,Education Services,Other Strategic Functions,SEN External Travel,Non Staff Transport Costs - Reimbursement,01/03/2017,3838475,"32,096.00",Mile End Car Hire Limited
Children's Services,Education Services,Other Strategic Functions,Pupil & Student Services GF,Non Staff Transport Costs - Client Transport Costs,01/03/2017,3839095,"3,511.00",Lindel Services LTD - T/A Fox Transport
Children's Services,Education Services,Other Strategic Functions,SEN External Travel,Non Staff Transport Costs - Reimbursement,01/03/2017,3839096,"64,388.00",Lindel Services LTD - T/A Fox Transport
Children's Services,Children's Social Care,Children Looked After,S23 Fam Pl P&V-F/Care,Childrens Act Section 23 - Non-Contact Trans/Travel Costs,01/03/2017,3839156,"2,944.64",Kent County Council
Children's Services,Children's Social Care,Children Looked After,S23 Family Placements P&V,Childrens Act Section 23 - Non-Contact Trans/Travel Costs,01/03/2017,3839157,"8,977.57",Kent County Council
Children's Services,Children's Social Care,Children Looked After,S23-Resi-P&V/OLA-Child Home,Childrens Act Section 23 - Non-Contact Trans/Travel Costs,01/03/2017,3839158,"7,143.44",Kent County Council
Children's Services,Children's Social Care,Services for young people,Connexions General Fund,Educational/Training Supplies - Curriculum Visits/Activities,01/03/2017,3839955,"1,287.00",Tower Hamlets Community Transport
Children's Services,Children's Social Care,Children Looked After,S23 Family Placements P&V,Childrens Act Section 23 - Placement Fee,01/03/2017,3840051,"3,272.71",Link Fostering Agency
Children's Services,Children's Social Care,Children Looked After,S23 Fam Pl P&V-F/Care,Childrens Act Section 23 - Placement Fee,01/03/2017,3840054,"3,272.71",Link Fostering Agency
Children's Services,Children's Social Care,Family Support Services,Family Intervention Programme,Stationery,01/03/2017,3840429,"1,500.00",Love2Reward
Children's Services,Children's Social Care,Family Support Services,Tackling Troubled Families,Services - Professional Fees - Partnership Arrangement,01/03/2017,3840444,"20,000.00",Docklands Outreach Co LTD
Children's Services,Children's Social Care,Support Service and Management Costs,Schools Catering,Tools and Equipment - Purchase,01/03/2017,3840466,535.00,Hobart UK
Children's Services,Cultural and Related Services,Open Spaces,Mile End Park,Repairs and Maintenance - Responsive - Repair & Maintenance,03/03/2017,3798822,"1,040.46",RGE Services
Children's Services,Children's Social Care,Children Looked After,S23 Fam Pl P&V-F/Care,Childrens Act Section 23 - Placement Fee,03/03/2017,3824819,866.80,Compass Fostering London & Eastern Ltd
Children's Services,Cultural and Related Services,Recreation & Sport,Sports Development,Recreational Activities,03/03/2017,3824872,"1,260.00",Our Parks Ltd
Children's Services,Children's Social Care,Children Looked After,S23 Fam Pl P&V-F/Care,Childrens Act Section 23 - Placement Fee,03/03/2017,3824885,866.80,Compass Fostering London & Eastern Ltd
Children's Services,Children's Social Care,Children Looked After,S23 Fam Pl P&V-F/Care,Childrens Act Section 23 - Placement Fee,03/03/2017,3824900,866.80,Compass Fostering London & Eastern Ltd
Children's Services,Children's Social Care,Support Service and Management Costs,Schools Catering,Kitchen Supplies - Food and Beverages,03/03/2017,3824981,"1,304.36",Thomas Ridley & Son Ltd
Children's Services,Children's Social Care,Support Service and Management Costs,Schools Catering,Kitchen Supplies - Food and Beverages,03/03/2017,3825032,624.88,Thomas Ridley & Son Ltd
Children's Services,Children's Social Care,Support Service and Management Costs,Schools Catering,Kitchen Supplies - Food and Beverages,03/03/2017,3825051,809.75,Thomas Ridley & Son Ltd
Children's Services,Children's Social Care,Support Service and Management Costs,Schools Catering,Kitchen Supplies - Food and Beverages,03/03/2017,3825053,760.01,Thomas Ridley & Son Ltd
Children's Services,Children's Social Care,Support Service and Management Costs,Schools Catering,Kitchen Supplies - Food and Beverages,03/03/2017,3825055,542.02,Thomas Ridley & Son Ltd
Children's Services,Education Services,Early Years,Meath Gardens CC,Office Furniture/Equipment,03/03/2017,3826892,904.89,Office Depot (Catalogue)
Children's Services,Children's Social Care,Children Looked After,S23 Fam Pl P&V-F/Care,Childrens Act Section 23 - Placement Fee,03/03/2017,3826949,"3,552.26",Compass Fostering London & Eastern Ltd
Children's Services,Children's Social Care,Children Looked After,S23 Fam Pl P&V-F/Care,Childrens Act Section 23 - Placement Fee,03/03/2017,3826950,"2,696.72",Compass Fostering London & Eastern Ltd
Children's Services,Education Services,Other Strategic Functions,High Needs Academies & Free Schs,Third Party Payments - Payments to Schools,03/03/2017,3826986,"6,177.01",City Gateway 14-19 Provision
Children's Services,Children's Social Care,Children Looked After,S23 Fam Pl P&V-F/Care,Childrens Act Section 23 - Placement Fee,03/03/2017,3827055,"2,696.72",Compass Fostering London & Eastern Ltd
Children's Services,Children's Social Care,Children Looked After,S23 Fam Pl P&V-F/Care,Childrens Act Section 23 - Placement Fee,03/03/2017,3827074,"2,696.72",Compass Fostering London & Eastern Ltd
Children's Services,Children's Social Care,Support Service and Management Costs,Schools Catering,Kitchen Supplies - Food and Beverages,03/03/2017,3827112,720.30,Thomas Ridley & Son Ltd
Children's Services,Children's Social Care,Support Service and Management Costs,Schools Catering,Kitchen Supplies - Food and Beverages,03/03/2017,3827139,871.87,Thomas Ridley & Son Ltd
Children's Services,Children's Social Care,Support Service and Management Costs,Schools Catering,Kitchen Supplies - Food and Beverages,03/03/2017,3827143,586.21,Thomas Ridley & Son Ltd
Children's Services,Children's Social Care,Support Service and Management Costs,Schools Catering,Kitchen Supplies - Food and Beverages,03/03/2017,3827147,"1,416.64",Thomas Ridley & Son Ltd
Children's Services,Children's Social Care,Support Service and Management Costs,Schools Catering,Kitchen Supplies - Food and Beverages,03/03/2017,3827153,699.72,Thomas Ridley & Son Ltd
Children's Services,Children's Social Care,Support Service and Management Costs,Schools Catering,Kitchen Supplies - Food and Beverages,03/03/2017,3827157,"1,099.09",Thomas Ridley & Son Ltd
Children's Services,Children's Social Care,Support Service and Management Costs,Schools Catering,Kitchen Supplies - Food and Beverages,03/03/2017,3827159,"1,232.85",Thomas Ridley & Son Ltd
Children's Services,Children's Social Care,Support Service and Management Costs,Schools Catering,Kitchen Supplies - Food and Beverages,03/03/2017,3827161,616.90,Thomas Ridley & Son Ltd
Children's Services,Children's Social Care,Support Service and Management Costs,Schools Catering,Kitchen Supplies - Food and Beverages,03/03/2017,3827171,851.04,Thomas Ridley & Son Ltd
Children's Services,Children's Social Care,Services for young people,LAPS 1 - 8,Educational/Training Supplies - Curriculum Visits/Activities,03/03/2017,3827231,727.70,Office Depot (Catalogue)
Children's Services,Education Services,Other Strategic Functions,Schools Library,Comms - Courier,03/03/2017,3827317,"3,638.00",Figurehead Studios
Children's Services,Children's Social Care,Support Service and Management Costs,Schools Catering,Computing - Maint Agreements - Software,03/03/2017,3827318,"1,210.00",Cypad Ltd
Children's Services,Education Services,Other Strategic Functions,High Needs Academies & Free Schs,Third Party Payments - Payments to Schools,03/03/2017,3827735,"-6,166.67",Whitefield Academy Trust - Joseph Clarke School
Children's Services,Education Services,Early Years,Wapping CC,Training Expenses - Staff External Training (UK Based),03/03/2017,3827806,"2,605.00",Early Excellence
Children's Services,Children's Social Care,Children Looked After,S23-Other-Mother & Baby Unit,Childrens Act Section 23 - Placement Fee,03/03/2017,3827810,"12,600.00",OneOneCoCo
Children's Services,Education Services,Other Strategic Functions,High Needs Academies & Free Schs,Third Party Payments - Payments to Schools,03/03/2017,3827908,"-4,625.00",Whitefield Academy Trust - Joseph Clarke School
Children's Services,Education Services,Other Strategic Functions,High Needs Academies & Free Schs,Third Party Payments - Payments to Schools,03/03/2017,3827931,"13,875.00",Whitefield Academy Trust - Joseph Clarke School
Children's Services,Children's Social Care,Support Service and Management Costs,Schools Catering,Kitchen Supplies - Food and Beverages,03/03/2017,3828063,581.45,William White Meats Ltd
Children's Services,Children's Social Care,Support Service and Management Costs,Schools Catering,Kitchen Supplies - Food and Beverages,03/03/2017,3828718,617.50,William White Meats Ltd
Children's Services,Children's Social Care,Children Looked After,S23-Resi-P&V/OLA-Child Home,Childrens Act Section 23 - Placement Fee,03/03/2017,3828814,"12,188.40",Bridge Communities Ltd
Children's Services,Education Services,Early Years,Wapping CC,Educational/Training Supplies - Resources,03/03/2017,3828901,"1,032.80",Space kraft Ltd
Children's Services,Children's Social Care,Children Looked After,LCS/Allowances-Accom,Leaving Care Financial Assistance - Supp Accom/Hous Rents,03/03/2017,3828928,"3,321.43",Transforming Lives Co
Children's Services,Children's Social Care,Support Service and Management Costs,Schools Catering,Kitchen Supplies - Food and Beverages,03/03/2017,3829779,"1,321.45",William White Meats Ltd
Children's Services,Children's Social Care,Support Service and Management Costs,Schools Catering,Kitchen Supplies - Food and Beverages,03/03/2017,3829794,698.27,William White Meats Ltd
Children's Services,Children's Social Care,Children's and Young People's Safety,Local Safegrd Child Board:LSCB,Services - Professional Fees - Consultants Fees,03/03/2017,3829808,"5,425.00",YCTCS Ltd
Children's Services,Children's Social Care,Children Looked After,S23-Other-Semi-Ind. Unit,Childrens Act Section 23 - Placement Fee,03/03/2017,3830582,"3,844.00",Transforming Lives Co
Children's Services,Children's Social Care,Children Looked After,S23-Other-Semi-Ind. Unit,Childrens Act Section 23 - Placement Fee,03/03/2017,3830625,"4,065.43",Transforming Lives Co
Children's Services,Children's Social Care,Children's and Young People's Safety,CLA Reviewing Service,Non Staff Transport Costs - Reimbursement,03/03/2017,3830767,775.55,RSP Rail Travel (Rail Settlement Plan)
Children's Services,Children's Social Care,Support Service and Management Costs,Schools Catering,Kitchen Supplies - Catering Equipment,03/03/2017,3830830,816.00,W V Howe LTD
Children's Services,Education Services,Other Strategic Functions,High Needs Academies & Free Schs,Third Party Payments - Payments to Schools,03/03/2017,3830887,"2,619.03",City of Westminster
Children's Services,Children's Social Care,Children Looked After,S23-Resi-P&V/OLA-Child Home,Childrens Act Section 23 - Placement Fee,03/03/2017,3830919,"8,857.14",CARE Ltd
Children's Services,Children's Social Care,Children Looked After,S23-Other-Semi-Ind. Unit,Childrens Act Section 23 - Placement Fee,03/03/2017,3831011,"2,442.85",Alpha Care Service Ltd
Children's Services,Children's Social Care,Children Looked After,LCS/Allowances-Accom,Leaving Care Financial Assistance - Grant Pay Special Needs,03/03/2017,3831720,"3,951.36",Newhaven 16 Plus
Children's Services,Children's Social Care,Children Looked After,LCS/Allowances-Accom,Leaving Care Financial Assistance - Supp Accom/Hous Rents,03/03/2017,3831738,"-1,012.89",Newhaven 16 Plus
Children's Services,Children's Social Care,Children Looked After,S23-Resi-P&V/OLA-Child Home,Childrens Act Section 23 - Placement Fee,03/03/2017,3833524,"13,920.00",Kingdom Care Childrens Homes
Children's Services,Children's Social Care,Children Looked After,S23 Fam Pl P&V-F/Care,Childrens Act Section 23 - Placement Fee,03/03/2017,3833545,"5,380.36",Integrated Fostering Services Ltd
Children's Services,Children's Social Care,Children Looked After,S23 Fam Pl P&V-F/Care,Childrens Act Section 23 - Placement Fee,03/03/2017,3833546,"3,587.01",Integrated Fostering Services Ltd
Children's Services,Children's Social Care,Children Looked After,S23 18+ & Relevnt Young People,Childrens Act Section 23 - Placement Fee,03/03/2017,3833547,"5,712.99",Integrated Fostering Services Ltd
Children's Services,Children's Social Care,Children Looked After,S23 Fam Pl P&V-F/Care,Childrens Act Section 23 - Placement Fee,03/03/2017,3833584,"3,427.67",Integrated Fostering Services Ltd
Children's Services,Children's Social Care,Children Looked After,S23-Other-Semi-Ind. Unit,Childrens Act Section 23 - Placement Fee,03/03/2017,3834490,"5,742.73",The Way Care Services Ltd
Children's Services,Children's Social Care,Children Looked After,S23-Other-Semi-Ind. Unit,Childrens Act Section 23 - Placement Fee,03/03/2017,3835253,"3,428.78",The Way Care Services Ltd
Children's Services,Children's Social Care,Children Looked After,S23-Other-Semi-Ind. Unit,Childrens Act Section 23 - Placement Fee,03/03/2017,3835254,"2,707.27",The Way Care Services Ltd
Children's Services,Children's Social Care,Services for young people,Youth Service Management,SLA Services (Expenditure) - Service Level Agreements,03/03/2017,3835429,"8,332.00",Society Links
Children's Services,Children's Social Care,Children Looked After,S23-Other-Semi-Ind. Unit,Childrens Act Section 23 - Placement Fee,03/03/2017,3835598,"3,712.00",Inclusive Care Support Ltd
Children's Services,Children's Social Care,Children Looked After,S23-Other-Semi-Ind. Unit,Childrens Act Section 23 - Placement Fee,03/03/2017,3835601,"2,900.00",Inclusive Care Support Ltd
Children's Services,Children's Social Care,Children Looked After,S23-Other-Semi-Ind. Unit,Childrens Act Section 23 - Placement Fee,03/03/2017,3835611,"2,900.00",Inclusive Care Support Ltd
Children's Services,Children's Social Care,Support Service and Management Costs,Building Cleaning,Materials - Cleaning Materials,03/03/2017,3838072,"3,336.42",The Maintenance Supply Co Ltd
Children's Services,Children's Social Care,Children Looked After,Leaving Care-UASC,Leaving Care Financial Assistance - Supp Accom/Hous Rents,03/03/2017,3838088,"1,181.52",Newhaven 16 Plus
Children's Services,Children's Social Care,Children Looked After,Leaving Care-UASC,Leaving Care Financial Assistance - Supp Accom/Hous Rents,03/03/2017,3838089,867.20,Newhaven 16 Plus
Children's Services,Children's Social Care,Children Looked After,LCS/Allowances-Accom,Leaving Care Financial Assistance - Supp Accom/Hous Rents,03/03/2017,3838090,"1,560.00",Newhaven 16 Plus
Children's Services,Children's Social Care,Children Looked After,LCS/Allowances-Accom,Leaving Care Financial Assistance - Supp Accom/Hous Rents,03/03/2017,3838091,867.20,Newhaven 16 Plus
Children's Services,Children's Social Care,Children Looked After,LCS/Allowances-Accom,Leaving Care Financial Assistance - Supp Accom/Hous Rents,03/03/2017,3838092,867.20,Newhaven 16 Plus
Children's Services,Children's Social Care,Children Looked After,Leaving Care-UASC,Leaving Care Financial Assistance - Supp Accom/Hous Rents,03/03/2017,3838093,867.20,Newhaven 16 Plus
Children's Services,Children's Social Care,Children Looked After,LCS/Allowances-Accom,Leaving Care Financial Assistance - Supp Accom/Hous Rents,03/03/2017,3838094,"1,680.00",Newhaven 16 Plus
Children's Services,Children's Social Care,Children Looked After,LCS/Allowances-Accom,Leaving Care Financial Assistance - Supp Accom/Hous Rents,03/03/2017,3838096,867.20,Newhaven 16 Plus
Children's Services,Children's Social Care,Children Looked After,LCS/Allowances-Accom,Leaving Care Financial Assistance - Supp Accom/Hous Rents,03/03/2017,3838097,867.20,Newhaven 16 Plus
Children's Services,Children's Social Care,Children Looked After,Leaving Care-UASC,Leaving Care Financial Assistance - Supp Accom/Hous Rents,03/03/2017,3838098,867.20,Newhaven 16 Plus
Children's Services,Education Services,Other Strategic Functions,Special Education Needs DSG,Third Party Payments - Payments to Schools,03/03/2017,3838418,"4,648.50",Chigwell School
Children's Services,Cultural and Related Services,Culture & Heritage,Arts-Park Events,Events & Exhibition Supplies,03/03/2017,3839923,"3,071.60",Ashtead Plant Hire t/a Live Barriers
Children's Services,Children's Social Care,Children Looked After,LCS/Allowances-Accom,Leaving Care Financial Assistance - Supp Accom/Hous Rents,03/03/2017,3840042,"1,499.99",Transforming Lives Co
Children's Services,Children's Social Care,Children Looked After,S23 Fam Pl P&V-F/Care,Childrens Act Section 23 - Placement Fee,03/03/2017,3840053,"3,272.71",Link Fostering Agency
Children's Services,Education Services,Other Strategic Functions,Alternative Provision,Third Party Payments - Payments to Schools,03/03/2017,3840178,"2,700.00",RAINES FOUNDATION SCHOOL
Children's Services,Children's Social Care,Family Support Services,CNN Pool: Joint Family Support,Social Care - Homecare,03/03/2017,3840468,"22,218.60",APASENTH
Children's Services,Children's Social Care,Children Looked After,S23-Other-Semi-Ind. Unit,Childrens Act Section 23 - Placement Fee,03/03/2017,3840469,"1,776.80",Outward Housing
Children's Services,Education Services,Other Strategic Functions,Alternative Provision,Third Party Payments - Payments to Schools,03/03/2017,3840519,"3,000.00",Morpeth School
Children's Services,Education Services,Other Strategic Functions,Alternative Provision,Third Party Payments - Payments to Schools,03/03/2017,3840529,"3,000.00",Morpeth School
Children's Services,Children's Social Care,Children Looked After,S23 Fam Pl In-Hse-Placed Home,Childrens Act Section 23 - Spec Pymnts Legal,03/03/2017,3842027,"2,190.24",BIBBY FACTORS YORKSHIRE LTD
Children's Services,Children's Social Care,Support Service and Management Costs,Schools Catering,Tools and Equipment - Purchase,03/03/2017,3843261,500.00,Hobart UK
Children's Services,Education Services,Early Years,Children Centre Central Team,Third Party Payments - Payments to Schools,06/03/2017,3826896,"1,225.00",Comet Nursery School & Children's Centre
Children's Services,Education Services,Early Years,Collingwood,Materials - Cleaning Materials,06/03/2017,3827241,738.16,Office Depot (Catalogue)
Children's Services,Children's Social Care,Support Service and Management Costs,Welfare Catering,Kitchen Supplies - Food and Beverages,06/03/2017,3827295,597.03,Thomas Ridley & Son Ltd
Children's Services,Children's Social Care,Support Service and Management Costs,Schools Catering,Kitchen Supplies - Food and Beverages,06/03/2017,3827477,"1,208.23",Thomas Ridley & Son Ltd
Children's Services,Children's Social Care,Support Service and Management Costs,Schools Catering,Kitchen Supplies - Food and Beverages,06/03/2017,3827500,802.54,Thomas Ridley & Son Ltd
Children's Services,Children's Social Care,Support Service and Management Costs,Schools Catering,Kitchen Supplies - Food and Beverages,06/03/2017,3827552,631.16,Thomas Ridley & Son Ltd
Children's Services,Children's Social Care,Support Service and Management Costs,Schools Catering,Kitchen Supplies - Food and Beverages,06/03/2017,3827588,731.17,Thomas Ridley & Son Ltd
Children's Services,Children's Social Care,Support Service and Management Costs,Schools Catering,Kitchen Supplies - Food and Beverages,06/03/2017,3827592,654.75,Thomas Ridley & Son Ltd
Children's Services,Children's Social Care,Support Service and Management Costs,Schools Catering,Kitchen Supplies - Food and Beverages,06/03/2017,3827651,508.49,Thomas Ridley & Son Ltd
Children's Services,Children's Social Care,Support Service and Management Costs,Schools Catering,Kitchen Supplies - Food and Beverages,06/03/2017,3827667,643.41,Thomas Ridley & Son Ltd
Children's Services,Children's Social Care,Support Service and Management Costs,Schools Catering,Kitchen Supplies - Food and Beverages,06/03/2017,3827675,743.06,Thomas Ridley & Son Ltd
Children's Services,Children's Social Care,Support Service and Management Costs,Schools Catering,Kitchen Supplies - Food and Beverages,06/03/2017,3827677,509.38,Thomas Ridley & Son Ltd
Children's Services,Children's Social Care,Support Service and Management Costs,Schools Catering,Kitchen Supplies - Food and Beverages,06/03/2017,3827684,854.49,Thomas Ridley & Son Ltd
Children's Services,Children's Social Care,Support Service and Management Costs,Schools Catering,Kitchen Supplies - Food and Beverages,06/03/2017,3827686,664.59,Thomas Ridley & Son Ltd
Children's Services,Children's Social Care,Support Service and Management Costs,Schools Catering,Kitchen Supplies - Food and Beverages,06/03/2017,3827698,516.73,Thomas Ridley & Son Ltd
Children's Services,Children's Social Care,Support Service and Management Costs,Schools Catering,Kitchen Supplies - Food and Beverages,06/03/2017,3827701,506.25,Thomas Ridley & Son Ltd
Children's Services,Children's Social Care,Support Service and Management Costs,Schools Catering,Kitchen Supplies - Food and Beverages,06/03/2017,3827713,926.12,Thomas Ridley & Son Ltd
Children's Services,Children's Social Care,Support Service and Management Costs,Schools Catering,Kitchen Supplies - Food and Beverages,06/03/2017,3827726,712.05,Thomas Ridley & Son Ltd
Children's Services,Children's Social Care,Support Service and Management Costs,Schools Catering,Kitchen Supplies - Food and Beverages,06/03/2017,3827945,988.99,Thomas Ridley & Son Ltd
Children's Services,Children's Social Care,Support Service and Management Costs,Schools Catering,Kitchen Supplies - Food and Beverages,06/03/2017,3827949,845.26,Thomas Ridley & Son Ltd
Children's Services,Children's Social Care,Support Service and Management Costs,Schools Catering,Kitchen Supplies - Food and Beverages,06/03/2017,3827962,653.15,Thomas Ridley & Son Ltd
Children's Services,Children's Social Care,Support Service and Management Costs,Schools Catering,Kitchen Supplies - Food and Beverages,06/03/2017,3827971,833.93,Thomas Ridley & Son Ltd
Children's Services,Children's Social Care,Support Service and Management Costs,Schools Catering,Kitchen Supplies - Food and Beverages,06/03/2017,3827980,845.46,Thomas Ridley & Son Ltd
Children's Services,Children's Social Care,Support Service and Management Costs,Schools Catering,Kitchen Supplies - Food and Beverages,06/03/2017,3827989,822.72,Thomas Ridley & Son Ltd
Children's Services,Children's Social Care,Support Service and Management Costs,Schools Catering,Kitchen Supplies - Food and Beverages,06/03/2017,3827993,668.89,Thomas Ridley & Son Ltd
Children's Services,Children's Social Care,Children Looked After,S23-Resi-P&V/OLA-Sec Acc-Wel,Childrens Act Section 23 - Placement Fee,06/03/2017,3828883,"27,125.00",Devon CC (Placements)
Children's Services,Education Services,Other Strategic Functions,High Needs Academies & Free Schs,Third Party Payments - Payments to Schools,06/03/2017,3828923,"18,333.33",John F Kennedy School
Children's Services,Cultural and Related Services,Recreation & Sport,GLL Sports Centres,Payments to Private Contractors - Management Fee,06/03/2017,3830574,"178,109.59",Greenwich Leisure LTD
Children's Services,Education Services,Early Years,Overland CC,Educational/Training Supplies - Resources,06/03/2017,3830849,"1,150.00",COMMUNITY PRODUCTS (UK) LTD
Children's Services,Children's Social Care,Support Service and Management Costs,Schools Catering,Kitchen Supplies - Food and Beverages,06/03/2017,3831764,563.10,William White Meats Ltd
Children's Services,Education Services,Other Strategic Functions,Music Trading Account,Third Party Payments - Other Establishments,06/03/2017,3833527,"1,500.00",Auto Italia South East
Children's Services,Children's Social Care,Children Looked After,S23-Resi-P&V/OLA-Child Home,Childrens Act Section 23 - Placement Fee,06/03/2017,3833574,"2,332.00",Horizon Residential Homes LTD
Children's Services,Children's Social Care,Support Service and Management Costs,Schools Catering,Kitchen Supplies - Food and Beverages,06/03/2017,3834516,536.95,William White Meats Ltd
Children's Services,Children's Social Care,Support Service and Management Costs,Schools Catering,Kitchen Supplies - Food and Beverages,06/03/2017,3834521,560.55,William White Meats Ltd
Children's Services,Children's Social Care,Support Service and Management Costs,Schools Catering,Kitchen Supplies - Food and Beverages,06/03/2017,3834922,517.85,William White Meats Ltd
Children's Services,Children's Social Care,Support Service and Management Costs,Schools Catering,Kitchen Supplies - Food and Beverages,06/03/2017,3834927,504.38,William White Meats Ltd
Children's Services,Children's Social Care,Support Service and Management Costs,Schools Catering,Kitchen Supplies - Food and Beverages,06/03/2017,3834934,595.30,William White Meats Ltd
Children's Services,Children's Social Care,Children Looked After,LCS/Allowances-Accom,Leaving Care Financial Assistance - Supp Accom/Hous Rents,06/03/2017,3838169,867.20,Newhaven 16 Plus
Children's Services,Children's Social Care,Children Looked After,LCS/Allowances-Accom,Leaving Care Financial Assistance - Supp Accom/Hous Rents,06/03/2017,3838170,-976.89,Newhaven 16 Plus
Children's Services,Children's Social Care,Children Looked After,LCS/Allowances-Accom,Leaving Care Financial Assistance - Supp Accom/Hous Rents,06/03/2017,3838172,-770.48,Newhaven 16 Plus
Children's Services,Children's Social Care,Children Looked After,LCS/Allowances-Accom,Leaving Care Financial Assistance - Supp Accom/Hous Rents,06/03/2017,3838174,-622.22,Newhaven 16 Plus
Children's Services,Children's Social Care,Children Looked After,LCS/Allowances-Accom,Leaving Care Financial Assistance - Supp Accom/Hous Rents,06/03/2017,3838177,"3,292.80",Newhaven 16 Plus
Children's Services,Children's Social Care,Children Looked After,LCS/Allowances-Accom,Leaving Care Financial Assistance - Supp Accom/Hous Rents,06/03/2017,3838188,"-1,090.80",Newhaven 16 Plus
Children's Services,Children's Social Care,Children Looked After,LCS/Allowances-Accom,Leaving Care Financial Assistance - Supp Accom/Hous Rents,06/03/2017,3838417,"1,850.00",Real Life
Children's Services,Children's Social Care,Children Looked After,LCS/Allowances-Accom,Leaving Care Financial Assistance - Supp Accom/Hous Rents,06/03/2017,3838456,"6,310.71",Inclusive Care Support Ltd
Children's Services,Children's Social Care,Children Looked After,LCS/Allowances-Accom,Leaving Care Financial Assistance - Supp Accom/Hous Rents,06/03/2017,3838482,"5,700.00",Inclusive Care Support Ltd
Children's Services,Adult Social Care,Support Service and Management Costs,Org Development L&D Training,Training Expenses - Staff External Training (UK Based),06/03/2017,3839943,"2,775.00",Edge Training and Consultancy Ltd
Children's Services,Children's Social Care,Children Looked After,LCS/Allowances-Accom,Leaving Care Financial Assistance - Supp Accom/Hous Rents,06/03/2017,3839978,"1,990.10",Netpex
Children's Services,Children's Social Care,Children Looked After,S23 Fam Pl P&V-F/Care,Childrens Act Section 23 - Placement Fee,06/03/2017,3843155,"3,914.68",Fostering Outcomes Ltd
Children's Services,Children's Social Care,Children Looked After,S23 Fam Pl P&V-F/Care,Childrens Act Section 23 - Placement Fee,06/03/2017,3843177,"3,145.88",Children First Fostering Agency LTD
Children's Services,Education Services,Other Strategic Functions,Schools Library,Events & Exhibition Supplies,06/03/2017,3843179,"4,400.00",The Poetry Society
Children's Services,Children's Social Care,Children Looked After,S23 Fam Pl P&V-F/Care,Childrens Act Section 23 - Placement Fee,06/03/2017,3843273,"3,587.01",Integrated Fostering Services Ltd
Children's Services,Children's Social Care,Children Looked After,S23 Fam Pl P&V-F/Care,Childrens Act Section 23 - Placement Fee,06/03/2017,3843291,"3,145.88",Children First Fostering Agency LTD
Children's Services,Children's Social Care,Family Support Services,Family Intervention Programme,Training Expenses - Other Internal Training,06/03/2017,3843488,600.00,REDACTED SECTION 40 FOI ACT
Children's Services,Children's Social Care,Family Support Services,Family Intervention Programme,Training Expenses - Other Internal Training,06/03/2017,3843489,"1,200.00",REDACTED SECTION 40 FOI ACT
Children's Services,Education Services,Early Years,Meath Gdns C.C. -SLA,Water Services - Metered,06/03/2017,3843505,966.19,Thames Water Utilities LTD
Children's Services,Cultural and Related Services,Open Spaces,Victoria Park,Water Services - Metered,06/03/2017,3843509,"5,362.23",CASTLE WATER
Children's Services,Education Services,Early Years,EYS Mainstream Grants,Third Party Payments - Voluntary Associations,06/03/2017,3843808,"1,292.82",Allen Gardens Playgroup
Children's Services,Education Services,Early Years,EYS Mainstream Grants,Third Party Payments - Voluntary Associations,06/03/2017,3843809,"1,723.75",Avebury Playgroup
Children's Services,Education Services,Early Years,EYS Mainstream Grants,Third Party Payments - Voluntary Associations,06/03/2017,3843810,"1,005.52",BRAYFORD SQUARE PLAYGROUP
Children's Services,Education Services,Early Years,EYS Mainstream Grants,Third Party Payments - Voluntary Associations,06/03/2017,3843811,"1,538.56",CATHOLIC CHILDREN'S SOCIETY(WESTMINSTER)
Children's Services,Education Services,Early Years,EYS Mainstream Grants,Third Party Payments - Voluntary Associations,06/03/2017,3843812,"1,436.46",ISLAND HOUSE PRE SCHOOL PLAYGROUP
Children's Services,Education Services,Early Years,EYS Mainstream Grants,Third Party Payments - Voluntary Associations,06/03/2017,3843813,"1,532.23",Lincoln Hall Playgroup
Children's Services,Education Services,Early Years,EYS Mainstream Grants,Third Party Payments - Voluntary Associations,06/03/2017,3843814,"1,723.75",Munchkins Playgroup
Children's Services,Education Services,Early Years,EYS Mainstream Grants,Third Party Payments - Voluntary Associations,06/03/2017,3843815,"1,436.46",Poplar Play Centre
Children's Services,Education Services,Early Years,EYS Mainstream Grants,Third Party Payments - Voluntary Associations,06/03/2017,3843816,"1,862.08",Rainbow House
Children's Services,Education Services,Early Years,EYS Mainstream Grants,Third Party Payments - Voluntary Associations,06/03/2017,3843817,"1,117.25",RANWELL PLAYGROUP
Children's Services,Education Services,Early Years,EYS Mainstream Grants,Third Party Payments - Voluntary Associations,06/03/2017,3843819,"2,926.13",Tower Hamlets Opportunity Group
Children's Services,Education Services,Early Years,EYS Mainstream Grants,Third Party Payments - Voluntary Associations,06/03/2017,3843820,"1,005.52",VERNON PLAYGROUP
Children's Services,Education Services,Early Years,EYS Mainstream Grants,Third Party Payments - Voluntary Associations,06/03/2017,3843821,"2,636.80",WAPPING PLAYGROUP
Children's Services,Children's Social Care,Support Service and Management Costs,Welfare Catering,Kitchen Supplies - Food and Beverages,08/03/2017,3828870,944.33,Thomas Ridley & Son Ltd
Children's Services,Children's Social Care,Support Service and Management Costs,Schools Catering,Kitchen Supplies - Food and Beverages,08/03/2017,3829069,-653.15,Thomas Ridley & Son Ltd
Children's Services,Children's Social Care,Support Service and Management Costs,Schools Catering,Kitchen Supplies - Food and Beverages,08/03/2017,3829662,"1,278.74",Thomas Ridley & Son Ltd
Children's Services,Children's Social Care,Support Service and Management Costs,Schools Catering,Kitchen Supplies - Food and Beverages,08/03/2017,3829717,503.08,Thomas Ridley & Son Ltd
Children's Services,Children's Social Care,Support Service and Management Costs,Schools Catering,Kitchen Supplies - Food and Beverages,08/03/2017,3829750,676.67,Thomas Ridley & Son Ltd
Children's Services,Children's Social Care,Support Service and Management Costs,Schools Catering,Kitchen Supplies - Food and Beverages,08/03/2017,3829753,640.95,Thomas Ridley & Son Ltd
Children's Services,Children's Social Care,Support Service and Management Costs,Schools Catering,Kitchen Supplies - Food and Beverages,08/03/2017,3829762,"1,550.73",Thomas Ridley & Son Ltd
Children's Services,Children's Social Care,Support Service and Management Costs,Schools Catering,Kitchen Supplies - Food and Beverages,08/03/2017,3829789,"1,174.61",Thomas Ridley & Son Ltd
Children's Services,Children's Social Care,Support Service and Management Costs,Schools Catering,Kitchen Supplies - Food and Beverages,08/03/2017,3829801,945.18,Thomas Ridley & Son Ltd
Children's Services,Cultural and Related Services,Open Spaces,Victoria Park,Services - Professional Fees - Security Fees,08/03/2017,3829900,"14,580.45",OCS T/A LEGION
Children's Services,Children's Social Care,Support Service and Management Costs,Schools Catering,Kitchen Supplies - Food and Beverages,08/03/2017,3830010,523.09,Thomas Ridley & Son Ltd
Children's Services,Children's Social Care,Support Service and Management Costs,Schools Catering,Kitchen Supplies - Food and Beverages,08/03/2017,3830023,565.02,Thomas Ridley & Son Ltd
Children's Services,Children's Social Care,Support Service and Management Costs,Schools Catering,Kitchen Supplies - Food and Beverages,08/03/2017,3830035,"1,172.85",Thomas Ridley & Son Ltd
Children's Services,Children's Social Care,Support Service and Management Costs,Schools Catering,Kitchen Supplies - Food and Beverages,08/03/2017,3830048,"1,158.46",Thomas Ridley & Son Ltd
Children's Services,Children's Social Care,Support Service and Management Costs,Schools Catering,Kitchen Supplies - Food and Beverages,08/03/2017,3830053,598.95,Thomas Ridley & Son Ltd
Children's Services,Children's Social Care,Support Service and Management Costs,Schools Catering,Kitchen Supplies - Food and Beverages,08/03/2017,3830069,647.31,Thomas Ridley & Son Ltd
Children's Services,Children's Social Care,Support Service and Management Costs,Schools Catering,Kitchen Supplies - Food and Beverages,08/03/2017,3830077,615.93,Thomas Ridley & Son Ltd
Children's Services,Children's Social Care,Support Service and Management Costs,Schools Catering,Kitchen Supplies - Food and Beverages,08/03/2017,3830099,568.33,Thomas Ridley & Son Ltd
Children's Services,Children's Social Care,Support Service and Management Costs,Schools Catering,Kitchen Supplies - Food and Beverages,08/03/2017,3830117,"1,293.73",Thomas Ridley & Son Ltd
Children's Services,Children's Social Care,Support Service and Management Costs,Schools Catering,Kitchen Supplies - Food and Beverages,08/03/2017,3830142,729.60,Thomas Ridley & Son Ltd
Children's Services,Children's Social Care,Support Service and Management Costs,Schools Catering,Kitchen Supplies - Food and Beverages,08/03/2017,3830166,585.81,Thomas Ridley & Son Ltd
Children's Services,Children's Social Care,Children Looked After,Fostering Support,Social Care - Prevention & Support,08/03/2017,3830467,"1,020.00",Poplar HARCA LTD
Children's Services,Children's Social Care,Services for young people,Youth Service Management,Room Hire,08/03/2017,3830469,"20,833.34",Poplar HARCA LTD
Children's Services,Children's Social Care,Services for young people,Youth Service Management,Room Hire,08/03/2017,3830470,"30,000.00",Poplar HARCA LTD
Children's Services,Children's Social Care,Services for young people,Youth Service Management,SLA Services (Expenditure) - Service Level Agreements,08/03/2017,3830471,"20,833.50",Poplar HARCA LTD
Children's Services,Children's Social Care,Services for young people,Youth Service Management,SLA Services (Expenditure) - Service Level Agreements,08/03/2017,3830472,"20,833.50",Poplar HARCA LTD
Children's Services,Children's Social Care,Services for young people,Youth Service Management,SLA Services (Expenditure) - Service Level Agreements,08/03/2017,3830473,"20,833.50",Poplar HARCA LTD
Children's Services,Children's Social Care,Services for young people,Youth Service Management,SLA Services (Expenditure) - Service Level Agreements,08/03/2017,3830474,"20,833.50",Poplar HARCA LTD
Children's Services,Children's Social Care,Children Looked After,S23 Fam Pl P&V-F/Care,Childrens Act Section 23 - Placement Fee,08/03/2017,3830508,"5,038.88",Barnardo's
Children's Services,Children's Social Care,Children Looked After,Virtual School PPG,Agency Staff - Associations,08/03/2017,3830532,687.00,Academics ltd
Children's Services,Children's Social Care,Children Looked After,Virtual School PPG,Agency Staff - Associations,08/03/2017,3830533,916.00,Academics ltd
Children's Services,Children's Social Care,Children Looked After,Virtual School PPG,Agency Staff - Associations,08/03/2017,3830534,"1,145.00",Academics ltd
Children's Services,Children's Social Care,Children Looked After,Virtual School PPG,Agency Staff - Associations,08/03/2017,3830535,916.00,Academics ltd
Children's Services,Children's Social Care,Children Looked After,Virtual School PPG,Agency Staff - Associations,08/03/2017,3830536,916.00,Academics ltd
Children's Services,Education Services,Other Strategic Functions,Special Education Needs DSG,Third Party Payments - Payments to Schools,08/03/2017,3830627,"3,726.10",St Elizabeth's Centre
Children's Services,Children's Social Care,Children Looked After,S23-Resi-P&V/OLA-Boarding Sch,Childrens Act Section 23 - Placement Fee,08/03/2017,3830627,"3,726.10",St Elizabeth's Centre
Children's Services,Education Services,Other Strategic Functions,Alternative Provision,Services - Professional Fees - Consultants Fees,08/03/2017,3831012,"3,000.00",JPW CONSULTANCY SERVICES LTD
Children's Services,Children's Social Care,Children Looked After,Virtual School PPG,Third Party Payments - Payments to Schools,08/03/2017,3831043,700.00,Priory School
Children's Services,Education Services,Other Strategic Functions,SLS - SEN Training SLA,Education & Training - Non Staff Tuition Fees,08/03/2017,3831644,"1,210.00",The Signalong Group
Children's Services,Children's Social Care,Children Looked After,S23 Fam Pl Fost/Adop Advert,Childrens Act Section 23 - Spec Pymnts Advertising,08/03/2017,3831658,990.00,CWT Advertising LTD
Children's Services,Children's Social Care,Support Service and Management Costs,Schools Catering,Kitchen Supplies - Food and Beverages,08/03/2017,3831811,912.46,William White Meats Ltd
Children's Services,Children's Social Care,Service Strategy,CSC Childrens Resources M & A,Childrens Act Section 23 - Placement Fee,08/03/2017,3834480,525.00,Brighter Future Solutions
Children's Services,Education Services,Early Years,Overland CC,Office Furniture/Equipment,08/03/2017,3837067,675.00,ESPO
Children's Services,Education Services,Other Strategic Functions,High Needs Other Boroughs,Third Party Payments - Payments to Schools,08/03/2017,3838063,"1,430.00",London Borough Of Redbridge
Children's Services,Education Services,Early Years,John Smith CC,Community Equipment  Supplies - Aids and Appliances,08/03/2017,3839956,"2,651.50",Early Excellence
Children's Services,Children's Social Care,Children Looked After,S23 Fam Pl P&V-F/Care,Childrens Act Section 23 - Placement Fee,08/03/2017,3840052,"1,161.29",Link Fostering Agency
Children's Services,Children's Social Care,Children Looked After,LCS/Allowances-Accom,Leaving Care Financial Assistance - Supp Accom/Hous Rents,08/03/2017,3840425,"1,850.00",Real Life
Children's Services,Children's Social Care,Children Looked After,S23 Fam Pl P&V-F/Care,Childrens Act Section 23 - Placement Fee,08/03/2017,3840433,"1,625.00",Ryancare Fostering Ltd
Children's Services,Children's Social Care,Other Children's and Family Services,Permanent Placements,Newspapers and Magazines - General Purchases,08/03/2017,3842123,"1,250.00",Adoption UK
Children's Services,Children's Social Care,Children Looked After,S23-Resi-P&V/OLA-Sec Acc-Wel,Childrens Act Section 23 - Non-Contact Taxi Costs,08/03/2017,3842127,"2,353.49",Wrixon Care Services
Children's Services,Children's Social Care,Children Looked After,S23-Resi-P&V/OLA-Sec Acc-Wel,Childrens Act Section 23 - Non-Contact Taxi Costs,08/03/2017,3842128,"2,085.50",Wrixon Care Services
Children's Services,Children's Social Care,Children Looked After,S23-Resi-P&V/OLA-Child Home,Childrens Act Section 23 - Non-Contact Taxi Costs,08/03/2017,3842129,"1,491.50",Wrixon Care Services
Children's Services,Children's Social Care,Family Support Services,IPST S17 NRPF,Childrens Act Section 17 - Other Placements Bed & Breakfast,08/03/2017,3842131,"1,120.00",Apolonia Property Services (Exodus Housing)
Children's Services,Children's Social Care,Family Support Services,IPST S17 NRPF,Childrens Act Section 17 - Other Placements Bed & Breakfast,08/03/2017,3842180,952.00,Apolonia Property Services (Exodus Housing)
Children's Services,Children's Social Care,Family Support Services,IPST S17 NRPF,Childrens Act Section 17 - Other Placements Bed & Breakfast,08/03/2017,3842190,"1,120.00",Apolonia Property Services (Exodus Housing)
Children's Services,Children's Social Care,Family Support Services,IPST S17 NRPF,Childrens Act Section 17 - Other Placements Bed & Breakfast,08/03/2017,3842193,"1,120.00",Apolonia Property Services (Exodus Housing)
Children's Services,Children's Social Care,Children Looked After,Staying Put,Childrens Act Section 23 - Placement Fee,08/03/2017,3843174,"1,749.33",Children First Fostering Agency LTD
Children's Services,Children's Social Care,Children Looked After,S23 Fam Pl P&V-F/Care,Childrens Act Section 23 - Placement Fee,08/03/2017,3843175,"3,173.78",Children First Fostering Agency LTD
Children's Services,Children's Social Care,Children Looked After,S23 Fam Pl P&V-F/Care,Childrens Act Section 23 - Placement Fee,08/03/2017,3843176,"3,454.33",Children First Fostering Agency LTD
Children's Services,Children's Social Care,Children Looked After,S23 Fam Pl P&V-F/Care,Childrens Act Section 23 - Placement Fee,08/03/2017,3843235,"3,629.17",Child Focus Fostering Agency Ltd
Children's Services,Children's Social Care,Children Looked After,S23 Fam Pl P&V-F/Care,Childrens Act Section 23 - Placement Fee,08/03/2017,3843272,"3,587.01",Integrated Fostering Services Ltd
Children's Services,Children's Social Care,Children Looked After,S23 Fam Pl P&V-F/Care,Childrens Act Section 23 - Placement Fee,08/03/2017,3843290,"3,189.90",Children First Fostering Agency LTD
Children's Services,Children's Social Care,Children Looked After,S23 Fam Pl P&V-F/Care,Childrens Act Section 23 - Placement Fee,08/03/2017,3843303,"3,447.82",Child Focus Fostering Agency Ltd
Children's Services,Education Services,Other Strategic Functions,Music Trading Account,Third Party Payments - Other Establishments,08/03/2017,3843577,"5,000.00",CITY OF LONDON SINFONIA
Children's Services,Children's Social Care,Children Looked After,Virtual School PPG,Training Expenses - Staff External Training (UK Based),08/03/2017,3844055,660.00,Academy21 Limited
Children's Services,Children's Social Care,Children Looked After,S23 Fam Pl P&V-F/Care,Childrens Act Section 23 - Commissioned Services,08/03/2017,3844212,847.00,S Smith Social Work Services Ltd
Children's Services,Children's Social Care,Children Looked After,S23 Fam Pl P&V-F/Care,Childrens Act Section 23 - Placement Fee,10/03/2017,3796310,"1,780.30",Scope
Children's Services,Children's Social Care,Children Looked After,S23 Fam Pl P&V-F/Care,Childrens Act Section 23 - Placement Fee,10/03/2017,3813648,"1,780.30",Scope
Children's Services,Cultural and Related Services,Recreation & Sport,Mayors Cup,Recreational Activities,10/03/2017,3830540,600.00,Cafe Bite
Children's Services,Cultural and Related Services,Open Spaces,Parks & Open Spaces Man&Admin,Payments to Private Contractors - Private Contractor,10/03/2017,3830569,"7,500.00",Mudchute Association
Children's Services,Cultural and Related Services,Open Spaces,Parks & Open Spaces Man&Admin,Payments to Private Contractors - Private Contractor,10/03/2017,3830570,"15,000.00",Mudchute Association
Children's Services,Children's Social Care,Support Service and Management Costs,Schools Catering,Kitchen Supplies - Food and Beverages,10/03/2017,3830685,870.36,Thomas Ridley & Son Ltd
Children's Services,Children's Social Care,Services for young people,Connexions General Fund,Comms - Telephone Rental - Phones,10/03/2017,3831638,663.00,Agilisys Professional Services
Children's Services,Children's Social Care,Services for young people,LAPS 1 - 8,Comms - Telephone Rental - Phones,10/03/2017,3831638,"1,058.48",Agilisys Professional Services
Children's Services,Children's Social Care,Children Looked After,S23 Fam Pl P&V-F/Care,Childrens Act Section 23 - Placement Fee,10/03/2017,3831641,"3,072.16",Next Step Fostering Services Ltd
Children's Services,Children's Social Care,Children Looked After,Virtual School PPG,Computing - Purchase of Hardware,10/03/2017,3833413,"7,100.00",Misco
Children's Services,Children's Social Care,Commissioning and Social Work,Advice and Assessment Team,Services - Professional Fees - Consultants Fees,10/03/2017,3834418,660.00,Agilisys Professional Services
Children's Services,Children's Social Care,Family Support Services,CNN Pool: Joint Family Support,Social Care - Prevention & Support,10/03/2017,3834997,"1,187.50",A. A. Agency Ltd
Children's Services,Cultural and Related Services,Culture & Heritage,Youth Arts,Computing - Purchase of Hardware,10/03/2017,3835010,952.00,Jigsaw Systems Limited
Children's Services,Children's Social Care,Support Service and Management Costs,Schools Catering,Kitchen Supplies - Food and Beverages,10/03/2017,3835093,599.13,William White Meats Ltd
Children's Services,Children's Social Care,Support Service and Management Costs,Schools Catering,Kitchen Supplies - Food and Beverages,10/03/2017,3835163,577.70,William White Meats Ltd
Children's Services,Children's Social Care,Support Service and Management Costs,Schools Catering,Kitchen Supplies - Food and Beverages,10/03/2017,3835165,797.86,William White Meats Ltd
Children's Services,Cultural and Related Services,Open Spaces,Stepney Green,Services - Professional Fees - Security Fees,10/03/2017,3835481,"6,914.88",A P Security (North) LTD
Children's Services,Children's Social Care,Youth Justice,Partnerships,Computing - Purchase of Hardware,10/03/2017,3837084,597.00,Ignite Service Provider Ltd
Children's Services,Children's Social Care,Children Looked After,LCS/Allowances-Accom,Leaving Care Financial Assistance - Supp Accom/Hous Rents,10/03/2017,3838099,867.20,Newhaven 16 Plus
Children's Services,Children's Social Care,Services for young people,LAPS 1 - 8,Educational/Training Supplies - Curriculum Visits/Activities,10/03/2017,3838105,"2,805.83",Marwell Activity Centre
Children's Services,Cultural and Related Services,Culture & Heritage,Filming,Subscriptions - Associations,10/03/2017,3838106,600.00,Canvas Events Ltd
Children's Services,Children's Social Care,Children Looked After,Virtual School PPG,Training Expenses - Staff External Training (UK Based),10/03/2017,3839934,995.00,Edudata UK Ltd
Children's Services,Education Services,Other Strategic Functions,Alternative Provision,Training Expenses - Staff External Training (UK Based),10/03/2017,3840456,798.00,CAPITA BUSINESS SERVICES LTD
Children's Services,Education Services,Other Strategic Functions,Alternative Provision,Third Party Payments - Payments to Schools,10/03/2017,3842266,"3,000.00",Sir John Cass Foundation&Redcoat School
Children's Services,Education Services,Other Strategic Functions,Alternative Provision,Third Party Payments - Payments to Schools,10/03/2017,3843085,"3,000.00",LANGDON PARK SCHOOL
Children's Services,Children's Social Care,Children Looked After,S23 Fam Pl P&V-F/Care,Childrens Act Section 23 - Placement Fee,10/03/2017,3843150,"3,072.16",Next Step Fostering Services Ltd
Children's Services,Education Services,Other Strategic Functions,Schools Library,Services - Professional Fees - Design Fees,10/03/2017,3843163,"6,250.00",Authors Aloud
Children's Services,Education Services,Other Strategic Functions,Pupil & Student Services GF,Non Staff Transport Costs - Client Transport Costs,10/03/2017,3843924,"1,995.00",Lindel Services LTD - T/A Fox Transport
Children's Services,Education Services,Other Strategic Functions,SEN External Travel,Non Staff Transport Costs - Reimbursement,10/03/2017,3843929,"9,205.00",Mile End Car Hire Limited
Children's Services,Education Services,Other Strategic Functions,SEN External Travel,Non Staff Transport Costs - Reimbursement,10/03/2017,3844091,"21,494.00",Mile End Car Hire Limited
Children's Services,Children's Social Care,Support Service and Management Costs,Welfare Catering,Kitchen Supplies - Food and Beverages,10/03/2017,3845654,"1,259.91",Raj Foods LTD
Children's Services,Education Services,Early Years,Ocean CC,Storage Costs,10/03/2017,3845801,600.00,Grays Removals
Children's Services,Cultural and Related Services,Culture & Heritage,Brady Arts Centre,Gas,10/03/2017,3846591,761.22,CORONA ENERGY RETAIL 4 LIMITED
Children's Services,Cultural and Related Services,Open Spaces,Parks & Open Spaces Man&Admin,Gas,10/03/2017,3846608,552.09,CORONA ENERGY RETAIL 4 LIMITED
Children's Services,Education Services,Other Strategic Functions,Empty Properties,Gas,10/03/2017,3846764,"1,017.81",CORONA ENERGY RETAIL 4 LIMITED
Children's Services,Cultural and Related Services,Open Spaces,Parks & Open Spaces Man&Admin,Gas,10/03/2017,3846771,721.89,CORONA ENERGY RETAIL 4 LIMITED
Children's Services,Cultural and Related Services,Culture & Heritage,Brady Arts Centre,Gas,10/03/2017,3846785,"1,219.15",CORONA ENERGY RETAIL 4 LIMITED
Children's Services,Children's Social Care,Children Looked After,12 Norman Grove,Gas,10/03/2017,3846818,529.77,CORONA ENERGY RETAIL 4 LIMITED
Children's Services,Children's Social Care,Family Support Services,Eva Armsby Family Centre,Gas,10/03/2017,3846859,535.05,CORONA ENERGY RETAIL 4 LIMITED
Children's Services,Children's Social Care,Other Children's and Family Services,Permanent Placements,Social Care - Day Care,10/03/2017,3847461,"13,333.34",Slough Children's Services Trust
Children's Services,Children's Social Care,Children Looked After,S23 Fam Pl P&V-F/Care,Childrens Act Section 23 - Spec Pymnts Legal,10/03/2017,3848097,"2,434.20",Coral Community Assessments LTD
Children's Services,Children's Social Care,Support Service and Management Costs,Schools Catering,Kitchen Supplies - Food and Beverages,10/03/2017,3848215,519.08,William White Meats Ltd
Children's Services,Children's Social Care,Support Service and Management Costs,Schools Catering,Kitchen Supplies - Food and Beverages,10/03/2017,3848222,642.89,William White Meats Ltd
Children's Services,Education Services,Other Strategic Functions,Alternative Provision,Third Party Payments - Payments to Schools,10/03/2017,3848267,"3,000.00",LANGDON PARK SCHOOL
Children's Services,Education Services,Other Strategic Functions,Alternative Provision,Third Party Payments - Payments to Schools,10/03/2017,3848271,"3,000.00",Lawdale Junior School
Children's Services,Education Services,Other Strategic Functions,Alternative Provision,Third Party Payments - Payments to Schools,10/03/2017,3848275,"3,000.00",ST Pauls Way Trust School
Children's Services,Children's Social Care,Support Service and Management Costs,Welfare Catering,Kitchen Supplies - Food and Beverages,13/03/2017,3830846,679.95,Thomas Ridley & Son Ltd
Children's Services,Children's Social Care,Children Looked After,Leaving Care-UASC,Leaving Care Financial Assistance - Supp Accom/Hous Rents,13/03/2017,3830942,"2,406.15",Light Touch Accomodation Ltd
Children's Services,Children's Social Care,Children Looked After,Leaving Care-UASC,Leaving Care Financial Assistance - Supp Accom/Hous Rents,13/03/2017,3830943,"2,406.15",Light Touch Accomodation Ltd
Children's Services,Children's Social Care,Children Looked After,Leaving Care-UASC,Leaving Care Financial Assistance - Supp Accom/Hous Rents,13/03/2017,3830946,"2,406.15",Light Touch Accomodation Ltd
Children's Services,Children's Social Care,Children Looked After,Leaving Care-UASC,Leaving Care Financial Assistance - Supp Accom/Hous Rents,13/03/2017,3830947,"2,406.15",Light Touch Accomodation Ltd
Children's Services,Children's Social Care,Children Looked After,Leaving Care-UASC,Leaving Care Financial Assistance - Supp Accom/Hous Rents,13/03/2017,3830948,"2,406.15",Light Touch Accomodation Ltd
Children's Services,Children's Social Care,Children Looked After,Leaving Care-UASC,Leaving Care Financial Assistance - Supp Accom/Hous Rents,13/03/2017,3830949,"2,406.15",Light Touch Accomodation Ltd
Children's Services,Children's Social Care,Children Looked After,Leaving Care-UASC,Leaving Care Financial Assistance - Supp Accom/Hous Rents,13/03/2017,3831013,"2,406.15",Light Touch Accomodation Ltd
Children's Services,Children's Social Care,Children Looked After,Leaving Care-UASC,Leaving Care Financial Assistance - Supp Accom/Hous Rents,13/03/2017,3831045,"2,406.15",Light Touch Accomodation Ltd
Children's Services,Children's Social Care,Children Looked After,Leaving Care-UASC,Leaving Care Financial Assistance - Supp Accom/Hous Rents,13/03/2017,3831055,"2,406.15",Light Touch Accomodation Ltd
Children's Services,Children's Social Care,Support Service and Management Costs,Schools Catering,Kitchen Supplies - Food and Beverages,13/03/2017,3831760,842.04,Thomas Ridley & Son Ltd
Children's Services,Children's Social Care,Support Service and Management Costs,Building Cleaning,Contract Cleaning,13/03/2017,3834455,560.00,Lewis & Graves Partnership
Children's Services,Children's Social Care,Children Looked After,S23 Family Placements P&V,Childrens Act Section 23 - Placement Fee,13/03/2017,3835170,"4,400.00",Scope
Children's Services,Education Services,Other Strategic Functions,Childrens Commissioning,Services - Professional Fees - Consultants Fees,13/03/2017,3835171,"12,475.00",EDGE PUBLIC SOLUTIONS LTD
Children's Services,Cultural and Related Services,Culture & Heritage,Youth Arts,Computing - Purchase of Hardware,13/03/2017,3835552,"3,844.00",Jigsaw Systems Limited
Children's Services,Children's Social Care,Children Looked After,S23 Fam Pl P&V-F/Care,Childrens Act Section 23 - Placement Fee,13/03/2017,3838009,"4,800.04",Scope
Children's Services,Children's Social Care,Children Looked After,S23 Fam Pl P&V-F/Care,Childrens Act Section 23 - Placement Fee,13/03/2017,3843513,"1,608.01",Scope
Children's Services,Education Services,Other Strategic Functions,SEN External Travel,Non Staff Transport Costs - Reimbursement,13/03/2017,3843925,"46,166.00",Lindel Services LTD - T/A Fox Transport
Children's Services,Education Services,Other Strategic Functions,SEN External Travel,Non Staff Transport Costs - Reimbursement,13/03/2017,3843962,"30,364.00",TKG LTD T/A The Keen Group
Children's Services,Children's Social Care,Children Looked After,S23-Resi-P&V/OLA-Child Home,Childrens Act Section 23 - Placement Fee,13/03/2017,3844052,"13,285.67",The Cuckfield Care Consultancy Ltd
Children's Services,Children's Social Care,Service Strategy,CSC Childrens Resources M & A,Childrens Act Section 23 - Placement Fee,13/03/2017,3845699,"1,100.00",Brighter Future Solutions
Children's Services,Education Services,Other Strategic Functions,SEN External Travel,Non Staff Transport Costs - Reimbursement,13/03/2017,3847418,"12,646.00",Olympic (South) Ltd
Children's Services,Education Services,Other Strategic Functions,SEN External Travel,Non Staff Transport Costs - Reimbursement,13/03/2017,3847451,"3,698.00",Sam's Cars
Children's Services,Education Services,Early Years,Ocean CC,Property Leases - Buildings,13/03/2017,3848102,"9,812.94",Eastend Homes LTD
Children's Services,Children's Social Care,Children Looked After,S23-Resi-P&V/OLA-Child Home,Childrens Act Section 23 - Placement Fee,13/03/2017,3848136,"3,549.64",Castle Homes Care Ltd
Children's Services,Children's Social Care,Services for young people,LAPS 1 - 8,Educational/Training Supplies - Curriculum Visits/Activities,13/03/2017,3848149,"1,480.00",London Youth
Children's Services,Children's Social Care,Children Looked After,S23-Resi-P&V/OLA-Child Home,Childrens Act Section 23 - Placement Fee,13/03/2017,3848158,"11,404.72",Ethelbert Specialist Homes LTD
Children's Services,Education Services,Other Strategic Functions,Alternative Provision,Third Party Payments - Payments to Schools,13/03/2017,3848347,"3,000.00",ARNHEM WHARF PRIMARY SCHOOL
Children's Services,Education Services,Other Strategic Functions,Alternative Provision,Third Party Payments - Payments to Schools,13/03/2017,3848358,"3,000.00",RAINES FOUNDATION SCHOOL
Children's Services,Education Services,Other Strategic Functions,Alternative Provision,Third Party Payments - Payments to Schools,13/03/2017,3848377,"3,000.00",BOW SCHOOL
Children's Services,Children's Social Care,Support Service and Management Costs,Welfare Catering,Kitchen Supplies - Food and Beverages,15/03/2017,3833471,918.27,Thomas Ridley & Son Ltd
Children's Services,Children's Social Care,Support Service and Management Costs,Schools Catering,Kitchen Supplies - Food and Beverages,15/03/2017,3833568,534.44,Thomas Ridley & Son Ltd
Children's Services,Children's Social Care,Children Looked After,S23-Resi-P&V/OLA-Child Home,Childrens Act Section 23 - Placement Fee,15/03/2017,3833627,"2,332.00",Horizon Residential Homes LTD
Children's Services,Children's Social Care,Children Looked After,Leaving Care-UASC,Leaving Care Financial Assistance - Supp Accom/Hous Rents,15/03/2017,3834471,"3,693.50",Light Touch Accomodation Ltd
Children's Services,Children's Social Care,Children Looked After,S23-Other-Semi-Ind. Unit,Childrens Act Section 23 - Placement Fee,15/03/2017,3834472,557.14,Light Touch Accomodation Ltd
Children's Services,Children's Social Care,Support Service and Management Costs,Schools Catering,Kitchen Supplies - Food and Beverages,15/03/2017,3834485,523.29,Thomas Ridley & Son Ltd
Children's Services,Children's Social Care,Support Service and Management Costs,Schools Catering,Kitchen Supplies - Food and Beverages,15/03/2017,3834500,741.52,Thomas Ridley & Son Ltd
Children's Services,Children's Social Care,Children Looked After,Virtual School PPG,Agency Staff - Associations,15/03/2017,3834991,916.00,Academics ltd
Children's Services,Children's Social Care,Children Looked After,Virtual School PPG,Agency Staff - Associations,15/03/2017,3834992,"1,145.00",Academics ltd
Children's Services,Children's Social Care,Children Looked After,Virtual School PPG,Agency Staff - Associations,15/03/2017,3834993,"1,145.00",Academics ltd
Children's Services,Children's Social Care,Children Looked After,Virtual School PPG,Agency Staff - Associations,15/03/2017,3834994,916.00,Academics ltd
Children's Services,Children's Social Care,Children Looked After,Virtual School PPG,Agency Staff - Associations,15/03/2017,3834995,916.00,Academics ltd
Children's Services,Children's Social Care,Children Looked After,S23 Fam Pl P&V-F/Care,Childrens Act Section 23 - Placement Fee,15/03/2017,3835043,"5,766.62",Moments Fostering Ltd
Children's Services,Adult Social Care,Support Service and Management Costs,Org Development L&D Training,Training Expenses - Staff External Training (UK Based),15/03/2017,3837054,925.00,Edge Training and Consultancy Ltd
Children's Services,Cultural and Related Services,Culture & Heritage,Youth Arts,Computing - Purchase of Hardware,15/03/2017,3837116,"1,715.00",Jigsaw Systems Limited
Children's Services,Children's Social Care,Children's and Young People's Safety,Child Protect Reviewing Serv.,Office Furniture/Equipment,15/03/2017,3837121,763.50,Posturite (UK) Ltd
Children's Services,Cultural and Related Services,Culture & Heritage,Youth Arts,Computing - Purchase of Hardware,15/03/2017,3837159,"2,075.00",Jigsaw Systems Limited
Children's Services,Children's Social Care,Service Strategy,Vanguard Mobile IT,Computing - Purchase of Software,15/03/2017,3838143,755.89,Specialist Computer Centres PLC
Children's Services,Education Services,Other Strategic Functions,High Needs Other Boroughs,Third Party Payments - Payments to Schools,15/03/2017,3838166,"1,925.00",London Borough Of Redbridge
Children's Services,Children's Social Care,Children Looked After,S23-Resi-P&V/OLA-Sec Acc-Wel,Childrens Act Section 23 - Non-Contact Trans/Travel Costs,15/03/2017,3839952,"1,283.74",Wrixon Care Services
Children's Services,Children's Social Care,Children Looked After,S23-Resi-P&V/OLA-Child Home,Childrens Act Section 23 - Placement Fee,15/03/2017,3840005,"15,989.40",Castle Homes Care Ltd
Children's Services,Children's Social Care,Children Looked After,LCS/Allowances-Accom,Leaving Care Financial Assistance - Supp Accom/Hous Rents,15/03/2017,3843190,960.11,Newhaven 16 Plus
Children's Services,Children's Social Care,Children Looked After,S23 Fam Pl P&V-F/Care,Childrens Act Section 23 - Placement Fee,15/03/2017,3843206,"3,039.12",Ryancare Fostering Ltd
Children's Services,Children's Social Care,Children Looked After,S23 Fam Pl P&V-F/Care,Childrens Act Section 23 - Placement Fee,15/03/2017,3843207,"3,167.08",Ryancare Fostering Ltd
Children's Services,Children's Social Care,Children Looked After,S23 Fam Pl P&V-F/Care,Childrens Act Section 23 - Placement Fee,15/03/2017,3843208,"3,500.00",Ryancare Fostering Ltd
Children's Services,Children's Social Care,Children Looked After,S23 Fam Pl P&V-F/Care,Childrens Act Section 23 - Placement Fee,15/03/2017,3843300,"3,199.00",Ryancare Fostering Ltd
Children's Services,Children's Social Care,Children Looked After,S23 Fam Pl P&V-F/Care,Childrens Act Section 23 - Placement Fee,15/03/2017,3843391,"4,200.00",Ryancare Fostering Ltd
Children's Services,Adult Social Care,Support Service and Management Costs,Org Development L&D Training,Training Expenses - Staff External Training (UK Based),15/03/2017,3843585,925.00,Edge Training and Consultancy Ltd
Children's Services,Adult Social Care,Support Service and Management Costs,Org Development L&D Training,Training Expenses - Staff External Training (UK Based),15/03/2017,3843586,925.00,Edge Training and Consultancy Ltd
Children's Services,Cultural and Related Services,Open Spaces,Mile End Park,Repairs and Maintenance - Responsive - Buildings,15/03/2017,3845630,500.00,J&L Coster (Drainage) Ltd
Children's Services,Cultural and Related Services,Open Spaces,Mile End Park,Repairs and Maintenance - Responsive - Buildings,15/03/2017,3845631,985.00,J&L Coster (Drainage) Ltd
Children's Services,Children's Social Care,Services for young people,Outdoor,Educational/Training Supplies - Curriculum Visits/Activities,15/03/2017,3845701,945.00,Mountainwise
Children's Services,Children's Social Care,Family Support Services,Eva Armsby Family Centre,Services - Professional Fees - Legal Fees/Expenses,15/03/2017,3847387,"3,314.30",Social Work Consulting
Children's Services,Education Services,Other Strategic Functions,Education Psychologists GF,Training Expenses - Staff External Training (UK Based),15/03/2017,3848118,780.00,Video Interaction Guidance hk
Children's Services,Children's Social Care,Children Looked After,S23-Resi-P&V/OLA-Child Home,Childrens Act Section 23 - Placement Fee,15/03/2017,3848214,"16,565.00",Castle Homes Care Ltd
Children's Services,Children's Social Care,Children Looked After,S23 Family Placements P&V,Childrens Act Section 23 - Placement Fee,15/03/2017,3848549,"2,356.48",Kent Homefinding and Fostering
Children's Services,Children's Social Care,Children Looked After,S23-Other-Semi-Ind. Unit,Childrens Act Section 23 - Placement Fee,15/03/2017,3848562,"12,400.00",Janailah Ltd
Children's Services,Education Services,Management and Support Services,Learning & Achievm't M&A GF,Services - Professional Fees - Consultants Fees,15/03/2017,3849108,"15,981.14",REDACTED SECTION 40 FOI ACT
Children's Services,Education Services,Other Strategic Functions,Empty Properties,Repairs and Maintenance - Responsive - Repair & Maintenance,15/03/2017,3849115,"93,830.57",Tower Hamlets Schools LTD
Children's Services,Education Services,Other Strategic Functions,Empty Properties,Repairs and Maintenance - Responsive - Repair & Maintenance,15/03/2017,3849116,"38,193.41",Tower Hamlets Schools LTD
Children's Services,Education Services,Early Years,SSEYCG Two Year Old Pilot,Third Party Payments - Voluntary Associations,15/03/2017,3849239,"2,301.25",Allen Gardens Playgroup
Children's Services,Education Services,Early Years,SSEYCG Two Year Old Pilot,Third Party Payments - Voluntary Associations,15/03/2017,3849240,"3,451.65",Burdett Estate playgroup
Children's Services,Education Services,Early Years,SSEYCG Two Year Old Pilot,Third Party Payments - Voluntary Associations,15/03/2017,3849241,"5,502.75",Calvary Charismatic Baptist Church
Children's Services,Education Services,Early Years,SSEYCG Two Year Old Pilot,Third Party Payments - Voluntary Associations,15/03/2017,3849242,"22,011.25",DATE PALM PRIMARY
Children's Services,Education Services,Early Years,SSEYCG Two Year Old Pilot,Third Party Payments - Voluntary Associations,15/03/2017,3849243,"4,102.05",Dreammaker Day Nursery
Children's Services,Education Services,Early Years,SSEYCG Two Year Old Pilot,Third Party Payments - Voluntary Associations,15/03/2017,3849244,"5,202.90",EXCELLENCE CHRISTIAN SCHOOL
Children's Services,Education Services,Early Years,SSEYCG Two Year Old Pilot,Third Party Payments - Voluntary Associations,15/03/2017,3849245,"13,457.35",CITY GATEWAY
Children's Services,Education Services,Early Years,SSEYCG Two Year Old Pilot,Third Party Payments - Voluntary Associations,15/03/2017,3849246,"24,963.30",GLOBAL KIDS DAY CARE
Children's Services,Education Services,Early Years,SSEYCG Two Year Old Pilot,Third Party Payments - Voluntary Associations,15/03/2017,3849247,"5,252.62",Headstart Nursery
Children's Services,Education Services,Early Years,SSEYCG Two Year Old Pilot,Third Party Payments - Voluntary Associations,15/03/2017,3849248,"4,052.30",Incy Wincy Stars Childcare Ltd
Children's Services,Education Services,Early Years,SSEYCG Two Year Old Pilot,Third Party Payments - Voluntary Associations,15/03/2017,3849249,"3,852.30",Iqra Pre School
Children's Services,Education Services,Early Years,SSEYCG Two Year Old Pilot,Third Party Payments - Voluntary Associations,15/03/2017,3849250,"11,169.85",Rainbow House
Children's Services,Education Services,Early Years,SSEYCG Two Year Old Pilot,Third Party Payments - Voluntary Associations,15/03/2017,3849251,"6,553.40",Kids Kingdom Nursery
Children's Services,Education Services,Early Years,SSEYCG Two Year Old Pilot,Third Party Payments - Voluntary Associations,15/03/2017,3849252,"11,355.90",Limehouse Arches Day Nursery
Children's Services,Education Services,Early Years,SSEYCG Two Year Old Pilot,Third Party Payments - Voluntary Associations,15/03/2017,3849253,"16,908.45",Lincoln Hall Playgroup
Children's Services,Education Services,Early Years,SSEYCG Two Year Old Pilot,Third Party Payments - Voluntary Associations,15/03/2017,3849254,"11,056.00",Matchbox Day Nursery Ltd
Children's Services,Education Services,Early Years,SSEYCG Two Year Old Pilot,Third Party Payments - Voluntary Associations,15/03/2017,3849256,"3,602.20",MILE END NURSERY
Children's Services,Education Services,Early Years,SSEYCG Two Year Old Pilot,Third Party Payments - Voluntary Associations,15/03/2017,3849257,"5,852.92",New Birth Day Nursery
Children's Services,Education Services,Early Years,SSEYCG Two Year Old Pilot,Third Party Payments - Voluntary Associations,15/03/2017,3849258,"1,750.87",Pepe & Friends Ltd
Children's Services,Education Services,Early Years,SSEYCG Two Year Old Pilot,Third Party Payments - Voluntary Associations,15/03/2017,3849259,"7,553.77",Precious Kids Day Nursery LTD
Children's Services,Education Services,Early Years,SSEYCG Two Year Old Pilot,Third Party Payments - Voluntary Associations,15/03/2017,3849260,550.30,Poplar Play Centre
Children's Services,Education Services,Early Years,SSEYCG Two Year Old Pilot,Third Party Payments - Voluntary Associations,15/03/2017,3849261,"10,955.95",RANWELL PLAYGROUP
Children's Services,Education Services,Early Years,SSEYCG Two Year Old Pilot,Third Party Payments - Voluntary Associations,15/03/2017,3849262,"5,794.56",CATHOLIC CHILDREN'S SOCIETY(WESTMINSTER)
Children's Services,Education Services,Early Years,SSEYCG Two Year Old Pilot,Third Party Payments - Voluntary Associations,15/03/2017,3849263,"8,254.60",Tower Hamlets Opportunity Group
Children's Services,Education Services,Early Years,SSEYCG Two Year Old Pilot,Third Party Payments - Voluntary Associations,15/03/2017,3849264,"13,156.57",VERNON PLAYGROUP
Children's Services,Education Services,Early Years,SSEYCG Two Year Old Pilot,Third Party Payments - Voluntary Associations,15/03/2017,3849265,"4,102.02",WAPPING PLAYGROUP
Children's Services,Children's Social Care,Service Strategy,89 CA Sec 17 Chld in Need WAPP,Childrens Act Section 17 - Expert Assessmt/Witness Costs,15/03/2017,3849604,"4,440.00",Guardian Training Services Ltd
Children's Services,Children's Social Care,Children Looked After,S23 Fam Pl In-Hse-S/Term F/C,Childrens Act Section 23 - Medical Expenses,15/03/2017,3849654,"1,072.61",E4 Law Limited T/A Lextox
Children's Services,Education Services,Other Strategic Functions,Music Trading Account,Third Party Payments - Other Establishments,15/03/2017,3850461,"4,410.00",Punchdrunk
Children's Services,Children's Social Care,Services for young people,Youth Service Management,Repairs and Maintenance - Responsive - Repair & Maintenance,17/03/2017,3826954,"1,090.00",JC Coster (Metalworks) Ltd
Children's Services,Education Services,Early Years,3&4 Year old PVI�s,Third Party Payments - Voluntary Associations,17/03/2017,3834301,"64,613.10",Gatehouse Educational Trust Ltd
Children's Services,Education Services,Early Years,3&4 Year old PVI�s,Third Party Payments - Voluntary Associations,17/03/2017,3834319,"50,466.60",Riverhouse Montessori Nursery
Children's Services,Children's Social Care,Support Service and Management Costs,Welfare Catering,Kitchen Supplies - Food and Beverages,17/03/2017,3835040,534.55,Thomas Ridley & Son Ltd
Children's Services,Children's Social Care,Support Service and Management Costs,Schools Catering,Kitchen Supplies - Food and Beverages,17/03/2017,3835064,839.56,Thomas Ridley & Son Ltd
Children's Services,Children's Social Care,Children Looked After,S23 Fam Pl P&V-F/Care,Childrens Act Section 23 - Placement Fee,17/03/2017,3835220,"4,200.00",St Christopher's Fellowship
Children's Services,Children's Social Care,Children Looked After,S23 Fam Pl P&V-F/Care,Childrens Act Section 23 - Placement Fee,17/03/2017,3835296,"3,780.00",St Christopher's Fellowship
Children's Services,Children's Social Care,Children Looked After,S23 Fam Pl P&V-F/Care,Childrens Act Section 23 - Placement Fee,17/03/2017,3835310,"4,200.00",St Christopher's Fellowship
Children's Services,Children's Social Care,Youth Justice,Partnerships,Computing - Purchase of Software,17/03/2017,3835453,"11,832.24",Agilisys Professional Services
Children's Services,Children's Social Care,Support Service and Management Costs,Schools Catering,Kitchen Supplies - Food and Beverages,17/03/2017,3835543,"2,563.96",William White Meats Ltd
Children's Services,Children's Social Care,Support Service and Management Costs,Welfare Catering,Kitchen Supplies - Food and Beverages,17/03/2017,3835612,511.94,William White Meats Ltd
Children's Services,Children's Social Care,Children Looked After,LCS/Allowances-Accom,Leaving Care Financial Assistance - Supp Accom/Hous Rents,17/03/2017,3838173,-727.20,Newhaven 16 Plus
Children's Services,Children's Social Care,Service Strategy,89 CA Sec 17 Chld in Need BGW,Childrens Act Section 17 - Spec Pymnts Legal,17/03/2017,3839187,585.00,PARTNER ABUSE INTERVENTIONS LTD
Children's Services,Children's Social Care,Children Looked After,S23-Resi-P&V/OLA-Sec Acc-Wel,Childrens Act Section 23 - Non-Contact Trans/Travel Costs,17/03/2017,3839953,"1,567.49",Wrixon Care Services
Children's Services,Education Services,Early Years,Overland CC,Educational/Training Supplies - Arts & Crafts,17/03/2017,3839999,735.00,Eduzone Ltd
Children's Services,Children's Social Care,Support Service and Management Costs,Welfare Catering,Kitchen Supplies - Food and Beverages,17/03/2017,3840011,"1,245.38",Raj Foods LTD
Children's Services,Education Services,Secondary Schools,PFI Hldg Account-Grouped Schoo,Payments to Private Contractors - Other Contractors,17/03/2017,3843161,"1,218,372.77",Tower Hamlets Schools LTD
Children's Services,Children's Social Care,Children Looked After,Leaving Care-UASC,Leaving Care Financial Assistance - Supp Accom/Hous Rents,17/03/2017,3843185,960.11,Newhaven 16 Plus
Children's Services,Children's Social Care,Children Looked After,LCS/Allowances-Accom,Leaving Care Financial Assistance - Supp Accom/Hous Rents,17/03/2017,3843187,557.49,Newhaven 16 Plus
Children's Services,Children's Social Care,Children Looked After,LCS/Allowances-Accom,Leaving Care Financial Assistance - Supp Accom/Hous Rents,17/03/2017,3843188,960.11,Newhaven 16 Plus
Children's Services,Children's Social Care,Children Looked After,Leaving Care-UASC,Leaving Care Financial Assistance - Supp Accom/Hous Rents,17/03/2017,3843189,960.11,Newhaven 16 Plus
Children's Services,Children's Social Care,Children Looked After,LCS/Allowances-Accom,Leaving Care Financial Assistance - Supp Accom/Hous Rents,17/03/2017,3843191,960.11,Newhaven 16 Plus
Children's Services,Children's Social Care,Children Looked After,LCS/Allowances-Accom,Leaving Care Financial Assistance - Supp Accom/Hous Rents,17/03/2017,3843192,"1,765.37",Newhaven 16 Plus
Children's Services,Children's Social Care,Children Looked After,LCS/Allowances-Accom,Leaving Care Financial Assistance - Supp Accom/Hous Rents,17/03/2017,3843295,"1,408.57",Newhaven 16 Plus
Children's Services,Children's Social Care,Children Looked After,S23-Other-Semi-Ind. Unit,Childrens Act Section 23 - Placement Fee,17/03/2017,3843700,"1,193.70",Heartwood Outreach Services Ltd
Children's Services,Education Services,Services to Young People and Other Community Learners,Further and Higher Education,Education Trust - Grant,17/03/2017,3843708,"1,500.00",Stephen Maynard & Associates
Children's Services,Children's Social Care,Children Looked After,S23-Other-Semi-Ind. Unit,Childrens Act Section 23 - Placement Fee,17/03/2017,3843736,"3,752.67",Heartwood Outreach Services Ltd
Children's Services,Children's Social Care,Children Looked After,S23-Resi-P&V/OLA-Child Home,Childrens Act Section 23 - Placement Fee,17/03/2017,3844108,"14,000.00",The Cuckfield Care Consultancy Ltd
Children's Services,Education Services,Other Strategic Functions,Schools Library,Printing - External,17/03/2017,3844128,733.94,Bertram Library Services
Children's Services,Children's Social Care,Children Looked After,S23 Fam Pl P&V-F/Care,Childrens Act Section 23 - Commissioned Services,17/03/2017,3847414,"2,205.00",Mosaic Foster Care
Children's Services,Education Services,Other Strategic Functions,Auxilary Aids,Educational/Training Supplies - Resources,17/03/2017,3848151,"2,300.00",HumanWare Europe Ltd
Children's Services,Children's Social Care,Family Support Services,IPST S17 NRPF,Childrens Act Section 17 - Other Placements Bed & Breakfast,17/03/2017,3848156,"1,550.00",UK Room (London) Ltd
Children's Services,Children's Social Care,Children Looked After,S23-Other-Semi-Ind. Unit,Childrens Act Section 23 - Placement Fee,17/03/2017,3848190,964.28,Transforming Lives Co
Children's Services,Children's Social Care,Family Support Services,IPST S17 NRPF,Childrens Act Section 17 - Other Placements Bed & Breakfast,17/03/2017,3849645,"4,000.00",Finefair Management
Children's Services,Cultural and Related Services,Culture & Heritage,Arts-Park Events,Events & Exhibition Supplies,17/03/2017,3849656,"3,624.31",Star Events Group LTD
Children's Services,Children's Social Care,Family Support Services,Eva Armsby Family Centre,Services - Professional Fees - Consultants Fees,17/03/2017,3849682,"2,017.50",PACT LTD
Children's Services,Children's Social Care,Support Service and Management Costs,Sch. Meals A/c - C.F.S. Upper (Harley Grove),Kitchen Supplies - Food and Beverages,17/03/2017,3849691,715.30,Chicken Joes
Children's Services,Education Services,Early Years,Isle of Dogs. CC,Room Hire,17/03/2017,3849752,"1,200.00",Alpha Grove Centre
Children's Services,Children's Social Care,Children Looked After,S23 Fam Pl In-Hse-For Adopt,Childrens Act Section 23 - Inter-Agency Fees,17/03/2017,3849761,750.00,ACTION FOR CHILDREN SERVICES LTD
Children's Services,Children's Social Care,Children Looked After,S23 Fam Pl In-Hse-For Adopt,Childrens Act Section 23 - Inter-Agency Fees,17/03/2017,3849762,750.00,ACTION FOR CHILDREN SERVICES LTD
Children's Services,Children's Social Care,Family Support Services,IPST S17 NRPF,Childrens Act Section 17 - Other Placements Bed & Breakfast,17/03/2017,3849787,"1,400.00",Finefair Management
Children's Services,Highways and Transport Services,Management and Support Services,Contract Services M & A,Subscriptions - Associations,17/03/2017,3849790,"10,041.95",APSE
Children's Services,Children's Social Care,Family Support Services,IPST S17 NRPF,Childrens Act Section 17 - Other Placements Bed & Breakfast,17/03/2017,3849837,"4,250.00",Finefair Management
Children's Services,Children's Social Care,Family Support Services,IPST S17 NRPF,Childrens Act Section 17 - Other Placements Bed & Breakfast,17/03/2017,3849846,"4,000.00",Finefair Management
Children's Services,Children's Social Care,Family Support Services,IPST S17 NRPF,Childrens Act Section 17 - Other Placements Bed & Breakfast,17/03/2017,3849853,"1,550.00",Finefair Management
Children's Services,Children's Social Care,Family Support Services,IPST S17 NRPF,Childrens Act Section 17 - Other Placements Bed & Breakfast,17/03/2017,3849859,"4,250.00",Finefair Management
Children's Services,Children's Social Care,Children Looked After,S23-Resi-P&V/OLA-Child Home,Childrens Act Section 23 - Expert Assessmt/Witness Costs,17/03/2017,3852066,561.60,PARENTING PROFILES LIMITED
Children's Services,Education Services,Early Years,Children Centre Central Team,SLA Services (Expenditure) - Service Level Agreements,17/03/2017,3852082,"1,490.00",AquariumGroup
Children's Services,Education Services,Other Strategic Functions,CSF-Equal.Teacher Train Init.,Education & Training - Non Staff Tuition Fees,17/03/2017,3852195,"1,000.00",University Of cumbria
Children's Services,Children's Social Care,Children Looked After,S23 Fam Pl P&V-F/Care,Childrens Act Section 23 - Non-Contact Trans/Travel Costs,17/03/2017,3852205,"10,485.40",Suffolk County Council - CYP Service
Children's Services,Education Services,Early Years,John Smith CC,Room Hire,17/03/2017,3852207,"1,200.00",SWAN HOUSING ASSOCIATION
Children's Services,Children's Social Care,Support Service and Management Costs,Building Cleaning,Training Expenses - Staff External Training (UK Based),17/03/2017,3852236,650.00,The British Institute of Cleaning Scienc
Children's Services,Children's Social Care,Children Looked After,S23 Fam Pl In-Hse-Placed Home,Childrens Act Section 23 - Expert Assessmt/Witness Costs,17/03/2017,3852300,780.00,PARENTING PROFILES LIMITED
Children's Services,Children's Social Care,Services for young people,Youth Service Management,Third Party Payments - Voluntary Associations,17/03/2017,3852990,"1,810.12",BANGLADESH FOOTBALL ASSOCIATION
Children's Services,Education Services,Other Strategic Functions,Schools Library,Services - Professional Fees - Design Fees,17/03/2017,3853038,"6,300.00",Authors Aloud
Children's Services,Children's Social Care,Other Children's and Family Services,Permanent Placements,Services - Professional Fees - Feasibility Studies,20/03/2017,3835192,550.00,Intuitive Blue Social Care Ltd
Children's Services,Children's Social Care,Children Looked After,Leaving Care-UASC,Leaving Care Financial Assistance - Supp Accom/Hous Rents,20/03/2017,3835274,"1,871.45",Light Touch Accomodation Ltd
Children's Services,Children's Social Care,Children Looked After,Leaving Care-UASC,Leaving Care Financial Assistance - Supp Accom/Hous Rents,20/03/2017,3835275,"1,374.94",Light Touch Accomodation Ltd
Children's Services,Children's Social Care,Support Service and Management Costs,Schools Catering,Kitchen Supplies - Food and Beverages,20/03/2017,3835353,650.16,Thomas Ridley & Son Ltd
Children's Services,Children's Social Care,Support Service and Management Costs,Schools Catering,Kitchen Supplies - Food and Beverages,20/03/2017,3835356,758.08,Thomas Ridley & Son Ltd
Children's Services,Children's Social Care,Support Service and Management Costs,Schools Catering,Kitchen Supplies - Food and Beverages,20/03/2017,3835358,634.11,Thomas Ridley & Son Ltd
Children's Services,Children's Social Care,Support Service and Management Costs,Schools Catering,Kitchen Supplies - Food and Beverages,20/03/2017,3835378,"1,530.04",Thomas Ridley & Son Ltd
Children's Services,Children's Social Care,Support Service and Management Costs,Schools Catering,Kitchen Supplies - Food and Beverages,20/03/2017,3835381,515.30,Thomas Ridley & Son Ltd
Children's Services,Children's Social Care,Support Service and Management Costs,Schools Catering,Kitchen Supplies - Food and Beverages,20/03/2017,3835382,707.94,Thomas Ridley & Son Ltd
Children's Services,Children's Social Care,Support Service and Management Costs,Schools Catering,Kitchen Supplies - Food and Beverages,20/03/2017,3835387,710.58,Thomas Ridley & Son Ltd
Children's Services,Children's Social Care,Support Service and Management Costs,Schools Catering,Kitchen Supplies - Food and Beverages,20/03/2017,3835392,564.77,Thomas Ridley & Son Ltd
Children's Services,Children's Social Care,Support Service and Management Costs,Schools Catering,Kitchen Supplies - Food and Beverages,20/03/2017,3835403,"1,112.73",Thomas Ridley & Son Ltd
Children's Services,Children's Social Care,Support Service and Management Costs,Schools Catering,Kitchen Supplies - Food and Beverages,20/03/2017,3835404,884.32,Thomas Ridley & Son Ltd
Children's Services,Children's Social Care,Support Service and Management Costs,Schools Catering,Kitchen Supplies - Food and Beverages,20/03/2017,3835406,544.62,Thomas Ridley & Son Ltd
Children's Services,Children's Social Care,Support Service and Management Costs,Schools Catering,Kitchen Supplies - Food and Beverages,20/03/2017,3835408,543.00,Thomas Ridley & Son Ltd
Children's Services,Children's Social Care,Support Service and Management Costs,Schools Catering,Kitchen Supplies - Food and Beverages,20/03/2017,3835410,610.79,Thomas Ridley & Son Ltd
Children's Services,Children's Social Care,Support Service and Management Costs,Schools Catering,Kitchen Supplies - Food and Beverages,20/03/2017,3835413,960.57,Thomas Ridley & Son Ltd
Children's Services,Children's Social Care,Support Service and Management Costs,Schools Catering,Kitchen Supplies - Food and Beverages,20/03/2017,3835415,"1,477.14",Thomas Ridley & Son Ltd
Children's Services,Children's Social Care,Support Service and Management Costs,Schools Catering,Kitchen Supplies - Food and Beverages,20/03/2017,3835416,798.16,Thomas Ridley & Son Ltd
Children's Services,Children's Social Care,Support Service and Management Costs,Schools Catering,Kitchen Supplies - Food and Beverages,20/03/2017,3835418,794.24,Thomas Ridley & Son Ltd
Children's Services,Children's Social Care,Support Service and Management Costs,Schools Catering,Kitchen Supplies - Food and Beverages,20/03/2017,3835421,509.13,Thomas Ridley & Son Ltd
Children's Services,Children's Social Care,Support Service and Management Costs,Schools Catering,Kitchen Supplies - Food and Beverages,20/03/2017,3835422,810.65,Thomas Ridley & Son Ltd
Children's Services,Children's Social Care,Children Looked After,S23-Resi-P&V/OLA-Child Home,Childrens Act Section 23 - Placement Fee,20/03/2017,3835477,"9,060.85",Care 2 Share 2
Children's Services,Education Services,Early Years,Children Centre Central Team,SLA Services (Expenditure) - Service Level Agreements,20/03/2017,3835512,"6,231.00",Toyhouse
Children's Services,Children's Social Care,Support Service and Management Costs,Schools Catering,Kitchen Supplies - Food and Beverages,20/03/2017,3835606,818.83,Thomas Ridley & Son Ltd
Children's Services,Children's Social Care,Support Service and Management Costs,Schools Catering,Kitchen Supplies - Food and Beverages,20/03/2017,3835637,694.44,Thomas Ridley & Son Ltd
Children's Services,Children's Social Care,Support Service and Management Costs,Schools Catering,Kitchen Supplies - Food and Beverages,20/03/2017,3835641,520.87,Thomas Ridley & Son Ltd
Children's Services,Children's Social Care,Support Service and Management Costs,Schools Catering,Kitchen Supplies - Food and Beverages,20/03/2017,3835645,"2,282.17",Thomas Ridley & Son Ltd
Children's Services,Children's Social Care,Support Service and Management Costs,Schools Catering,Kitchen Supplies - Food and Beverages,20/03/2017,3835653,"1,335.82",Thomas Ridley & Son Ltd
Children's Services,Children's Social Care,Children Looked After,S23-Resi-P&V/OLA-Child Home,Childrens Act Section 23 - Placement Fee,20/03/2017,3837034,"4,353.00",Bridge Communities Ltd
Children's Services,Children's Social Care,Commissioning and Social Work,Advice and Assessment Section 17,Childrens Act Section 17 - Expert Assessmt/Witness Costs,20/03/2017,3837230,"8,500.00",LONDON BOROUGH OF HAVERING
Children's Services,Children's Social Care,Commissioning and Social Work,Advice and Assessment Section 17,Childrens Act Section 17 - Expert Assessmt/Witness Costs,20/03/2017,3837912,"18,125.00",Miles & Partners Solicitors
Children's Services,Children's Social Care,Children Looked After,S23-Resi-P&V/OLA-Child Home,Childrens Act Section 23 - Placement Fee,20/03/2017,3838031,"12,188.40",Bridge Communities Ltd
Children's Services,Education Services,Other Strategic Functions,Music Trading Account,Third Party Payments - Other Establishments,20/03/2017,3838144,"2,050.00",Wigmore Hall Trust
Children's Services,Cultural and Related Services,Recreation & Sport,Sports Development,Recreational Activities,20/03/2017,3838159,"1,300.00",Vallance Community Sports Association
Children's Services,Education Services,Early Years,Ocean CC,Environmental Health Supplies - Baits and Poisons,20/03/2017,3838432,"2,440.00",Raptor Services Ltd
Children's Services,Children's Social Care,Services for young people,Youth Service Management,SLA Services (Expenditure) - Service Level Agreements,20/03/2017,3838469,"6,759.20",NEWARK YOUTH LONDON
Children's Services,Education Services,Early Years,Mowlem CC,Contract Cleaning,20/03/2017,3839100,591.03,Wetton Cleaning Services LTD
Children's Services,Children's Social Care,Children Looked After,Virtual School PPG,Education & Training - Non Staff Tuition Fees,20/03/2017,3840021,"1,140.00",Anchor Teaching Ltd
Children's Services,Children's Social Care,Support Service and Management Costs,Schools Catering,Kitchen Supplies - Food and Beverages,20/03/2017,3840089,709.00,William White Meats Ltd
Children's Services,Children's Social Care,Support Service and Management Costs,Schools Catering,Kitchen Supplies - Food and Beverages,20/03/2017,3840131,642.10,William White Meats Ltd
Children's Services,Children's Social Care,Support Service and Management Costs,Schools Catering,Kitchen Supplies - Food and Beverages,20/03/2017,3840155,615.14,William White Meats Ltd
Children's Services,Children's Social Care,Support Service and Management Costs,Schools Catering,Kitchen Supplies - Food and Beverages,20/03/2017,3840171,521.41,William White Meats Ltd
Children's Services,Children's Social Care,Support Service and Management Costs,Schools Catering,Kitchen Supplies - Food and Beverages,20/03/2017,3840193,619.16,William White Meats Ltd
Children's Services,Children's Social Care,Support Service and Management Costs,Schools Catering,Kitchen Supplies - Food and Beverages,20/03/2017,3840220,834.40,William White Meats Ltd
Children's Services,Children's Social Care,Support Service and Management Costs,Schools Catering,Kitchen Supplies - Food and Beverages,20/03/2017,3840237,608.80,William White Meats Ltd
Children's Services,Children's Social Care,Support Service and Management Costs,Schools Catering,Kitchen Supplies - Food and Beverages,20/03/2017,3840259,938.55,William White Meats Ltd
Children's Services,Children's Social Care,Support Service and Management Costs,Schools Catering,Kitchen Supplies - Food and Beverages,20/03/2017,3840273,755.28,William White Meats Ltd
Children's Services,Children's Social Care,Support Service and Management Costs,Schools Catering,Kitchen Supplies - Food and Beverages,20/03/2017,3840297,569.70,William White Meats Ltd
Children's Services,Education Services,Early Years,Early Years Health Project,Social Care - Nursing Care,20/03/2017,3840402,740.00,NHS SUPPLY CHAIN
Children's Services,Education Services,Other Strategic Functions,High Needs Academies & Free Schs,Third Party Payments - Payments to Schools,20/03/2017,3842148,"12,624.35",Canary Wharf College
Children's Services,Education Services,Other Strategic Functions,Children with Complex Needs,Third Party Payments - Payments to Schools,20/03/2017,3842170,"27,010.00",Tunmarsh School
Children's Services,Education Services,Secondary Schools,PFI Hldg Account-Mulberry Scho,Repairs and Maintenance - Responsive - Repair & Maintenance,20/03/2017,3844013,"1,778.50",D4E Mulberry LTD
Children's Services,Education Services,Other Strategic Functions,High Needs FE Colleges,Third Party Payments - Payments to Schools,20/03/2017,3844094,"8,698.67",Epping Forest College
Children's Services,Education Services,Secondary Schools,PFI Hldg Account-Mulberry Scho,Repairs and Maintenance - Responsive - Repair & Maintenance,20/03/2017,3844104,"1,348.50",D4E Mulberry LTD
Children's Services,Children's Social Care,Children Looked After,S23 Fam Pl In-Hse-Kinshp Care,Childrens Act Section 23 - Non-Contact Taxi Costs,20/03/2017,3845557,"1,170.00",Olympic (South) Ltd
Children's Services,Children's Social Care,Family Support Services,IPST S17 NRPF,Childrens Act Section 17 - Food Grants,20/03/2017,3845862,"2,230.10",SOCIAL SERVICES CHEVIOT HOUSE
Children's Services,Education Services,Other Strategic Functions,Special Education Needs DSG,Third Party Payments - Payments to Schools,20/03/2017,3847397,"13,344.98",DATE PALM PRIMARY
Children's Services,Children's Social Care,Services for young people,Youth Service Management,SLA Services (Expenditure) - Service Level Agreements,20/03/2017,3847478,"8,333.20",Ocean Youth Connexions
Children's Services,Education Services,Other Strategic Functions,High Needs Academies & Free Schs,Third Party Payments - Payments to Schools,20/03/2017,3847510,"4,585.00",Canary Wharf College
Children's Services,Education Services,Other Strategic Functions,Special Education Needs DSG,Third Party Payments - Payments to Schools,20/03/2017,3848107,"4,588.00",Chigwell School
Children's Services,Children's Social Care,Services for young people,Youth Service Management,Room Hire,20/03/2017,3848155,"18,000.00",Circle Housing Old Ford
Children's Services,Education Services,Other Strategic Functions,High Needs Other Boroughs,Third Party Payments - Payments to Schools,20/03/2017,3848440,"3,458.00",Gayhurst Community School
Children's Services,Education Services,Other Strategic Functions,High Needs Other Boroughs,Third Party Payments - Payments to Schools,20/03/2017,3848583,"3,458.00",Gayhurst Community School
Children's Services,Education Services,Other Strategic Functions,High Needs Academies & Free Schs,Third Party Payments - Payments to Schools,20/03/2017,3848837,"-4,585.00",Canary Wharf College
Children's Services,Children's Social Care,Support Service and Management Costs,Swanlea,Kitchen Supplies - Food and Beverages,20/03/2017,3849800,575.23,Chicken Joes
Children's Services,Children's Social Care,Support Service and Management Costs,Sch. Meals A/c - C.F.S. Upper (Harley Grove),Kitchen Supplies - Food and Beverages,20/03/2017,3849803,632.30,Chicken Joes
Children's Services,Children's Social Care,Family Support Services,CNN Pool: Children Direct Paym,Social Care - Direct Payments,20/03/2017,3852074,"2,056.47",DAVID HOWARD LTD CLIENT ACCOUNT
Children's Services,Education Services,Other Strategic Functions,High Needs Academies & Free Schs,Third Party Payments - Payments to Schools,20/03/2017,3852076,"7,292.00",Whitefield Schools and Centre
Children's Services,Children's Social Care,Children Looked After,LCS/Allowances-Accom,Leaving Care Financial Assistance - Grant Pay Special Needs,20/03/2017,3852112,"3,360.00",Silver Birch Care LTD
Children's Services,Education Services,Other Strategic Functions,High Needs Other Boroughs,Third Party Payments - Payments to Schools,20/03/2017,3852233,"9,250.00",St Bonaventure's School
Children's Services,Education Services,Other Strategic Functions,High Needs Other Boroughs,Third Party Payments - Payments to Schools,20/03/2017,3852255,"42,597.80",Blanche Neville School
Children's Services,Children's Social Care,Children Looked After,LCS/Allowances-Accom,Leaving Care Financial Assistance - Grant Pay Special Needs,20/03/2017,3852263,"2,700.00",Silver Birch Care LTD
Children's Services,Children's Social Care,Children Looked After,LCS/Allowances-Accom,Leaving Care Financial Assistance - Supp Accom/Hous Rents,20/03/2017,3852263,600.00,Silver Birch Care LTD
Children's Services,Children's Social Care,Children Looked After,S23 Family Placements P&V,Childrens Act Section 23 - Placement Fee,20/03/2017,3853090,"3,200.71",Credo Care ltd
Children's Services,Children's Social Care,Children Looked After,S23 Family Placements P&V,Childrens Act Section 23 - Placement Fee,20/03/2017,3853098,"3,034.36",Safehouses
Children's Services,Education Services,Other Strategic Functions,High Needs Academies & Free Schs,Third Party Payments - Payments to Schools,20/03/2017,3853112,"4,583.33",John F Kennedy School
Children's Services,Children's Social Care,Family Support Services,CNN Pool: Joint Family Support,Social Care - Homecare,20/03/2017,3853125,"22,549.20",APASENTH
Children's Services,Cultural and Related Services,Culture & Heritage,Event Fund,Third Party Payments - Voluntary Associations,20/03/2017,3853263,"2,000.00",INCLOODU
Children's Services,Children's Social Care,Children Looked After,S23 Fam Pl In-Hse-Kinshp Care,Childrens Act Section 23 - Expert Assessmt/Witness Costs,20/03/2017,3853336,775.00,The Priory Hospital
Children's Services,Education Services,Other Strategic Functions,SEN Reform,Stationery,20/03/2017,3853476,506.00,Love2Reward
Children's Services,Children's Social Care,Family Support Services,Short Breaks and Family Support,Third Party Payments - Payments to Schools,22/03/2017,3801707,"17,500.00",NAS Services Ltd
Children's Services,Children's Social Care,Support Service and Management Costs,Schools Catering,Kitchen Supplies - Food and Beverages,22/03/2017,3835671,768.20,Thomas Ridley & Son Ltd
Children's Services,Children's Social Care,Support Service and Management Costs,Schools Catering,Kitchen Supplies - Food and Beverages,22/03/2017,3835675,728.52,Thomas Ridley & Son Ltd
Children's Services,Children's Social Care,Support Service and Management Costs,Schools Catering,Kitchen Supplies - Food and Beverages,22/03/2017,3835679,983.42,Thomas Ridley & Son Ltd
Children's Services,Children's Social Care,Support Service and Management Costs,Schools Catering,Kitchen Supplies - Food and Beverages,22/03/2017,3835687,888.38,Thomas Ridley & Son Ltd
Children's Services,Children's Social Care,Support Service and Management Costs,Welfare Catering,Kitchen Supplies - Food and Beverages,22/03/2017,3837065,"1,105.70",Thomas Ridley & Son Ltd
Children's Services,Children's Social Care,Support Service and Management Costs,Schools Catering,Kitchen Supplies - Food and Beverages,22/03/2017,3837762,"1,101.79",Thomas Ridley & Son Ltd
Children's Services,Children's Social Care,Support Service and Management Costs,Schools Catering,Kitchen Supplies - Food and Beverages,22/03/2017,3837772,573.13,Thomas Ridley & Son Ltd
Children's Services,Children's Social Care,Support Service and Management Costs,Schools Catering,Kitchen Supplies - Food and Beverages,22/03/2017,3837850,"1,061.77",Thomas Ridley & Son Ltd
Children's Services,Children's Social Care,Support Service and Management Costs,Schools Catering,Kitchen Supplies - Food and Beverages,22/03/2017,3837861,"1,034.33",Thomas Ridley & Son Ltd
Children's Services,Children's Social Care,Support Service and Management Costs,Schools Catering,Kitchen Supplies - Food and Beverages,22/03/2017,3837906,520.62,Thomas Ridley & Son Ltd
Children's Services,Children's Social Care,Support Service and Management Costs,Schools Catering,Kitchen Supplies - Food and Beverages,22/03/2017,3837926,722.82,Thomas Ridley & Son Ltd
Children's Services,Children's Social Care,Support Service and Management Costs,Schools Catering,Kitchen Supplies - Food and Beverages,22/03/2017,3837940,796.83,Thomas Ridley & Son Ltd
Children's Services,Children's Social Care,Support Service and Management Costs,Schools Catering,Kitchen Supplies - Food and Beverages,22/03/2017,3837960,612.23,Thomas Ridley & Son Ltd
Children's Services,Children's Social Care,Support Service and Management Costs,Schools Catering,Kitchen Supplies - Food and Beverages,22/03/2017,3837970,656.00,Thomas Ridley & Son Ltd
Children's Services,Children's Social Care,Support Service and Management Costs,Schools Catering,Kitchen Supplies - Food and Beverages,22/03/2017,3837971,586.54,Thomas Ridley & Son Ltd
Children's Services,Children's Social Care,Support Service and Management Costs,Schools Catering,Kitchen Supplies - Food and Beverages,22/03/2017,3837986,556.87,Thomas Ridley & Son Ltd
Children's Services,Children's Social Care,Support Service and Management Costs,Schools Catering,Kitchen Supplies - Food and Beverages,22/03/2017,3837988,527.30,Thomas Ridley & Son Ltd
Children's Services,Children's Social Care,Support Service and Management Costs,Schools Catering,Kitchen Supplies - Food and Beverages,22/03/2017,3837998,"1,024.71",Thomas Ridley & Son Ltd
Children's Services,Children's Social Care,Support Service and Management Costs,Schools Catering,Kitchen Supplies - Food and Beverages,22/03/2017,3838002,796.85,Thomas Ridley & Son Ltd
Children's Services,Education Services,Other Strategic Functions,Vulnerable Pupils Fund,Services - Professional Fees - Consultants Fees,22/03/2017,3838057,"2,583.00",Agilisys Professional Services
Children's Services,Children's Social Care,Services for young people,Youth Service Management,Repairs and Maintenance - Responsive - Buildings,22/03/2017,3838110,"5,390.00",surelock security systems ltd
Children's Services,Children's Social Care,Support Service and Management Costs,Schools Catering,Kitchen Supplies - Food and Beverages,22/03/2017,3838218,648.85,Thomas Ridley & Son Ltd
Children's Services,Children's Social Care,Support Service and Management Costs,Schools Catering,Kitchen Supplies - Food and Beverages,22/03/2017,3838224,742.06,Thomas Ridley & Son Ltd
Children's Services,Children's Social Care,Support Service and Management Costs,Schools Catering,Kitchen Supplies - Food and Beverages,22/03/2017,3838237,890.23,Thomas Ridley & Son Ltd
Children's Services,Children's Social Care,Support Service and Management Costs,Schools Catering,Kitchen Supplies - Food and Beverages,22/03/2017,3838251,"1,274.40",Thomas Ridley & Son Ltd
Children's Services,Children's Social Care,Support Service and Management Costs,Schools Catering,Kitchen Supplies - Food and Beverages,22/03/2017,3838257,875.04,Thomas Ridley & Son Ltd
Children's Services,Children's Social Care,Support Service and Management Costs,Schools Catering,Kitchen Supplies - Food and Beverages,22/03/2017,3838259,939.69,Thomas Ridley & Son Ltd
Children's Services,Children's Social Care,Support Service and Management Costs,Schools Catering,Kitchen Supplies - Food and Beverages,22/03/2017,3838263,635.41,Thomas Ridley & Son Ltd
Children's Services,Children's Social Care,Support Service and Management Costs,Schools Catering,Kitchen Supplies - Food and Beverages,22/03/2017,3838267,811.27,Thomas Ridley & Son Ltd
Children's Services,Children's Social Care,Support Service and Management Costs,Schools Catering,Kitchen Supplies - Food and Beverages,22/03/2017,3838279,959.18,Thomas Ridley & Son Ltd
Children's Services,Children's Social Care,Support Service and Management Costs,Schools Catering,Kitchen Supplies - Food and Beverages,22/03/2017,3838285,813.92,Thomas Ridley & Son Ltd
Children's Services,Children's Social Care,Support Service and Management Costs,Schools Catering,Kitchen Supplies - Food and Beverages,22/03/2017,3838289,574.44,Thomas Ridley & Son Ltd
Children's Services,Children's Social Care,Support Service and Management Costs,Schools Catering,Kitchen Supplies - Food and Beverages,22/03/2017,3838308,579.90,Thomas Ridley & Son Ltd
Children's Services,Children's Social Care,Support Service and Management Costs,Schools Catering,Kitchen Supplies - Food and Beverages,22/03/2017,3838317,802.71,Thomas Ridley & Son Ltd
Children's Services,Children's Social Care,Youth Justice,Partnerships,Computing - Purchase of Software,22/03/2017,3838384,985.50,Agilisys Professional Services
Children's Services,Children's Social Care,Family Support Services,Tackling Troubled Families,Computing - Purchase of Software,22/03/2017,3838391,"9,289.00",Agilisys Professional Services
Children's Services,Education Services,Other Strategic Functions,Music Trading Account,Third Party Payments - Other Establishments,22/03/2017,3838395,"6,000.00",Half Moon Young People's Theatre
Children's Services,Cultural and Related Services,Open Spaces,Mile End Park,Materials - Cleaning Materials,22/03/2017,3838402,651.82,The Maintenance Supply Co Ltd
Children's Services,Children's Social Care,Children Looked After,Virtual School PPG,Agency Staff - Associations,22/03/2017,3839152,687.00,Academics ltd
Children's Services,Children's Social Care,Children Looked After,Virtual School PPG,Agency Staff - Associations,22/03/2017,3839153,687.00,Academics ltd
Children's Services,Children's Social Care,Children Looked After,S23 Family Placements P&V,Childrens Act Section 23 - Placement Fee,22/03/2017,3839904,"3,278.64",Integrated Service Programme
Children's Services,Education Services,Other Strategic Functions,Information & Support Services,Third Party Payments - Payments to Schools,22/03/2017,3839931,"61,991.82",London Borough Of Redbridge
Children's Services,Education Services,Other Strategic Functions,Music Trading Account,Third Party Payments - Other Establishments,22/03/2017,3839933,"3,395.00",UPSTAGE PERFORMANCE GROUP
Children's Services,Children's Social Care,Children Looked After,LCS/Allowances-Accom,Leaving Care Financial Assistance - Supp Accom/Hous Rents,22/03/2017,3840508,925.00,Real Life
Children's Services,Education Services,Other Strategic Functions,Alternative Provision,Third Party Payments - Contingencies,22/03/2017,3843923,"6,724.00",It's Your Life
Children's Services,Education Services,Other Strategic Functions,Schools Library,Books - General Purchases,22/03/2017,3847504,"1,322.65",Peters Bookselling Services
Children's Services,Education Services,Other Strategic Functions,Schools Library,Books - General Purchases,22/03/2017,3847539,751.62,Peters Bookselling Services
Children's Services,Education Services,Other Strategic Functions,Schools Library,Books - General Purchases,22/03/2017,3847549,"1,326.03",Peters Bookselling Services
Children's Services,Education Services,Other Strategic Functions,Schools Library,Books - General Purchases,22/03/2017,3847558,727.14,Peters Bookselling Services
Children's Services,Education Services,Other Strategic Functions,Schools Library,Books - General Purchases,22/03/2017,3847566,"2,134.21",Peters Bookselling Services
Children's Services,Education Services,Other Strategic Functions,Schools Library,Books - General Purchases,22/03/2017,3847574,"1,356.13",Peters Bookselling Services
Children's Services,Education Services,Other Strategic Functions,Schools Library,Books - General Purchases,22/03/2017,3847582,"1,362.09",Peters Bookselling Services
Children's Services,Children's Social Care,Children Looked After,S23-Other-Semi-Ind. Unit,Childrens Act Section 23 - Placement Fee,22/03/2017,3848550,"7,500.00",Youth reality homes
Children's Services,Children's Social Care,Children Looked After,S23-Other-Semi-Ind. Unit,Childrens Act Section 23 - Placement Fee,22/03/2017,3848551,"5,180.00",Youth reality homes
Children's Services,Children's Social Care,Children Looked After,S23-Other-Semi-Ind. Unit,Childrens Act Section 23 - Placement Fee,22/03/2017,3848552,"5,000.00",Youth reality homes
Children's Services,Children's Social Care,Youth Justice,Partnerships,Computing - Purchase of Hardware,22/03/2017,3849121,597.00,Ignite Service Provider Ltd
Children's Services,Children's Social Care,Children Looked After,Virtual School PPG,Third Party Payments - Payments to Schools,22/03/2017,3852080,500.00,Green Spring Academy Shoreditch
Children's Services,Education Services,Other Strategic Functions,Continuing Professional Development Project,Services - Professional Fees - Consultants Fees,22/03/2017,3852120,835.25,Agilisys Professional Services
Children's Services,Education Services,Services to Young People and Other Community Learners,Careers Service - Core,Property Leases - Buildings,22/03/2017,3852170,"11,250.00",REDACTED SECTION 40 FOI ACT
Children's Services,Children's Social Care,Children Looked After,Leaving Care Staff,Repairs and Maintenance - Responsive - Buildings,22/03/2017,3852173,"6,120.00",Key Patrol Ltd
Children's Services,Children's Social Care,Children Looked After,Leaving Care Staff,Repairs and Maintenance - Responsive - Buildings,22/03/2017,3852271,"3,900.00",Key Patrol Ltd
Children's Services,Education Services,Services to Young People and Other Community Learners,Careers Service - Core,Social Care - Prevention & Support,22/03/2017,3853032,"1,110.00",15billion
Children's Services,Children's Social Care,Children Looked After,Leaving Care-UASC,Leaving Care Financial Assistance - Supp Accom/Hous Rents,22/03/2017,3853054,960.11,Newhaven 16 Plus
Children's Services,Children's Social Care,Services for young people,Outdoor,Educational/Training Supplies - Curriculum Visits/Activities,22/03/2017,3853056,"1,027.00",BIKE WORKS CIC
Children's Services,Children's Social Care,Family Support Services,IPST S17 NRPF,Childrens Act Section 17 - Other Placements Bed & Breakfast,22/03/2017,3853114,555.00,PARK HOTEL
Children's Services,Children's Social Care,Family Support Services,IPST S17 NRPF,Childrens Act Section 17 - Other Placements Bed & Breakfast,22/03/2017,3853157,"1,260.00",PARK HOTEL
Children's Services,Children's Social Care,Other Children's and Family Services,Permanent Placements,Services - Professional Fees - Legal Fees/Expenses,22/03/2017,3853352,786.35,Social Work Solutions Ireland
Children's Services,Children's Social Care,Other Children's and Family Services,Adoption Concortium,Training Expenses - Staff External Training (UK Based),22/03/2017,3853465,970.00,Family Action
Children's Services,Children's Social Care,Children Looked After,S23 Family Placements P&V,Childrens Act Section 23 - Placement Fee,22/03/2017,3853495,"2,400.53",Credo Care ltd
Children's Services,Children's Social Care,Children Looked After,S23 Family Placements P&V,Childrens Act Section 23 - Placement Fee,22/03/2017,3853496,"2,400.53",Credo Care ltd
Children's Services,Education Services,Other Strategic Functions,High Needs Other Boroughs,Third Party Payments - Payments to Schools,22/03/2017,3853533,"29,950.25",The Garden
Children's Services,Children's Social Care,Other Children's and Family Services,Permanent Placements,Social Care - Day Care,22/03/2017,3853541,750.00,ACTION FOR CHILDREN SERVICES LTD
Children's Services,Education Services,Other Strategic Functions,SEN External Travel,Non Staff Transport Costs - Reimbursement,22/03/2017,3853555,"3,300.00",IHS Corporation Ltd
Children's Services,Children's Social Care,Children Looked After,S23 Family Placements P&V,Childrens Act Section 23 - Placement Fee,22/03/2017,3853575,"3,200.71",Credo Care ltd
Children's Services,Children's Social Care,Support Service and Management Costs,Schools Catering,Kitchen Supplies - Food and Beverages,22/03/2017,3853703,"89,462.10",Brake Bros LTD
Children's Services,Children's Social Care,Children Looked After,S23 Family Placements P&V,Childrens Act Section 23 - Placement Fee,22/03/2017,3853720,"3,226.48",CAPSTONE VISION FOSTER CARE LTD
Children's Services,Children's Social Care,Children Looked After,Staying Put,Childrens Act Section 23 - Placement Fee,22/03/2017,3853721,"1,780.02",CAPSTONE VISION FOSTER CARE LTD
Children's Services,Children's Social Care,Support Service and Management Costs,Schools Catering,Kitchen Supplies - Food and Beverages,22/03/2017,3853723,890.25,Greggs Plc
Children's Services,Education Services,Other Strategic Functions,Childrens Commissioning,Education & Training - Non Staff Tuition Fees,22/03/2017,3853727,879.00,City Lit
Children's Services,Education Services,Early Years,Overland CC,Property Leases - Buildings,22/03/2017,3853740,"12,000.00",Olga Primary School
Children's Services,Children's Social Care,Children Looked After,S23-Resi-P&V/OLA-Child Home,Childrens Act Section 23 - Placement Fee,22/03/2017,3853779,"8,000.00",CARE Ltd
Children's Services,Children's Social Care,Children Looked After,S23-Resi-P&V/OLA-Child Home,Social Care - Day Care,22/03/2017,3853811,"5,250.00",Heartwood Outreach Services Ltd
Children's Services,Education Services,Other Strategic Functions,Parental Engagement,Subscriptions - Associations,22/03/2017,3853827,960.00,Race Equality Foundation
Children's Services,Children's Social Care,Children Looked After,S23 Family Placements P&V,Childrens Act Section 23 - Placement Fee,22/03/2017,3853834,"2,956.00",Link Fostering Agency
Children's Services,Children's Social Care,Children Looked After,S23 Fam Pl P&V-F/Care,Childrens Act Section 23 - Placement Fee,22/03/2017,3853835,"2,956.00",Link Fostering Agency
Children's Services,Children's Social Care,Children Looked After,S23 Fam Pl P&V-F/Care,Childrens Act Section 23 - Placement Fee,22/03/2017,3853836,"2,956.00",Link Fostering Agency
Children's Services,Children's Social Care,Support Service and Management Costs,Schools Catering,Kitchen Supplies - Food and Beverages,22/03/2017,3853855,912.75,Greggs Plc
Children's Services,Children's Social Care,Support Service and Management Costs,Schools Catering,Kitchen Supplies - Food and Beverages,22/03/2017,3853858,"38,320.42",Brake Bros LTD
Children's Services,Education Services,Other Strategic Functions,Special Education Needs DSG,Third Party Payments - Payments to Schools,22/03/2017,3853868,"18,895.82",destiny house
Children's Services,Children's Social Care,Children Looked After,S23-Resi-P&V/OLA-Child Home,Childrens Act Section 23 - Placement Fee,22/03/2017,3853868,"18,895.82",destiny house
Children's Services,Children's Social Care,Support Service and Management Costs,Schools Catering,Kitchen Supplies - Food and Beverages,22/03/2017,3853884,912.75,Greggs Plc
Children's Services,Children's Social Care,Support Service and Management Costs,Schools Catering,Kitchen Supplies - Food and Beverages,22/03/2017,3853900,912.75,Greggs Plc
Children's Services,Children's Social Care,Children Looked After,Virtual School PPG,Third Party Payments - Payments to Schools,24/03/2017,3837106,925.00,Arthur Bugler Primary School
Children's Services,Cultural and Related Services,Recreation & Sport,Sports Development,Recreational Activities,24/03/2017,3837130,900.00,Our Parks Ltd
Children's Services,Children's Social Care,Children Looked After,Virtual School PPG,Third Party Payments - Payments to Schools,24/03/2017,3838120,516.00,Harris City Academy Crystal Palace
Children's Services,Children's Social Care,Children Looked After,Virtual School PPG,Third Party Payments - Payments to Schools,24/03/2017,3838121,510.00,Harris City Academy Crystal Palace
Children's Services,Children's Social Care,Support Service and Management Costs,Schools Catering,Kitchen Supplies - Food and Beverages,24/03/2017,3838506,"1,025.31",Thomas Ridley & Son Ltd
Children's Services,Children's Social Care,Support Service and Management Costs,Schools Catering,Kitchen Supplies - Food and Beverages,24/03/2017,3838545,862.90,Thomas Ridley & Son Ltd
Children's Services,Children's Social Care,Support Service and Management Costs,Schools Catering,Kitchen Supplies - Food and Beverages,24/03/2017,3839030,955.17,Thomas Ridley & Son Ltd
Children's Services,Children's Social Care,Support Service and Management Costs,Schools Catering,Kitchen Supplies - Food and Beverages,24/03/2017,3839036,511.16,Thomas Ridley & Son Ltd
Children's Services,Children's Social Care,Support Service and Management Costs,Schools Catering,Kitchen Supplies - Food and Beverages,24/03/2017,3839038,791.17,Thomas Ridley & Son Ltd
Children's Services,Children's Social Care,Support Service and Management Costs,Schools Catering,Kitchen Supplies - Food and Beverages,24/03/2017,3839042,765.94,Thomas Ridley & Son Ltd
Children's Services,Children's Social Care,Support Service and Management Costs,Schools Catering,Kitchen Supplies - Food and Beverages,24/03/2017,3839043,"1,249.16",Thomas Ridley & Son Ltd
Children's Services,Children's Social Care,Children Looked After,S23 Fam Pl P&V-F/Care,Childrens Act Section 23 - Placement Fee,24/03/2017,3839918,"3,555.70",Mosaic Foster Care
Children's Services,Children's Social Care,Children Looked After,S23 Fam Pl P&V-F/Care,Childrens Act Section 23 - Placement Fee,24/03/2017,3839919,"3,555.70",Mosaic Foster Care
Children's Services,Children's Social Care,Children Looked After,S23 Fam Pl P&V-F/Care,Childrens Act Section 23 - Placement Fee,24/03/2017,3839921,"7,085.67",Mosaic Foster Care
Children's Services,Children's Social Care,Children Looked After,Virtual School PPG,Third Party Payments - Payments to Schools,24/03/2017,3839982,635.00,HAMSTEL JUNIOR SCHOOL
Children's Services,Children's Social Care,Children Looked After,Virtual School PPG,Third Party Payments - Payments to Schools,24/03/2017,3840003,"1,000.00",Honywood Community Science School
Children's Services,Children's Social Care,Children Looked After,Virtual School PPG,Third Party Payments - Payments to Schools,24/03/2017,3840004,700.00,PORTICO ACADEMY TRUST T/A WEST LEIGH JUNIOR SCHOOL
Children's Services,Children's Social Care,Children Looked After,Virtual School PPG,Educational/Training Supplies - Resources,24/03/2017,3840020,500.00,St Martins C or E Primary School
Children's Services,Children's Social Care,Children Looked After,LCS/Allowances-Accom,Leaving Care Financial Assistance - Supp Accom/Hous Rents,24/03/2017,3840041,930.00,Transforming Lives Co
Children's Services,Children's Social Care,Support Service and Management Costs,Schools Catering,Kitchen Supplies - Food and Beverages,24/03/2017,3840283,"1,416.55",William White Meats Ltd
Children's Services,Children's Social Care,Support Service and Management Costs,Schools Catering,Kitchen Supplies - Food and Beverages,24/03/2017,3840349,505.85,William White Meats Ltd
Children's Services,Children's Social Care,Support Service and Management Costs,Schools Catering,Kitchen Supplies - Food and Beverages,24/03/2017,3840365,614.37,William White Meats Ltd
Children's Services,Education Services,Early Years,Children Centre Central Team,Comms - Purchase of Equipment,24/03/2017,3840408,"3,775.85",Misco
Children's Services,Children's Social Care,Support Service and Management Costs,Schools Catering,Kitchen Supplies - Catering Equipment,24/03/2017,3843171,"1,986.00",W V Howe LTD
Children's Services,Children's Social Care,Family Support Services,Eva Armsby Family Centre,Fixtures and Fittings - Purchases - General,24/03/2017,3843172,595.00,C Abbott Ltd
Children's Services,Children's Social Care,Children Looked After,S23-Resi-P&V/OLA-Child Home,Childrens Act Section 23 - Non-Contact Taxi Costs,24/03/2017,3843181,"1,946.50",Wrixon Care Services
Children's Services,Children's Social Care,Children Looked After,S23 Fam Pl P&V-F/Care,Childrens Act Section 23 - Placement Fee,24/03/2017,3843198,"4,588.66",Welcome Foster Care
Children's Services,Children's Social Care,Children Looked After,S23 Fam Pl P&V-F/Care,Childrens Act Section 23 - Placement Fee,24/03/2017,3843199,"3,631.34",Welcome Foster Care
Children's Services,Children's Social Care,Children Looked After,S23 Fam Pl P&V-F/Care,Childrens Act Section 23 - Placement Fee,24/03/2017,3843200,"3,631.34",Welcome Foster Care
Children's Services,Children's Social Care,Children Looked After,S23 Fam Pl P&V-F/Care,Childrens Act Section 23 - Placement Fee,24/03/2017,3843201,"3,051.33",Welcome Foster Care
Children's Services,Children's Social Care,Children Looked After,S23 Fam Pl P&V-F/Care,Childrens Act Section 23 - Placement Fee,24/03/2017,3843202,"3,317.00",Welcome Foster Care
Children's Services,Children's Social Care,Children Looked After,S23 Fam Pl P&V-F/Care,Childrens Act Section 23 - Placement Fee,24/03/2017,3843203,"3,317.00",Welcome Foster Care
Children's Services,Children's Social Care,Children Looked After,S23 Fam Pl P&V-F/Care,Childrens Act Section 23 - Placement Fee,24/03/2017,3843297,"3,051.33",Welcome Foster Care
Children's Services,Children's Social Care,Children's and Young People's Safety,Local Safegrd Child Board:LSCB,Services - Professional Fees - Consultants Fees,24/03/2017,3843514,"5,600.00",YCTCS Ltd
Children's Services,Children's Social Care,Children Looked After,S23 Fam Pl In-Hse-Kinshp Care,Childrens Act Section 23 - All Contact Expenses,24/03/2017,3844005,752.00,A. A. Agency Ltd
Children's Services,Education Services,Other Strategic Functions,Schools Library,Printing - External,24/03/2017,3844141,523.76,Bertram Library Services
Children's Services,Education Services,Early Years,Meath Gardens CC,Community Equipment  Supplies - Non Store Items,24/03/2017,3845764,610.00,ESPO
Children's Services,Children's Social Care,Children Looked After,12 Norman Grove,Training Expenses - Staff External Training (UK Based),24/03/2017,3847429,"1,482.78",NJP Consultancy And Training Ltd
Children's Services,Children's Social Care,Children Looked After,S23-Resi-P&V/OLA-Sec Acc-Wel,Childrens Act Section 23 - Expert Assessmt/Witness Costs,24/03/2017,3848426,"1,930.40",Core Assets Expert Services Ltd T/a Carter Brown
Children's Services,Children's Social Care,Children Looked After,S23-Resi-P&V/OLA-Sec Acc-Wel,Childrens Act Section 23 - Expert Assessmt/Witness Costs,24/03/2017,3848427,"1,892.40",Core Assets Expert Services Ltd T/a Carter Brown
Children's Services,Children's Social Care,Family Support Services,Family Intervention Programme,Office Furniture/Equipment,24/03/2017,3852142,887.40,Bright A Blind LTD
Children's Services,Children's Social Care,Family Support Services,Tackling Troubled Families,Office Furniture/Equipment,24/03/2017,3852142,928.80,Bright A Blind LTD
Children's Services,Adult Social Care,Support Service and Management Costs,Org Development L&D Training,Education & Training - Non Staff Tuition Fees,24/03/2017,3852180,"10,725.00",Cherith Simmons Learning & Development
Children's Services,Children's Social Care,Children Looked After,S23-Other-Semi-Ind. Unit,Childrens Act Section 23 - Placement Fee,24/03/2017,3853474,566.64,Circle Housing Old Ford
Children's Services,Children's Social Care,Children Looked After,Virtual School PPG,Third Party Payments - Payments to Schools,24/03/2017,3853733,500.00,COPFORD C OF E PRIMARY SCHOOL
Children's Services,Children's Social Care,Support Service and Management Costs,Schools Catering,Kitchen Supplies - Food and Beverages,24/03/2017,3853914,912.75,Greggs Plc
Children's Services,Children's Social Care,Children Looked After,Virtual School PPG,Education & Training - Non Staff Tuition Fees,24/03/2017,3855682,717.50,Winchmore Tutors Ltd
Children's Services,Children's Social Care,Children's and Young People's Safety,Community Safeguarding,Events & Exhibition Supplies,24/03/2017,3855748,500.00,Youth Against Crime Not Crime Against Youth
Children's Services,Children's Social Care,Children Looked After,S23-Resi-P&V/OLA-Child Home,Childrens Act Section 23 - Non-Contact Taxi Costs,24/03/2017,3855762,510.00,Mile End Car Hire Limited
Children's Services,Children's Social Care,Children Looked After,S23-Other-Semi-Ind. Unit,Childrens Act Section 23 - Non-Contact Taxi Costs,24/03/2017,3855767,552.00,Mile End Car Hire Limited
Children's Services,Children's Social Care,Support Service and Management Costs,Schools Catering,Kitchen Supplies - Food and Beverages,24/03/2017,3856531,665.21,Brake Bros LTD
Children's Services,Children's Social Care,Support Service and Management Costs,Schools Catering,Kitchen Supplies - Food and Beverages,24/03/2017,3856654,"5,599.92",Brake Bros LTD
Children's Services,Children's Social Care,Support Service and Management Costs,Schools Catering,Kitchen Supplies - Food and Beverages,24/03/2017,3856686,894.23,Brake Bros LTD
Children's Services,Children's Social Care,Support Service and Management Costs,Schools Catering,Kitchen Supplies - Food and Beverages,24/03/2017,3856728,556.34,Brake Bros LTD
Children's Services,Children's Social Care,Support Service and Management Costs,Schools Catering,Kitchen Supplies - Food and Beverages,24/03/2017,3856737,842.77,Brake Bros LTD
Children's Services,Education Services,Other Strategic Functions,Alternative Provision,Third Party Payments - Payments to Schools,24/03/2017,3860857,"3,000.00",RAINES FOUNDATION SCHOOL
Children's Services,Education Services,Other Strategic Functions,Alternative Provision,Third Party Payments - Payments to Schools,24/03/2017,3860864,"3,000.00",BOW SCHOOL
Children's Services,Education Services,Other Strategic Functions,Alternative Provision,Third Party Payments - Payments to Schools,24/03/2017,3860865,"3,000.00",BOW SCHOOL
Children's Services,Education Services,Secondary Schools,Trade Union Facilities,Agency Staff - TradUn&PubDuties,24/03/2017,3860866,"21,204.00",Mulberry School for Girls
Children's Services,Education Services,Other Strategic Functions,Alternative Provision,Third Party Payments - Payments to Schools,24/03/2017,3860882,"3,000.00",Stepney Green School
Children's Services,Education Services,Other Strategic Functions,Alternative Provision,Third Party Payments - Payments to Schools,24/03/2017,3860883,"3,000.00",Sir John Cass Foundation&Redcoat School
Children's Services,Education Services,Other Strategic Functions,Alternative Provision,Third Party Payments - Payments to Schools,24/03/2017,3860884,"3,000.00",Sir John Cass Foundation&Redcoat School
Children's Services,Education Services,Other Strategic Functions,Alternative Provision,Third Party Payments - Payments to Schools,24/03/2017,3860885,"3,000.00",Oakland School
Children's Services,Children's Social Care,Services for young people,Youth Service Management,SLA Services (Expenditure) - Service Level Agreements,27/03/2017,3838338,"6,759.20",NEWARK YOUTH LONDON
Children's Services,Children's Social Care,Support Service and Management Costs,Welfare Catering,Kitchen Supplies - Food and Beverages,27/03/2017,3839146,524.77,Thomas Ridley & Son Ltd
Children's Services,Education Services,Early Years,John Smith,Photocopier Charges - Consumables,27/03/2017,3839155,798.92,Supplies Team Ltd
Children's Services,Education Services,Other Strategic Functions,Special Education Needs DSG,Payments to Private Contractors - Private Contractor,27/03/2017,3839170,"4,380.00",SEN Support Services Ltd
Children's Services,Children's Social Care,Support Service and Management Costs,Schools Catering,Kitchen Supplies - Food and Beverages,27/03/2017,3839782,649.74,Thomas Ridley & Son Ltd
Children's Services,Children's Social Care,Support Service and Management Costs,Schools Catering,Kitchen Supplies - Food and Beverages,27/03/2017,3839786,971.18,Thomas Ridley & Son Ltd
Children's Services,Children's Social Care,Support Service and Management Costs,Schools Catering,Kitchen Supplies - Food and Beverages,27/03/2017,3839792,720.77,Thomas Ridley & Son Ltd
Children's Services,Children's Social Care,Support Service and Management Costs,Schools Catering,Kitchen Supplies - Food and Beverages,27/03/2017,3839798,593.09,Thomas Ridley & Son Ltd
Children's Services,Children's Social Care,Support Service and Management Costs,Schools Catering,Kitchen Supplies - Food and Beverages,27/03/2017,3839819,594.01,Thomas Ridley & Son Ltd
Children's Services,Children's Social Care,Support Service and Management Costs,Schools Catering,Kitchen Supplies - Food and Beverages,27/03/2017,3839836,"1,239.19",Thomas Ridley & Son Ltd
Children's Services,Children's Social Care,Children Looked After,S23-Resi-P&V/OLA-Child Home,Childrens Act Section 23 - Placement Fee,27/03/2017,3839979,"2,332.00",Horizon Residential Homes LTD
Children's Services,Children's Social Care,Support Service and Management Costs,Schools Catering,Kitchen Supplies - Food and Beverages,27/03/2017,3840084,"1,510.62",Thomas Ridley & Son Ltd
Children's Services,Children's Social Care,Support Service and Management Costs,Schools Catering,Kitchen Supplies - Food and Beverages,27/03/2017,3840108,616.84,Thomas Ridley & Son Ltd
Children's Services,Children's Social Care,Support Service and Management Costs,Schools Catering,Kitchen Supplies - Food and Beverages,27/03/2017,3840133,867.41,Thomas Ridley & Son Ltd
Children's Services,Children's Social Care,Support Service and Management Costs,Schools Catering,Kitchen Supplies - Food and Beverages,27/03/2017,3840149,611.61,Thomas Ridley & Son Ltd
Children's Services,Children's Social Care,Support Service and Management Costs,Schools Catering,Kitchen Supplies - Food and Beverages,27/03/2017,3842038,"-8,393.78",Thomas Ridley & Son Ltd
Children's Services,Education Services,Other Strategic Functions,Music Trading Account,Third Party Payments - Other Establishments,27/03/2017,3842095,"1,000.00",Phillip Scott
Children's Services,Children's Social Care,Children Looked After,S23-Other-Semi-Ind. Unit,Childrens Act Section 23 - Placement Fee,27/03/2017,3842149,"3,411.96",Heartwood Outreach Services Ltd
Children's Services,Children's Social Care,Children Looked After,S23-Other-Semi-Ind. Unit,Childrens Act Section 23 - Placement Fee,27/03/2017,3842150,"3,409.10",Heartwood Outreach Services Ltd
Children's Services,Children's Social Care,Children Looked After,S23-Other-Semi-Ind. Unit,Childrens Act Section 23 - Placement Fee,27/03/2017,3842151,"4,151.38",Heartwood Outreach Services Ltd
Children's Services,Children's Social Care,Children Looked After,S23-Other-Semi-Ind. Unit,Childrens Act Section 23 - Placement Fee,27/03/2017,3843701,"3,411.96",Heartwood Outreach Services Ltd
Children's Services,Children's Social Care,Children Looked After,S23-Other-Semi-Ind. Unit,Childrens Act Section 23 - Placement Fee,27/03/2017,3843702,"3,411.96",Heartwood Outreach Services Ltd
Children's Services,Children's Social Care,Children Looked After,S23-Other-Semi-Ind. Unit,Childrens Act Section 23 - Placement Fee,27/03/2017,3843703,"3,411.96",Heartwood Outreach Services Ltd
Children's Services,Children's Social Care,Children Looked After,S23-Other-Semi-Ind. Unit,Childrens Act Section 23 - Placement Fee,27/03/2017,3843704,"3,411.96",Heartwood Outreach Services Ltd
Children's Services,Education Services,Other Strategic Functions,High Needs Other Boroughs,Third Party Payments - Payments to Schools,27/03/2017,3843971,"3,855.21",The Willow Primary School
Children's Services,Children's Social Care,Support Service and Management Costs,Welfare Catering,Kitchen Supplies - Food and Beverages,27/03/2017,3843997,589.44,Jones Brothers
Children's Services,Education Services,Early Years,Children Centre Central Team,Room Hire,27/03/2017,3844053,727.20,the royal foundation of st katharine
Children's Services,Children's Social Care,Support Service and Management Costs,Schools Catering,Kitchen Supplies - Food and Beverages,27/03/2017,3844105,644.90,William White Meats Ltd
Children's Services,Children's Social Care,Support Service and Management Costs,Schools Catering,Kitchen Supplies - Food and Beverages,27/03/2017,3844165,630.80,William White Meats Ltd
Children's Services,Children's Social Care,Support Service and Management Costs,Schools Catering,Kitchen Supplies - Food and Beverages,27/03/2017,3844175,548.25,William White Meats Ltd
Children's Services,Children's Social Care,Support Service and Management Costs,Schools Catering,Kitchen Supplies - Food and Beverages,27/03/2017,3844221,505.27,William White Meats Ltd
Children's Services,Children's Social Care,Support Service and Management Costs,Schools Catering,Kitchen Supplies - Food and Beverages,27/03/2017,3844232,505.60,William White Meats Ltd
Children's Services,Children's Social Care,Support Service and Management Costs,Schools Catering,Kitchen Supplies - Food and Beverages,27/03/2017,3844288,516.10,William White Meats Ltd
Children's Services,Children's Social Care,Support Service and Management Costs,Schools Catering,Kitchen Supplies - Food and Beverages,27/03/2017,3844298,990.82,William White Meats Ltd
Children's Services,Children's Social Care,Support Service and Management Costs,Schools Catering,Kitchen Supplies - Food and Beverages,27/03/2017,3844314,525.45,William White Meats Ltd
Children's Services,Children's Social Care,Support Service and Management Costs,Schools Catering,Kitchen Supplies - Food and Beverages,27/03/2017,3844335,646.25,William White Meats Ltd
Children's Services,Children's Social Care,Services for young people,YCS Buildings,Office Furniture/Equipment,27/03/2017,3848421,626.00,Office Depot (Catalogue)
Children's Services,Children's Social Care,Family Support Services,Eva Armsby Family Centre,Services - Professional Fees - Legal Fees/Expenses,27/03/2017,3849606,617.00,EF Focus Ltd
Children's Services,Children's Social Care,Support Service and Management Costs,Swanlea,Kitchen Supplies - Food and Beverages,27/03/2017,3849827,538.57,Chicken Joes
Children's Services,Children's Social Care,Support Service and Management Costs,Sch. Meals A/c - C.F.S. Upper (Harley Grove),Kitchen Supplies - Food and Beverages,27/03/2017,3849829,612.90,Chicken Joes
Children's Services,Children's Social Care,Services for young people,Youth Service Management,SLA Services (Expenditure) - Service Level Agreements,27/03/2017,3853795,"21,498.60",Osmani Trust
Children's Services,Children's Social Care,Children Looked After,S23-Resi-P&V/OLA-Child Home,Social Care - Day Care,27/03/2017,3853869,"10,500.00",Heartwood Outreach Services Ltd
Children's Services,Adult Social Care,Support Service and Management Costs,Org Development L&D Training,Training Expenses - Staff External Training (UK Based),27/03/2017,3855657,"1,000.00",Lynden Consultancy
Children's Services,Children's Social Care,Children Looked After,LCS/Allowances-Accom,Non Staff Transport Costs - Client Transport Costs,27/03/2017,3855766,644.40,Mile End Car Hire Limited
Children's Services,Education Services,Other Strategic Functions,SLS - SEN Training SLA,Education & Training - Non Staff Tuition Fees,27/03/2017,3856518,"7,995.00",UCL (Institute of Education)
Children's Services,Education Services,Other Strategic Functions,Alternative Provision,Third Party Payments - Payments to Schools,27/03/2017,3860826,"3,000.00",Central Foundation Girls School
Children's Services,Children's Social Care,Children Looked After,S23 Fam Pl P&V-F/Care,Childrens Act Section 23 - Expert Assessmt/Witness Costs,27/03/2017,3860859,513.00,EXPERT IN MIND LIMITED
Children's Services,Education Services,Other Strategic Functions,Auxilary Aids,Training Expenses - Staff External Training (UK Based),27/03/2017,3860965,843.64,Ewing Foundation
Children's Services,Children's Social Care,Children Looked After,Virtual School PPG,Third Party Payments - Payments to Schools,27/03/2017,3861036,"2,700.00",Tunmarsh School
Children's Services,Education Services,Early Years,3&4 Year old PVI�s,Third Party Payments - Voluntary Associations,27/03/2017,3861143,"28,677.95",Barkantine Community Nursery
Children's Services,Education Services,Early Years,3&4 Year old PVI�s,Third Party Payments - Voluntary Associations,27/03/2017,3861145,932.40,Calvary Charismatic Baptist Church
Children's Services,Education Services,Early Years,3&4 Year old PVI�s,Third Party Payments - Voluntary Associations,27/03/2017,3861146,"5,180.40",SOMALI INTEGRATION TEAM
Children's Services,Education Services,Early Years,3&4 Year old PVI�s,Third Party Payments - Voluntary Associations,27/03/2017,3861147,"9,341.70",Fairies and  Elves
Children's Services,Education Services,Early Years,3&4 Year old PVI�s,Third Party Payments - Voluntary Associations,27/03/2017,3861148,"18,840.60",ISLAND HOUSE PRE SCHOOL PLAYGROUP
Children's Services,Education Services,Early Years,3&4 Year old PVI�s,Third Party Payments - Voluntary Associations,27/03/2017,3861149,"8,227.80",LANTERNS DAY NURSERY
Children's Services,Education Services,Early Years,3&4 Year old PVI�s,Third Party Payments - Voluntary Associations,27/03/2017,3861150,"28,525.50",Lincoln Hall Playgroup
Children's Services,Education Services,Early Years,3&4 Year old PVI�s,Third Party Payments - Voluntary Associations,27/03/2017,3861151,"33,933.60",Matchbox Day Nursery Ltd
Children's Services,Education Services,Early Years,3&4 Year old PVI�s,Third Party Payments - Voluntary Associations,27/03/2017,3861152,"5,836.50",Munchkins Playgroup
Children's Services,Education Services,Early Years,3&4 Year old PVI�s,Third Party Payments - Voluntary Associations,27/03/2017,3861153,"14,163.90",Pepe & Friends Ltd
Children's Services,Education Services,Early Years,3&4 Year old PVI�s,Third Party Payments - Voluntary Associations,27/03/2017,3861154,"1,847.10",Precious Kids Day Nursery LTD
Children's Services,Education Services,Early Years,3&4 Year old PVI�s,Third Party Payments - Voluntary Associations,27/03/2017,3861155,"21,238.50",Rainbow House
Children's Services,Education Services,Early Years,3&4 Year old PVI�s,Third Party Payments - Voluntary Associations,27/03/2017,3861156,"10,598.40",THE NURSERY QUEEN MARY UNIVERSITY LONDON
Children's Services,Education Services,Early Years,3&4 Year old PVI�s,Third Party Payments - Voluntary Associations,27/03/2017,3861157,"13,481.10",TATE HOUSE PLAYGROUP
Children's Services,Education Services,Early Years,SSEYCG Inclusion,Third Party Payments - Voluntary Associations,27/03/2017,3861162,"1,182.72",Tower Hamlets College
Children's Services,Education Services,Early Years,SSEYCG Inclusion,Third Party Payments - Voluntary Associations,27/03/2017,3861163,"1,080.00",CITY GATEWAY
Children's Services,Education Services,Early Years,SSEYCG Inclusion,Third Party Payments - Voluntary Associations,27/03/2017,3861164,"1,080.00",CITY GATEWAY
Children's Services,Education Services,Early Years,SSEYCG Inclusion,Third Party Payments - Voluntary Associations,27/03/2017,3861165,"1,980.00",CITY GATEWAY
Children's Services,Education Services,Early Years,SSEYCG Inclusion,Third Party Payments - Voluntary Associations,27/03/2017,3861167,898.70,Pillar Box Nurseries Ltd
Children's Services,Education Services,Early Years,SSEYCG Inclusion,Third Party Payments - Voluntary Associations,27/03/2017,3861168,"1,506.75",Lincoln Hall Playgroup
Children's Services,Education Services,Early Years,SSEYCG Inclusion,Third Party Payments - Voluntary Associations,27/03/2017,3861169,882.00,ISLAND HOUSE PRE SCHOOL PLAYGROUP
Children's Services,Children's Social Care,Service Strategy,FS&P - NRPF,Childrens Act Section 17 - Spec Pymnts Legal,27/03/2017,3861182,"1,825.20",Parsons Marshall Psychology
Children's Services,Education Services,Early Years,Wapping C.C - SLA,Electricity,27/03/2017,3861215,619.05,EDF  Energy
Children's Services,Education Services,Early Years,Wapping C.C - SLA,Electricity,27/03/2017,3861260,589.70,EDF  Energy
Children's Services,Education Services,Early Years,Wapping C.C - SLA,Electricity,27/03/2017,3861264,605.32,EDF  Energy
Children's Services,Education Services,Early Years,John Smith CC,Community Equipment  Supplies - Aids and Appliances,29/03/2017,3839957,"1,067.85",Early Excellence
Children's Services,Children's Social Care,Services for young people,Youth Service Management,Stationery,29/03/2017,3840393,763.56,Office Depot (Catalogue)
Children's Services,Children's Social Care,Children Looked After,S23-Other-Semi-Ind. Unit,Childrens Act Section 23 - Placement Fee,29/03/2017,3840426,"1,114.26",Real Life
Children's Services,Children's Social Care,Support Service and Management Costs,Welfare Catering,Kitchen Supplies - Food and Beverages,29/03/2017,3840428,984.92,Thomas Ridley & Son Ltd
Children's Services,Children's Social Care,Children Looked After,S23 Fam Pl P&V-F/Care,Childrens Act Section 23 - Placement Fee,29/03/2017,3840451,"3,080.00",Fostering People Too
Children's Services,Education Services,Other Strategic Functions,Alternative Provision,Third Party Payments - Payments to Schools,29/03/2017,3840453,"400,736.80",City Gateway 14-19 Provision
Children's Services,Children's Social Care,Children Looked After,LCS/Allowances-Accom,Leaving Care Financial Assistance - Supp Accom/Hous Rents,29/03/2017,3840532,925.00,Real Life
Children's Services,Children's Social Care,Support Service and Management Costs,Schools Catering,Kitchen Supplies - Food and Beverages,29/03/2017,3840565,639.97,Thomas Ridley & Son Ltd
Children's Services,Children's Social Care,Support Service and Management Costs,Schools Catering,Kitchen Supplies - Food and Beverages,29/03/2017,3840569,569.33,Thomas Ridley & Son Ltd
Children's Services,Children's Social Care,Support Service and Management Costs,Schools Catering,Kitchen Supplies - Food and Beverages,29/03/2017,3840572,"1,197.22",Thomas Ridley & Son Ltd
Children's Services,Children's Social Care,Support Service and Management Costs,Schools Catering,Kitchen Supplies - Food and Beverages,29/03/2017,3840576,591.23,Thomas Ridley & Son Ltd
Children's Services,Children's Social Care,Support Service and Management Costs,Schools Catering,Kitchen Supplies - Food and Beverages,29/03/2017,3840595,"1,157.72",Thomas Ridley & Son Ltd
Children's Services,Children's Social Care,Support Service and Management Costs,Schools Catering,Kitchen Supplies - Food and Beverages,29/03/2017,3841144,504.03,Thomas Ridley & Son Ltd
Children's Services,Children's Social Care,Support Service and Management Costs,Schools Catering,Kitchen Supplies - Food and Beverages,29/03/2017,3841158,671.82,Thomas Ridley & Son Ltd
Children's Services,Children's Social Care,Support Service and Management Costs,Schools Catering,Kitchen Supplies - Food and Beverages,29/03/2017,3841160,567.79,Thomas Ridley & Son Ltd
Children's Services,Children's Social Care,Support Service and Management Costs,Schools Catering,Kitchen Supplies - Food and Beverages,29/03/2017,3841162,515.98,Thomas Ridley & Son Ltd
Children's Services,Children's Social Care,Support Service and Management Costs,Schools Catering,Kitchen Supplies - Food and Beverages,29/03/2017,3842006,"1,000.49",Thomas Ridley & Son Ltd
Children's Services,Children's Social Care,Support Service and Management Costs,Schools Catering,Kitchen Supplies - Food and Beverages,29/03/2017,3842008,793.55,Thomas Ridley & Son Ltd
Children's Services,Children's Social Care,Support Service and Management Costs,Schools Catering,Kitchen Supplies - Food and Beverages,29/03/2017,3842013,886.72,Thomas Ridley & Son Ltd
Children's Services,Children's Social Care,Support Service and Management Costs,Schools Catering,Kitchen Supplies - Food and Beverages,29/03/2017,3842023,554.95,Thomas Ridley & Son Ltd
Children's Services,Children's Social Care,Support Service and Management Costs,Schools Catering,Kitchen Supplies - Food and Beverages,29/03/2017,3842033,640.31,Thomas Ridley & Son Ltd
Children's Services,Children's Social Care,Support Service and Management Costs,Schools Catering,Kitchen Supplies - Food and Beverages,29/03/2017,3842037,524.85,Thomas Ridley & Son Ltd
Children's Services,Children's Social Care,Children Looked After,S23-Resi-P&V/OLA-Child Home,Childrens Act Section 23 - Placement Fee,29/03/2017,3842117,"2,338.28",Care 2 Share 2
Children's Services,Children's Social Care,Support Service and Management Costs,Schools Catering,Kitchen Supplies - Food and Beverages,29/03/2017,3842130,566.29,Thomas Ridley & Son Ltd
Children's Services,Children's Social Care,Children Looked After,S23-Resi-P&V/OLA-Child Home,Childrens Act Section 23 - Placement Fee,29/03/2017,3842178,"2,484.00",Care 2 Share 2
Children's Services,Children's Social Care,Support Service and Management Costs,Schools Catering,Kitchen Supplies - Food and Beverages,29/03/2017,3842179,"1,613.95",Thomas Ridley & Son Ltd
Children's Services,Children's Social Care,Support Service and Management Costs,Schools Catering,Kitchen Supplies - Food and Beverages,29/03/2017,3842189,872.26,Thomas Ridley & Son Ltd
Children's Services,Children's Social Care,Support Service and Management Costs,Schools Catering,Kitchen Supplies - Food and Beverages,29/03/2017,3842198,709.67,Thomas Ridley & Son Ltd
Children's Services,Children's Social Care,Support Service and Management Costs,Schools Catering,Kitchen Supplies - Food and Beverages,29/03/2017,3842200,508.94,Thomas Ridley & Son Ltd
Children's Services,Children's Social Care,Support Service and Management Costs,Schools Catering,Kitchen Supplies - Food and Beverages,29/03/2017,3842216,"1,187.37",Thomas Ridley & Son Ltd
Children's Services,Children's Social Care,Support Service and Management Costs,Schools Catering,Kitchen Supplies - Food and Beverages,29/03/2017,3842218,693.23,Thomas Ridley & Son Ltd
Children's Services,Children's Social Care,Support Service and Management Costs,Schools Catering,Kitchen Supplies - Food and Beverages,29/03/2017,3842224,751.81,Thomas Ridley & Son Ltd
Children's Services,Children's Social Care,Support Service and Management Costs,Schools Catering,Kitchen Supplies - Food and Beverages,29/03/2017,3842226,723.81,Thomas Ridley & Son Ltd
Children's Services,Children's Social Care,Support Service and Management Costs,Schools Catering,Kitchen Supplies - Food and Beverages,29/03/2017,3842230,909.67,Thomas Ridley & Son Ltd
Children's Services,Children's Social Care,Support Service and Management Costs,Schools Catering,Kitchen Supplies - Food and Beverages,29/03/2017,3842234,723.74,Thomas Ridley & Son Ltd
Children's Services,Children's Social Care,Support Service and Management Costs,Schools Catering,Kitchen Supplies - Food and Beverages,29/03/2017,3842238,751.46,Thomas Ridley & Son Ltd
Children's Services,Children's Social Care,Support Service and Management Costs,Schools Catering,Kitchen Supplies - Food and Beverages,29/03/2017,3842239,577.99,Thomas Ridley & Son Ltd
Children's Services,Children's Social Care,Support Service and Management Costs,Schools Catering,Kitchen Supplies - Food and Beverages,29/03/2017,3842240,620.46,Thomas Ridley & Son Ltd
Children's Services,Children's Social Care,Support Service and Management Costs,Schools Catering,Kitchen Supplies - Food and Beverages,29/03/2017,3842241,"1,038.18",Thomas Ridley & Son Ltd
Children's Services,Children's Social Care,Support Service and Management Costs,Schools Catering,Kitchen Supplies - Food and Beverages,29/03/2017,3842252,990.66,Thomas Ridley & Son Ltd
Children's Services,Children's Social Care,Support Service and Management Costs,Schools Catering,Kitchen Supplies - Food and Beverages,29/03/2017,3842253,552.88,Thomas Ridley & Son Ltd
Children's Services,Children's Social Care,Children Looked After,S23 Fam Pl P&V-F/Care,Childrens Act Section 23 - Placement Fee,29/03/2017,3843180,"3,100.00",Futures for Children Ltd
Children's Services,Children's Social Care,Children Looked After,Virtual School PPG,Agency Staff - Associations,29/03/2017,3843218,916.00,Academics ltd
Children's Services,Children's Social Care,Children Looked After,Virtual School PPG,Agency Staff - Associations,29/03/2017,3843219,687.00,Academics ltd
Children's Services,Children's Social Care,Children Looked After,Virtual School PPG,Agency Staff - Associations,29/03/2017,3843220,916.00,Academics ltd
Children's Services,Children's Social Care,Children Looked After,Virtual School PPG,Agency Staff - Associations,29/03/2017,3843221,"1,145.00",Academics ltd
Children's Services,Children's Social Care,Children Looked After,Virtual School PPG,Agency Staff - Associations,29/03/2017,3843222,916.00,Academics ltd
Children's Services,Children's Social Care,Children Looked After,Virtual School PPG,Agency Staff - Associations,29/03/2017,3843223,687.00,Academics ltd
Children's Services,Children's Social Care,Children Looked After,S23 Fam Pl P&V-F/Care,Childrens Act Section 23 - Placement Fee,29/03/2017,3843292,"3,100.00",Futures for Children Ltd
Children's Services,Children's Social Care,Children Looked After,S23 Fam Pl P&V-F/Care,Childrens Act Section 23 - Placement Fee,29/03/2017,3843387,"3,100.00",Futures for Children Ltd
Children's Services,Children's Social Care,Children Looked After,S23 Fam Pl P&V-F/Care,Childrens Act Section 23 - Placement Fee,29/03/2017,3843397,"3,299.33",Futures for Children Ltd
Children's Services,Education Services,Other Strategic Functions,Special Education Needs DSG,Third Party Payments - Payments to Schools,29/03/2017,3843906,"2,791.40",Integrated Service Programme
Children's Services,Children's Social Care,Children Looked After,S23 Fam Pl P&V-F/Care,Childrens Act Section 23 - Placement Fee,29/03/2017,3843906,"2,791.39",Integrated Service Programme
Children's Services,Children's Social Care,Children Looked After,S23 Fam Pl P&V-F/Care,Childrens Act Section 23 - Placement Fee,29/03/2017,3843907,"5,460.96",Integrated Service Programme
Children's Services,Children's Social Care,Children Looked After,S23 Fam Pl P&V-F/Care,Childrens Act Section 23 - Placement Fee,29/03/2017,3843908,"5,748.33",Integrated Service Programme
Children's Services,Children's Social Care,Children Looked After,S23 Fam Pl P&V-F/Care,Childrens Act Section 23 - Placement Fee,29/03/2017,3843954,"5,407.02",Diverse Care (UK) Limited
Children's Services,Children's Social Care,Children Looked After,S23 Fam Pl P&V-F/Care,Childrens Act Section 23 - Placement Fee,29/03/2017,3843955,"5,407.02",Diverse Care (UK) Limited
Children's Services,Children's Social Care,Children Looked After,S23 Fam Pl Fost/Adop Advert,Childrens Act Section 23 - Spec Pymnts Advertising,29/03/2017,3843965,990.00,CWT Advertising LTD
Children's Services,Children's Social Care,Children Looked After,S23 Fam Pl P&V-F/Care,Childrens Act Section 23 - Placement Fee,29/03/2017,3843968,"3,461.64",Family Fostering
Children's Services,Children's Social Care,Children Looked After,S23 Fam Pl P&V-F/Care,Childrens Act Section 23 - Placement Fee,29/03/2017,3843978,"2,522.67",Sunbeam Fostering Agency Ltd
Children's Services,Children's Social Care,Children Looked After,S23 Family Placements P&V,Childrens Act Section 23 - Placement Fee,29/03/2017,3843979,"2,768.08",Sunbeam Fostering Agency Ltd
Children's Services,Children's Social Care,Children Looked After,S23 Fam Pl P&V-F/Care,Childrens Act Section 23 - Placement Fee,29/03/2017,3843980,"2,820.00",Sunbeam Fostering Agency Ltd
Children's Services,Children's Social Care,Children Looked After,S23 Fam Pl P&V-F/Care,Childrens Act Section 23 - Placement Fee,29/03/2017,3843981,"2,820.00",Sunbeam Fostering Agency Ltd
Children's Services,Children's Social Care,Children Looked After,S23 Fam Pl P&V-F/Care,Childrens Act Section 23 - Placement Fee,29/03/2017,3844062,"4,607.96",National Fostering Agency
Children's Services,Children's Social Care,Children Looked After,S23 Fam Pl P&V-F/Care,Childrens Act Section 23 - Placement Fee,29/03/2017,3844063,"2,940.00",National Fostering Agency
Children's Services,Children's Social Care,Children Looked After,S23 Family Placements P&V,Childrens Act Section 23 - Placement Fee,29/03/2017,3844064,"3,026.52",National Fostering Agency
Children's Services,Children's Social Care,Children Looked After,S23 Fam Pl P&V-F/Care,Childrens Act Section 23 - Placement Fee,29/03/2017,3844065,"2,940.00",National Fostering Agency
Children's Services,Children's Social Care,Children Looked After,S23 Fam Pl P&V-F/Care,Childrens Act Section 23 - Placement Fee,29/03/2017,3844095,"2,820.00",Sunbeam Fostering Agency Ltd
Children's Services,Children's Social Care,Children Looked After,S23 Fam Pl P&V-F/Care,Childrens Act Section 23 - Placement Fee,29/03/2017,3844120,"2,820.00",Sunbeam Fostering Agency Ltd
Children's Services,Children's Social Care,Support Service and Management Costs,Schools Catering,Kitchen Supplies - Food and Beverages,29/03/2017,3844278,590.50,William White Meats Ltd
Children's Services,Children's Social Care,Children Looked After,LCS/Allowances-Accom,Leaving Care Financial Assistance - Grant Pay Special Needs,29/03/2017,3845560,"3,720.00",Silver Birch Care LTD
Children's Services,Education Services,Other Strategic Functions,CS Prem Retirement (Non-School,Services - Professional Fees - Financial Services Fees,29/03/2017,3845590,"21,905.64",London Pensions Fund Authority
Children's Services,Children's Social Care,Services for young people,LAPS 1 - 8,Educational/Training Supplies - Curriculum Visits/Activities,29/03/2017,3845606,500.00,Neils Sports Trophies
Children's Services,Education Services,Other Strategic Functions,Music Trading Account,Third Party Payments - Other Establishments,29/03/2017,3845643,"2,500.00",Bow Arts Trust
Children's Services,Children's Social Care,Services for young people,Outdoor,Educational/Training Supplies - Curriculum Visits/Activities,29/03/2017,3845674,635.68,Specialist Computer Centres PLC
Children's Services,Children's Social Care,Children Looked After,S23 Fam Pl P&V-F/Care,Childrens Act Section 23 - Placement Fee,29/03/2017,3847437,"3,909.92",BANYA
Children's Services,Children's Social Care,Children Looked After,LCS/Allowances-Accom,Leaving Care Financial Assistance - Supp Accom/Hous Rents,29/03/2017,3847457,"3,980.20",Netpex
Children's Services,Children's Social Care,Services for young people,Youth Service Management,Events & Exhibition Supplies,29/03/2017,3847464,992.50,JS Entertainments Ltd
Children's Services,Education Services,Other Strategic Functions,High Needs Other Boroughs,Third Party Payments - Payments to Schools,29/03/2017,3847469,"5,449.50",The Garden
Children's Services,Children's Social Care,Children Looked After,LCS/Allowances-Accom,Leaving Care Financial Assistance - Supp Accom/Hous Rents,29/03/2017,3847511,"4,977.89",KPMS LTD
Children's Services,Children's Social Care,Children Looked After,S23-Other-Semi-Ind. Unit,Childrens Act Section 23 - Placement Fee,29/03/2017,3848162,"8,012.15",Pangea Support Services
Children's Services,Children's Social Care,Children Looked After,S23-Other-Semi-Ind. Unit,Childrens Act Section 23 - Placement Fee,29/03/2017,3848164,"3,347.15",Pangea Support Services
Children's Services,Children's Social Care,Children Looked After,S23-Other-Semi-Ind. Unit,Childrens Act Section 23 - Placement Fee,29/03/2017,3848166,"3,576.75",Pangea Support Services
Children's Services,Children's Social Care,Children Looked After,S23-Other-Semi-Ind. Unit,Childrens Act Section 23 - Placement Fee,29/03/2017,3848167,"3,287.15",Pangea Support Services
Children's Services,Children's Social Care,Children Looked After,S23-Other-Semi-Ind. Unit,Childrens Act Section 23 - Placement Fee,29/03/2017,3848169,"3,317.15",Pangea Support Services
Children's Services,Children's Social Care,Children Looked After,S23-Other-Semi-Ind. Unit,Childrens Act Section 23 - Placement Fee,29/03/2017,3848170,"3,456.10",Pangea Support Services
Children's Services,Children's Social Care,Children Looked After,S23-Other-Semi-Ind. Unit,Childrens Act Section 23 - Placement Fee,29/03/2017,3848171,"3,287.15",Pangea Support Services
Children's Services,Children's Social Care,Children Looked After,S23-Other-Semi-Ind. Unit,Childrens Act Section 23 - Placement Fee,29/03/2017,3848172,"3,287.15",Pangea Support Services
Children's Services,Children's Social Care,Children Looked After,Leaving Care-UASC,Leaving Care Financial Assistance - Supp Accom/Hous Rents,29/03/2017,3848174,"2,015.10",Pangea Support Services
Children's Services,Children's Social Care,Children Looked After,Leaving Care-UASC,Leaving Care Financial Assistance - Supp Accom/Hous Rents,29/03/2017,3848177,"2,015.10",Pangea Support Services
Children's Services,Children's Social Care,Children Looked After,Leaving Care-UASC,Leaving Care Financial Assistance - Reg Plan Maint L-Allow,29/03/2017,3848181,"2,015.10",Pangea Support Services
Children's Services,Children's Social Care,Children Looked After,S23-Other-Semi-Ind. Unit,Childrens Act Section 23 - Placement Fee,29/03/2017,3848182,"3,297.15",Pangea Support Services
Children's Services,Children's Social Care,Children Looked After,Leaving Care-UASC,Leaving Care Financial Assistance - Supp Accom/Hous Rents,29/03/2017,3848183,888.93,Pangea Support Services
Children's Services,Children's Social Care,Children Looked After,S23-Other-Semi-Ind. Unit,Childrens Act Section 23 - Placement Fee,29/03/2017,3848184,"3,287.15",Pangea Support Services
Children's Services,Children's Social Care,Children Looked After,S23-Other-Semi-Ind. Unit,Childrens Act Section 23 - Placement Fee,29/03/2017,3848185,"3,287.15",Pangea Support Services
Children's Services,Children's Social Care,Children Looked After,S23-Other-Semi-Ind. Unit,Childrens Act Section 23 - Placement Fee,29/03/2017,3848186,"3,399.15",Pangea Support Services
Children's Services,Children's Social Care,Children Looked After,S23-Other-Semi-Ind. Unit,Childrens Act Section 23 - Placement Fee,29/03/2017,3848187,"1,270.00",Pangea Support Services
Children's Services,Children's Social Care,Children Looked After,S23-Other-Semi-Ind. Unit,Childrens Act Section 23 - Placement Fee,29/03/2017,3848188,"3,808.60",Pangea Support Services
Children's Services,Children's Social Care,Support Service and Management Costs,Schools Catering,Social Care - Nursing Care,29/03/2017,3848402,"-4,045.00",Barts Health NHS Trust
Children's Services,Children's Social Care,Children Looked After,S23 Fam Pl In-Hse-S/Term F/C,Childrens Act Section 23 - All Contact Expenses,29/03/2017,3848580,657.00,HOPE Superjobs Ltd
Children's Services,Children's Social Care,Children Looked After,S23-Other-Semi-Ind. Unit,Childrens Act Section 23 - Placement Fee,29/03/2017,3848633,"11,200.00",Janailah Ltd
Children's Services,Children's Social Care,Services for young people,Youth Service Management,SLA Services (Expenditure) - Service Level Agreements,29/03/2017,3849625,"8,332.00",Society Links
Children's Services,Children's Social Care,Children Looked After,S23 Fam Pl P&V-F/Care,Childrens Act Section 23 - Placement Fee,29/03/2017,3849626,"1,959.00",Integrated Service Programme
Children's Services,Children's Social Care,Children Looked After,S23 Family Placements P&V,Childrens Act Section 23 - Placement Fee,29/03/2017,3849627,"-1,912.54",Integrated Service Programme
Children's Services,Adult Social Care,Support Service and Management Costs,Org Development L&D Training,Training Expenses - Staff External Training (UK Based),29/03/2017,3852160,"1,701.00",Edge Training and Consultancy Ltd
Children's Services,Cultural and Related Services,Open Spaces,Stepney Green,Services - Professional Fees - Security Fees,29/03/2017,3852162,"6,311.20",A P Security (North) LTD
Children's Services,Cultural and Related Services,Culture & Heritage,Arts-Park Events,Events & Exhibition Supplies,29/03/2017,3852163,"1,899.51",A P Security (North) LTD
Children's Services,Education Services,Other Strategic Functions,"Academy Conversion Support								",Services - Professional Fees - Legal Fees/Expenses,29/03/2017,3852197,"7,736.00",Sharpe Pritchard
Children's Services,Education Services,Secondary Schools,PFI Hldg Account-Mulberry Scho,Payments to Private Contractors - Other Contractors,29/03/2017,3853095,"191,741.11",D4E Mulberry LTD
Children's Services,Education Services,Secondary Schools,PFI Hldg Account-Mulberry Scho,Payments to Private Contractors - Other Contractors,29/03/2017,3853096,"7,832.48",D4E Mulberry LTD
Children's Services,Children's Social Care,Children Looked After,S23-Resi-P&V/OLA-Child Home,Childrens Act Section 23 - Placement Fee,29/03/2017,3853132,"4,000.00",Atlantic Lodge
Children's Services,Children's Social Care,Children Looked After,S23-Other-Semi-Ind. Unit,Childrens Act Section 23 - Placement Fee,29/03/2017,3853570,"3,800.16",Netpex
Children's Services,Children's Social Care,Children Looked After,S23 Fam Pl P&V-F/Care,Childrens Act Section 23 - Placement Fee,29/03/2017,3853734,"2,968.00",Greater London Fostering LTD
Children's Services,Children's Social Care,Children Looked After,S23 Fam Pl P&V-F/Care,Childrens Act Section 23 - Placement Fee,29/03/2017,3853735,"2,968.00",Greater London Fostering LTD
Children's Services,Children's Social Care,Children Looked After,Staying Put,Childrens Act Section 23 - Placement Fee,29/03/2017,3853796,"1,608.00",Kent Homefinding and Fostering
Children's Services,Children's Social Care,Children Looked After,S23 Family Placements P&V,Childrens Act Section 23 - Placement Fee,29/03/2017,3853797,"2,608.96",Kent Homefinding and Fostering
Children's Services,Education Services,Other Strategic Functions,Parental Engagement,Subscriptions - Associations,29/03/2017,3853830,"1,200.00",Race Equality Foundation
Children's Services,Education Services,Other Strategic Functions,Special Education Needs DSG,Third Party Payments - Payments to Schools,29/03/2017,3856489,"11,561.13",DATE PALM PRIMARY
Children's Services,Education Services,Secondary Schools,PFI Hldg Account-Grouped Schoo,Payments to Private Contractors - Other Contractors,29/03/2017,3856554,"48,138.72",Tower Hamlets Schools LTD
Children's Services,Children's Social Care,Children Looked After,S23 Fam Pl P&V-F/Care,Childrens Act Section 23 - Placement Fee,29/03/2017,3856614,"3,100.00",Time For Children
Children's Services,Children's Social Care,Children Looked After,S23 Fam Pl P&V-F/Care,Childrens Act Section 23 - Placement Fee,29/03/2017,3856615,"3,100.00",Time For Children
Children's Services,Children's Social Care,Family Support Services,IPST S17 NRPF,Childrens Act Section 17 - Other Placements Bed & Breakfast,29/03/2017,3856620,980.00,UK Room (London) Ltd
Children's Services,Children's Social Care,Children Looked After,S23 Fam Pl P&V-F/Care,Childrens Act Section 23 - Placement Fee,29/03/2017,3856671,"3,100.00",Time For Children
Children's Services,Children's Social Care,Children Looked After,S23 Fam Pl P&V-F/Care,Childrens Act Section 23 - Placement Fee,29/03/2017,3856693,"3,100.00",Time For Children
Children's Services,Children's Social Care,Children Looked After,S23 Fam Pl In-Hse-F&F F/Care,Childrens Act Section 23 - Commissioned Services,29/03/2017,3860816,"1,384.50",Parkside Chambers
Children's Services,Education Services,Other Strategic Functions,SEN External Travel,Non Staff Transport Costs - Reimbursement,29/03/2017,3860939,"11,335.00",Mile End Car Hire Limited
Children's Services,Education Services,Other Strategic Functions,Continuing Professional Development Project,Services - Professional Fees - Consultants Fees,29/03/2017,3860942,"1,124.38",Agilisys Professional Services
Children's Services,Education Services,Other Strategic Functions,Continuing Professional Development Project,Services - Professional Fees - Consultants Fees,29/03/2017,3860943,"8,293.15",Agilisys Professional Services
Children's Services,Children's Social Care,Children Looked After,S23 Fam Pl P&V-F/Care,Childrens Act Section 23 - Placement Fee,29/03/2017,3860959,"4,334.11",Fostering Outcomes Ltd
Children's Services,Children's Social Care,Family Support Services,Tackling Troubled Families,Third Party Payments - Voluntary Associations,29/03/2017,3860993,"20,000.00",Docklands Outreach Co LTD
Children's Services,Education Services,Other Strategic Functions,Special Education Needs DSG,Third Party Payments - Payments to Schools,29/03/2017,3860999,"2,127.00",The Complete Works Ltd
Children's Services,Education Services,Other Strategic Functions,High Needs Other Boroughs,Third Party Payments - Payments to Schools,29/03/2017,3861002,"19,059.25",The Garden
Children's Services,Education Services,Other Strategic Functions,High Needs Other Boroughs,Third Party Payments - Payments to Schools,29/03/2017,3861003,"-5,449.50",The Garden
Children's Services,Children's Social Care,Children Looked After,Fostering Support,Meeting Expenses,29/03/2017,3861284,"4,500.00",The Atrium London Ltd
Children's Services,Children's Social Care,Children Looked After,S23-Other-Semi-Ind. Unit,Childrens Act Section 23 - Placement Fee,29/03/2017,3861289,"4,032.00",Holibrook house Ltd
Children's Services,Children's Social Care,Other Children's and Family Services,Adoption Concortium,Education & Training - Non Staff Tuition Fees,29/03/2017,3861409,500.00,LONDON BOROUGH OF ISLINGTON
Children's Services,Education Services,Other Strategic Functions,CSF-Equalities Tracking & Dev,Third Party Payments - Payments to Schools,29/03/2017,3861664,"6,190.00",Culloden Primary School
Children's Services,Education Services,Early Years,John Smith CC,Educational/Training Supplies - Arts & Crafts,29/03/2017,3861719,945.00,ESPO
Children's Services,Education Services,Other Strategic Functions,High Needs FE Colleges,Third Party Payments - Payments to Schools,29/03/2017,3861795,"12,047.52",WESTMINSTER KINGSWAY COLLEGE
Children's Services,Education Services,Secondary Schools,Mayor's Education Awards (MEA),Other Discretionary Awards - Grant,29/03/2017,3861863,"41,668.00",Tower Hamlets College
Children's Services,Education Services,Early Years,Mowlem CC,Recreational Equipment - Recreational Equipment,29/03/2017,3862183,795.00,Total Sensory
Children's Services,Education Services,Secondary Schools,PFI Hldg Account-Grouped Schoo,Payments to Private Contractors - Consultants Fees,29/03/2017,3862236,"12,738.00",Grant Thornton UK LLP
Children's Services,Children's Social Care,Support Service and Management Costs,Welfare Catering,Kitchen Supplies - Food and Beverages,29/03/2017,3862245,501.58,William White Meats Ltd
Children's Services,Education Services,Secondary Schools,Secondary Schools Development,Third Party Payments - Payments to Schools,29/03/2017,3862300,600.00,Mulberry School for Girls
Children's Services,Children's Social Care,Support Service and Management Costs,Childrens Services IT Trading,Computing - Purchase of Hardware,31/03/2017,3834444,"1,799.00",The Knowledge Academy
Children's Services,Children's Social Care,Children Looked After,S23 Fam Pl P&V-F/Care,Childrens Act Section 23 - Placement Fee,31/03/2017,3842115,"3,932.86",Compass Fostering London & Eastern Ltd
Children's Services,Children's Social Care,Children Looked After,S23 Fam Pl P&V-F/Care,Childrens Act Section 23 - Placement Fee,31/03/2017,3842116,"2,985.65",Compass Fostering London & Eastern Ltd
Children's Services,Children's Social Care,Children Looked After,S23 Fam Pl P&V-F/Care,Childrens Act Section 23 - Placement Fee,31/03/2017,3842177,"2,985.65",Compass Fostering London & Eastern Ltd
Children's Services,Children's Social Care,Children Looked After,S23 Fam Pl P&V-F/Care,Childrens Act Section 23 - Placement Fee,31/03/2017,3842188,"2,985.65",Compass Fostering London & Eastern Ltd
Children's Services,Cultural and Related Services,Recreation & Sport,Recreational Services Central,Photocopier Charges - Consumables,31/03/2017,3843103,"1,974.00",Office Depot (Catalogue)
Children's Services,Cultural and Related Services,Recreation & Sport,Recreational Services Central,Stationery,31/03/2017,3843103,681.79,Office Depot (Catalogue)
Children's Services,Education Services,Secondary Schools,Secondary Schools Development,Third Party Payments - Other Establishments,31/03/2017,3843197,"9,999.00",Tower Hamlets EBP
Children's Services,Children's Social Care,Children Looked After,S23-Other-Semi-Ind. Unit,Childrens Act Section 23 - Placement Fee,31/03/2017,3843231,"3,210.71",Inclusive Care Support Ltd
Children's Services,Children's Social Care,Children Looked After,S23-Other-Semi-Ind. Unit,Childrens Act Section 23 - Placement Fee,31/03/2017,3843240,"4,109.71",Inclusive Care Support Ltd
Children's Services,Children's Social Care,Children Looked After,Leaving Care-UASC,Leaving Care Financial Assistance - Supp Accom/Hous Rents,31/03/2017,3843254,"1,657.14",Pangea Support Services
Children's Services,Cultural and Related Services,Recreation & Sport,Recreational Services Central,Photocopier Charges - Consumables,31/03/2017,3843284,987.00,Office Depot (Catalogue)
Children's Services,Children's Social Care,Children Looked After,LCS/Allowances-Accom,Leaving Care Financial Assistance - Supp Accom/Hous Rents,31/03/2017,3843294,898.17,Newhaven 16 Plus
Children's Services,Children's Social Care,Children Looked After,Leaving Care-UASC,Leaving Care Financial Assistance - Supp Accom/Hous Rents,31/03/2017,3843308,"1,058.78",Pangea Support Services
Children's Services,Children's Social Care,Children Looked After,Leaving Care-UASC,Leaving Care Financial Assistance - Supp Accom/Hous Rents,31/03/2017,3843395,"1,058.78",Pangea Support Services
Children's Services,Children's Social Care,Support Service and Management Costs,Schools Catering,Kitchen Supplies - Food and Beverages,31/03/2017,3843412,537.17,Thomas Ridley & Son Ltd
Children's Services,Children's Social Care,Support Service and Management Costs,Schools Catering,Kitchen Supplies - Food and Beverages,31/03/2017,3843425,884.86,Thomas Ridley & Son Ltd
Children's Services,Children's Social Care,Support Service and Management Costs,Schools Catering,Kitchen Supplies - Food and Beverages,31/03/2017,3843435,718.41,Thomas Ridley & Son Ltd
Children's Services,Children's Social Care,Support Service and Management Costs,Schools Catering,Kitchen Supplies - Food and Beverages,31/03/2017,3843437,786.45,Thomas Ridley & Son Ltd
Children's Services,Children's Social Care,Support Service and Management Costs,Schools Catering,Kitchen Supplies - Food and Beverages,31/03/2017,3843444,"1,190.62",Thomas Ridley & Son Ltd
Children's Services,Children's Social Care,Support Service and Management Costs,Schools Catering,Kitchen Supplies - Food and Beverages,31/03/2017,3843446,641.86,Thomas Ridley & Son Ltd
Children's Services,Children's Social Care,Support Service and Management Costs,Schools Catering,Kitchen Supplies - Food and Beverages,31/03/2017,3843450,960.46,Thomas Ridley & Son Ltd
Children's Services,Children's Social Care,Support Service and Management Costs,Schools Catering,Kitchen Supplies - Food and Beverages,31/03/2017,3843465,614.99,Thomas Ridley & Son Ltd
Children's Services,Children's Social Care,Support Service and Management Costs,Schools Catering,Kitchen Supplies - Food and Beverages,31/03/2017,3843470,537.27,Thomas Ridley & Son Ltd
Children's Services,Children's Social Care,Children Looked After,S23-Other-Semi-Ind. Unit,Childrens Act Section 23 - Placement Fee,31/03/2017,3843715,"3,210.71",Inclusive Care Support Ltd
Children's Services,Children's Social Care,Children Looked After,S23-Other-Semi-Ind. Unit,Childrens Act Section 23 - Placement Fee,31/03/2017,3843942,"1,200.01",St Christopher's Fellowship
Children's Services,Children's Social Care,Children Looked After,S23-Other-Mother & Baby Unit,Childrens Act Section 23 - Placement Fee,31/03/2017,3843975,"13,950.00",OneOneCoCo
Children's Services,Education Services,Other Strategic Functions,Vulnerable Pupils Fund,Educational/Training Supplies - Curriculum Visits/Activities,31/03/2017,3844358,"1,700.00",Peacock Gym Gymnasium
Children's Services,Children's Social Care,Support Service and Management Costs,Schools Catering,Kitchen Supplies - Food and Beverages,31/03/2017,3845494,510.60,William White Meats Ltd
Children's Services,Children's Social Care,Support Service and Management Costs,Schools Catering,Kitchen Supplies - Food and Beverages,31/03/2017,3845516,875.41,William White Meats Ltd
Children's Services,Children's Social Care,Support Service and Management Costs,Schools Catering,Kitchen Supplies - Food and Beverages,31/03/2017,3845521,557.60,William White Meats Ltd
Children's Services,Education Services,Early Years,Isle of Dogs. CC,Tools and Equipment - Purchase,31/03/2017,3845552,"2,623.00",Unique Office Solutions
Children's Services,Children's Social Care,Family Support Services,Tackling Troubled Families,Training Expenses - Staff External Training (UK Based),31/03/2017,3845553,"1,519.00",East London NHS Foundation Trust
Children's Services,Children's Social Care,Children Looked After,LCS/Allowances-Accom,Leaving Care Financial Assistance - Supp Accom/Hous Rents,31/03/2017,3845607,929.14,Newhaven 16 Plus
Children's Services,Children's Social Care,Children Looked After,LCS/Allowances-Accom,Leaving Care Financial Assistance - Supp Accom/Hous Rents,31/03/2017,3845608,"1,864.29",Newhaven 16 Plus
Children's Services,Children's Social Care,Children Looked After,LCS/Allowances-Accom,Leaving Care Financial Assistance - Supp Accom/Hous Rents,31/03/2017,3845609,"1,114.97",Newhaven 16 Plus
Children's Services,Education Services,Other Strategic Functions,Alternative Provision,Third Party Payments - Other Colleges,31/03/2017,3845616,"129,000.00",Tower Hamlets College
Children's Services,Children's Social Care,Children Looked After,S23-Resi-P&V/OLA-Sec Acc-Wel,Childrens Act Section 23 - Placement Fee,31/03/2017,3845628,"24,500.00",Devon CC (Placements)
Children's Services,Children's Social Care,Support Service and Management Costs,Professional Dev Centre,Computing - Maint Agreements - Maintenance,31/03/2017,3845651,"1,155.60",Advanced Learning Ltd
Children's Services,Children's Social Care,Services for young people,Outdoor,Educational/Training Supplies - Curriculum Visits/Activities,31/03/2017,3845683,"4,782.27",Award Scheme LTD
Children's Services,Education Services,Early Years,Mile End CC,Property Leases - Buildings,31/03/2017,3845693,"1,267.50",Eastend Homes LTD
Children's Services,Children's Social Care,Children Looked After,LCS/Allowances-Accom,Leaving Care Financial Assistance - Grant Pay Special Needs,31/03/2017,3845751,"2,989.29",Silver Birch Care LTD
Children's Services,Children's Social Care,Children Looked After,LCS/Allowances-Accom,Leaving Care Financial Assistance - Supp Accom/Hous Rents,31/03/2017,3845751,664.29,Silver Birch Care LTD
Children's Services,Children's Social Care,Children Looked After,LCS/Allowances-Accom,Leaving Care Financial Assistance - Grant Pay Special Needs,31/03/2017,3845760,"3,528.00",Newhaven 16 Plus
Children's Services,Children's Social Care,Children Looked After,LCS/Allowances-Accom,Leaving Care Financial Assistance - Grant Pay Special Needs,31/03/2017,3845761,"4,233.60",Newhaven 16 Plus
Children's Services,Children's Social Care,Children Looked After,S23-Other-Semi-Ind. Unit,Childrens Act Section 23 - Placement Fee,31/03/2017,3845769,"3,599.96",Alpha Care Service Ltd
Children's Services,Children's Social Care,Children's and Young People's Safety,CLA Reviewing Service,Non Staff Transport Costs - Reimbursement,31/03/2017,3847394,713.70,RSP Rail Travel (Rail Settlement Plan)
Children's Services,Children's Social Care,Children Looked After,Leaving Care-UASC,Leaving Care Financial Assistance - Supp Accom/Hous Rents,31/03/2017,3848165,"2,015.10",Pangea Support Services
Children's Services,Children's Social Care,Children Looked After,Leaving Care-UASC,Leaving Care Financial Assistance - Supp Accom/Hous Rents,31/03/2017,3848173,"2,015.10",Pangea Support Services
Children's Services,Children's Social Care,Children Looked After,Leaving Care-UASC,Leaving Care Financial Assistance - Supp Accom/Hous Rents,31/03/2017,3848175,"2,015.10",Pangea Support Services
Children's Services,Children's Social Care,Children Looked After,Leaving Care-UASC,Leaving Care Financial Assistance - Supp Accom/Hous Rents,31/03/2017,3848176,"2,015.10",Pangea Support Services
Children's Services,Children's Social Care,Children Looked After,Leaving Care-UASC,Leaving Care Financial Assistance - Supp Accom/Hous Rents,31/03/2017,3848178,"2,015.10",Pangea Support Services
Children's Services,Children's Social Care,Children Looked After,Leaving Care-UASC,Leaving Care Financial Assistance - Supp Accom/Hous Rents,31/03/2017,3848179,"2,015.10",Pangea Support Services
Children's Services,Children's Social Care,Family Support Services,Eva Armsby Family Centre,Office Furniture/Equipment,31/03/2017,3848444,795.00,Unique Office Solutions
